{"text_format":"1","workbook":"xlsx","n_sheets":34,"sheets":["modProv","Инструкция","Справочная информация","Лог обновления","Титульный","Список ЦСХВС (не дифф)","ЦСХВС доступ (не дифф)","Список ЦСХВС (дифф)","Ссылки на публикации","Комментарии","Проверка","AllSheetsInThisWorkbook","TEHSHEET","et_union_hor","et_union_vert","modInfo","modReestr","modfrmReestr","modUpdTemplMain","REESTR_ORG","modClassifierValidate","modHyp","modList00","modList01","modList02","modList03","modList04","modfrmDateChoose","modComm","modThisWorkbook","REESTR_MO","modfrmReestrMR","modfrmRegion","modfrmCheckUpdates"],"not_rendered":{"charts":0,"images":20,"macros":1,"external_links":0,"defined_names":116,"comments":1,"pivot_tables":0},"unopened":[],"bounds":{"document_bytes":16777216,"sheet_cells":100000,"rows_first":2000,"rows_last":500,"rows_between":2000,"halvings":0,"cell_chars":16384,"cell_head_chars":4096},"cells_cut":0,"cells_raw":0,"read":"whole","date_system":"1900"}

{"sheet":"modProv","index":0,"n_rows":0,"n_cols":0,"rows_kept":0,"cut":false,"hidden":true,"merged":[]}

{"sheet":"Инструкция","index":1,"n_rows":109,"n_cols":27,"rows_kept":109,"cut":false,"hidden":false,"merged":[[75,5,75,23],[89,4,89,6],[89,7,89,23],[90,7,90,23],[104,4,104,23],[82,4,82,23],[80,4,80,23],[76,5,76,23],[77,4,77,23],[78,4,78,23],[72,5,72,23],[73,5,73,23],[74,5,74,23],[106,5,106,18],[108,5,108,23],[60,7,60,23],[87,4,87,6],[87,7,87,23],[88,4,88,6],[88,7,88,23],[69,4,69,23],[81,4,81,23],[70,4,70,23],[57,4,57,6],[57,7,57,23],[58,4,58,6],[58,7,58,23],[59,4,59,6],[59,7,59,23],[71,5,71,23],[21,5,21,12],[21,15,21,23],[34,4,38,23],[39,4,39,23],[40,4,44,23],[45,4,56,23],[22,15,22,22],[1,1,1,6],[2,1,2,2],[4,1,4,24],[6,4,18,23],[20,5,20,12],[20,15,20,23],[79,4,79,23],[86,4,86,7],[83,4,83,23],[85,4,85,23],[84,4,84,23],[86,8,86,23]]}
[null,null,null,null,null,null,null,null,null,null,null,null,null,null,null,null,null,null,null,null,null,null,null,null,null,null," (требуется обновление)"]
[null,{"$f":"\"Код шаблона: \" & GetCode()","v":"Код шаблона: JKH.OPEN.INFO.QUARTER.HVS"}]
[null,{"$f":"\"Версия \" & GetVersion()","v":"Версия 6.1.2"}]
[]
[null,{"$f":"\"Информация о наличии (отсутствии) технической возможности подключения к централизованной системе \"&TSphere_full&\", а также о регистрации и ходе реализации заявок о подключении к централизованной системе \"&TSphere_full","v":"Информация о наличии (отсутствии) технической возможности подключения к централизованной системе холодного водоснабжения, а также о регистрации и ходе реализации заявок о подключении к централизованной системе холодного водоснабжения"}]
[]
[null,null,null,null,"• На рабочем месте должен быть установлен MS Office 2003 SP3, 2007 SP3, 2010 с полной версией MS Excel\n\n• Макросы во время работы должны быть включены (!)\n\n• Для корректной работы отчёта требуется выбрать низкий уровень безопасности\n(В меню MS Excel 2003: Сервис | Макрос | Безопасность | выбрать пункт «Низкая безопасность» | OK)\n(В меню MS Excel 2007/2010: Параметры Excel | Центр управления безопасностью | Параметры центра управления безопасностью | Параметры макросов | Включить все макросы | ОК)\n\n• Если Вы работаете в табличном процессоре MS Excel 2007 и выше, то можете использовать для работы формат XLSM (Книга Excel с поддержкой макросов). При работе в формате XLSM заметно быстрее происходит сохранение файла, а также уменьшается размер по сравнению с форматом XLS\n\n• Не рекомендуется снимать защиту с листов и каким-либо образом модифицировать защищаемые формулы и расчётные поля, в противном случае, отчёт будет отклонён системой\n\n• При сохранении не следует выбирать формат XLSX (Книга Excel), так как в указанном формате макросы, необходимые для работы отчёта, безвозвратно удаляются"]
[]
[]
[]
[]
[]
[]
[]
[]
[]
[]
[]
[]
[]
[null,null,null,null,"A"," - не обязательные для заполнения",null,null,null,null,null,null,null,null,"A"," - с формулами и константами"]
[null,null,null,null,"A"," - обязательные для заполнения",null,null,null,null,null,null,null,null,"A"," - с выбором значений до двойному клику,"]
[null,null,null,null,null,null,null,null,null,null,null,null,null,null,null,"либо с возможностью выбора даты из календаря или ручного ввода"]
[]
[]
[]
[]
[]
[]
[]
[]
[]
[]
[]
[null,null,null,null,"Если в предложенном Вам списке необходимая организация, МР/МО отсутствуют, обновите реестры с помощью кнопок\n\nВ результате синхронизации с базой данных список организаций (МР/МО) будет заменён актуальным (механизм синхронизации требует подключения к сети Интернет и основан на использовании протокола HTTPS (TCP порт 443))\n\nЕсли после обновления Вам не удалось найти необходимую организацию в списке, обратитесь к ответственному за поддержание реестра Вашего региона. Информация о региональных органах регулирования доступна по ссылке:"]
[]
[]
[]
[]
[null,null,null,null,"http://www.fstrf.ru/regions/region/showlist"]
[]
[]
[]
[]
[]
[null,null,null,null,"• При сохранении шаблона осуществляется проверка корректности данных, в том числе на наличие значений в ячейках, обязательных для заполнения\n\n• Если какая-то ячейка не удовлетворяет условию проверки, на лист «Проверка» добавляется гиперссылка на данную ячейку и указывается причина ошибки\n\n• В колонке «Статус» для каждого сообщения возможны 2 значения: ошибка и предупреждение\n\n• При наличии сообщений со статусом «Ошибка» шаблон будет отклонён системой и не будет загружен в хранилище данных, сообщения со статусом «Предупреждение» носят информационный характер, и такой шаблон будет принят системой"]
[]
[]
[]
[]
[]
[]
[]
[]
[]
[]
[]
[null,null,null,null,"Web-сайт:",null,null,"http://support.eias.ru/index.php?a=add&catid=5"]
[null,null,null,null,"E-mail:",null,null,"openinfo@eias.ru"]
[null,null,null,null,"Дистрибутивы:",null,null,"http://eias.ru/?page=show_distrs"]
[null,null,null,null,null,null,null,"для устранения ошибок (например, \"Compile error in hidden module\")"]
[]
[]
[]
[]
[]
[]
[]
[]
[null,null,null,null,"Законодательная основа шаблона"]
[null,null,null,null,"Данный шаблон разработан в соответствии с:"]
[null,null,null,null," • ","Постановлением Правительства РФ от 17.01.2013 N 6 \"О стандартах раскрытия информации в сфере водоснабжения и водоотведения\""]
[null,null,null,null,null,"Полный текст Постановления N 6"]
[null,null,null,null,null,{"$f":"\"Подробнее о сфере \"& TSphere_full","v":"Подробнее о сфере холодного водоснабжения"}]
[null,null,null,null," • ","Приказом Федеральной службы по тарифам (ФСТ России) от 15 мая 2013 г. № 129 (зарегистрирован Минюстом России № 28876 от 25.06.2013) «Об утверждении форм предоставления информации, подлежащей раскрытию, организациями, осуществляющими горячее водоснабжение, холодное водоснабжение и водоотведение, и органами регулирования тарифов, а также Правил заполнения таких форм»"]
[null,null,null,null,null,"Полный текст Приказа № 129 на сайте ФСТ России"]
[]
[null,null,null,null,"Принципы работы с шаблоном"]
[null,null,null,null,"  Перед началом работы с шаблоном Вам необходимо нажать кнопку \"Приступить к заполнению\", после чего на форме выбора выбрать из выпадающего списка нужный субъект РФ. После выбора субъекта РФ в шаблоне отобразятся листы для заполнения."]
[null,null,null,null,"  На листе «Титульный» нужно заполнить все ячейки голубого цвета."]
[null,null,null,null,"  На листе «Ссылки на публикации» «Адрес сайта в сети интернет» вводите, не нарушая цвет ячейки /если копируете гиперссылку из браузера, то выполните двойной щелчок левой кнопки мыши по ячейке и только после этого можете вставить скопированный элемент/.\n"]
[null,null,null,null,"  При вводе даты на расчетных листах необходимо выбрать дату из календаря (иконка справа от выбранной ячейки), либо ввести дату непосредственно в ячейку в формате - 'ДД.ММ.ГГГГ'."]
[null,null,null,null,"  Если какой-либо из показателей на расчетных листах для Вашей организации отсутствует, введите в поле, обязательное для заполнение, «0» (для числовых показателей) и «-» (для текстовых).\n"]
[null,null,null,null,"  Внимательно следите за информационными сообщениями на расчетных листах."]
[null,null,null,null,"  Все необходимые комментарии по всем формам Вы можете отразить на листе «Комментарии»."]
[null,null,null,null,"  Сопроводительные материалы необходимо загружать с помощью \"ЕИАС Мониторинг\""]
[null,null,null,null,"Инструкция",null,null,null,"http://eias.ru/files/shablon/manual_loading_through_monitoring.pdf"]
[]
[null,null,null,null,"E-mail:",null,null,"openinfo@eias.ru"]
[null,null,null,null,"Web-сайт:",null,null,"http://eias.ru/?page=show_templates"]
[]
[]
[]
[]
[]
[]
[]
[]
[]
[]
[]
[]
[]
[]
[null,null,null,null,"При наличии подключения к Интернет, можно автоматически проверять наличие доступных обновлений. Выберите способ оповещения о наличии обновлений для отчёта:"]
[]
[null,null,null,null,null,"проверять доступные обновления (рекомендуется)",null,null,null,null,null,null,null,null,null,null,null,null,null,null,null,null,null,null,null,null,"y"]
[]
[null,null,null,null,null,"никогда не проверять наличие обновлений (не рекомендуется)"]

{"sheet":"Справочная информация","index":2,"n_rows":142,"n_cols":6,"rows_kept":142,"cut":false,"hidden":false,"merged":[]}
[]
[null,{"$f":"code","v":"Код шаблона: JKH.OPEN.INFO.QUARTER.HVS"}]
[]
[]
[null,null,"II. Стандарты раскрытия информации в сфере холодного водоснабжения"]
[]
[null,null," 14. Регулируемой организацией подлежит раскрытию информация:",null,null," "]
[null,null,"  а) о регулируемой организации (общая информация);",null,null,"  "]
[null,null,"  б) о тарифах на регулируемые товары (услуги);",null,null,"  "]
[null,null,"  в) об основных показателях финансово-хозяйственной деятельности регулируемой организации, включая структуру основных производственных затрат (в части регулируемой деятельности);",null,null,"  "]
[null,null,"  г) об основных потребительских характеристиках регулируемых товаров и услуг регулируемой организации и их соответствии установленным требованиям;",null,null,"  "]
[null,null,"  д) об инвестиционных программах регулируемой организации и отчетах об их реализации;",null,null,"  "]
[null,null,"  е) о наличии (отсутствии) технической возможности подключения к централизованной системе холодного водоснабжения, а также о регистрации и ходе реализации заявок о подключении к централизованной системе холодного водоснабжения;",null,null,"  "]
[null,null,"  ж) об условиях, на которых осуществляется поставка регулируемых товаров (оказание регулируемых услуг), и (или) об условиях договоров о подключении к системе централизованного водоснабжения;",null,null,"  "]
[null,null,"  з) о порядке выполнения технологических, технических и других мероприятий, связанных с подключением к централизованной системе холодного водоснабжения;",null,null,"  "]
[null,null,"  и) о способах приобретения, стоимости и объемах товаров, необходимых для производства регулируемых товаров и (или) оказания регулируемых услуг регулируемой организацией;",null,null,"  "]
[null,null,"  к) о предложении регулируемой организации об установлении тарифов в сфере холодного водоснабжения.",null,null,"  "]
[null,null,"  ",null,null,"  "]
[null,null," 15. Информация о тарифах на регулируемые товары (услуги) в сфере холодного водоснабжения содержит сведения:",null,null," "]
[null,null,"  а) об утвержденных тарифах на питьевую воду (питьевое водоснабжение); руб/куб м",null,null,"  "]
[null,null,"  б) об утвержденных тарифах на техническую воду;",null,null,"  "]
[null,null,"  в) об утвержденных тарифах на транспортировку воды;",null,null,"  "]
[null,null,"  г) об утвержденных тарифах на подвоз воды;",null,null,"  "]
[null,null,"  д) об утвержденных тарифах на подключение к централизованной системе холодного водоснабжения руб./куб. м/час.",null,null,"  "]
[null,null,"  ",null,null,"  "]
[null,null," 16. В отношении сведений, предусмотренных пунктом 15 настоящего документа, указывается информация:",null,null," "]
[null,null,"  а) о наименовании органа регулирования, принявшего решение об утверждении тарифов;",null,null,"  "]
[null,null,"  б) о реквизитах (дата и номер) такого решения;",null,null,"  "]
[null,null,"  в) о величине установленного тарифа;",null,null,"  "]
[null,null,"  г) о сроке действия тарифа;",null,null,"  "]
[null,null,"  д) об источнике официального опубликования решения.",null,null,"  "]
[null,null,"  ",null,null,"  "]
[null,null," 17. В рамках общей информации о регулируемой организации раскрытию подлежат следующие сведения:",null,null," "]
[null,null,"  а) фирменное наименование юридического лица (согласно уставу регулируемой организации), фамилия, имя и отчество руководителя регулируемой организации;",null,null,"  "]
[null,null,"  б) основной государственный регистрационный номер, дата его присвоения и наименование органа, принявшего решение о регистрации, в соответствии со свидетельством о государственной регистрации в качестве юридического лица;",null,null,"  "]
[null,null,"  в) почтовый адрес, адрес фактического местонахождения органов управления регулируемой организации, контактные телефоны, а также (при наличии) официальный сайт в сети \"Интернет\" и адрес электронной почты;",null,null,"  "]
[null,null,"  г) режим работы регулируемой организации (абонентских отделов, сбытовых подразделений), в том числе часы работы диспетчерских служб;",null,null,"  "]
[null,null,"  д) вид регулируемой деятельности;",null,null,"  "]
[null,null,"  е) протяженность водопроводных сетей (в однотрубном исчислении) (километров);",null,null,"  "]
[null,null,"  ж) количество скважин (штук);",null,null,"  "]
[null,null,"  з) количество подкачивающих насосных станций (штук).",null,null,"  "]
[null,null,"  ",null,null,"  "]
[null,null," 18. Информация об основных показателях финансово-хозяйственной деятельности регулируемой организации, включая структуру основных производственных затрат (в части регулируемой деятельности), содержит сведения:",null,null," "]
[null,null,"  а) о выручке от вида регулируемой деятельности (тыс. рублей) с разбивкой по видам деятельности;",null,null,"  "]
[null,null,"  б) о себестоимости производимых товаров (оказываемых услуг) по виду регулируемой деятельности (тыс. рублей), включая:",null,null,"  "]
[null,null,"    - расходы на оплату холодной воды, приобретаемой у других организаций для последующей подачи потребителям;",null,null,"   "]
[null,null,"   - расходы на покупаемую электрическую энергию (мощность), используемую в технологическом процессе (с указанием средневзвешенной стоимости 1 кВт·ч), и объем приобретения электрической энергии;",null,null,"   "]
[null,null,"   - расходы на химические реагенты, используемые в технологическом процессе;",null,null,"   "]
[null,null,"   - расходы на оплату труда и отчисления на социальные нужды основного производственного персонала;",null,null,"   "]
[null,null,"   - расходы на оплату труда и отчисления на социальные нужды административно-управленческого персонала;",null,null,"   "]
[null,null,"   - расходы на амортизацию основных производственных средств;",null,null,"   "]
[null,null,"   - расходы на аренду имущества, используемого для осуществления регулируемого вида деятельности;",null,null,"   "]
[null,null,"   - общепроизводственные расходы, в том числе отнесенные к ним расходы на текущий и капитальный ремонт;",null,null,"   "]
[null,null,"   - общехозяйственные расходы, в том числе отнесенные к ним расходы на текущий и капитальный ремонт;",null,null,"   "]
[null,null,"   - расходы на капитальный и текущий ремонт основных производственных средств (в том числе информация об объемах товаров и услуг, их стоимости и способах приобретения у тех организаций, сумма оплаты услуг которых превышает 20 процентов суммы расходов по указанной статье расходов);",null,null,"   "]
[null,null,"   - расходы на услуги производственного характера, оказываемые по договорам с организациями на проведение регламентных работ в рамках технологического процесса (в том числе информация об объемах товаров и услуг, их стоимости и способах приобретения у тех организаций, сумма оплаты услуг которых превышает 20 процентов суммы расходов по указанной статье расходов);",null,null,"   "]
[null,null,"   - прочие расходы, которые подлежат отнесению на регулируемые виды деятельности в соответствии с основами ценообразования в сфере водоснабжения и водоотведения, утверждаемыми Правительством Российской Федерации;",null,null,"   "]
[null,null,"  в) о чистой прибыли, полученной от регулируемого вида деятельности, с указанием размера ее расходования на финансирование мероприятий, предусмотренных инвестиционной программой регулируемой организации (тыс. рублей);",null,null,"  "]
[null,null,"  г) об изменении стоимости основных фондов (в том числе за счет их ввода в эксплуатацию (вывода из эксплуатации)), их переоценки (тыс. рублей);",null,null,"  "]
[null,null,"  д) о валовой прибыли (убытках) от продажи товаров и услуг по регулируемому виду деятельности (тыс. рублей);",null,null,"  "]
[null,null,"  е) о годовой бухгалтерской отчетности, включая бухгалтерский баланс и приложения к нему (раскрывается регулируемой организацией, выручка от регулируемой деятельности которой превышает 80 процентов совокупной выручки за отчетный год);",null,null,"  "]
[null,null,"  ж) об объеме поднятой воды (тыс. куб. метров);",null,null,"  "]
[null,null,"  з) об объеме покупной воды (тыс. куб. метров);",null,null,"  "]
[null,null,"  и) об объеме воды, пропущенной через очистные сооружения (тыс. куб. метров);",null,null,"  "]
[null,null,"  к) об объеме отпущенной потребителям воды, определенном по приборам учета и расчетным путем (по нормативам потребления) (тыс. куб. метров);",null,null,"  "]
[null,null,"  л) о потерях воды в сетях (процентов);",null,null,"  "]
[null,null,"  м) о среднесписочной численности основного производственного персонала (человек);",null,null,"  "]
[null,null,"  н) об удельном расходе электроэнергии на подачу воды в сеть (тыс. кВт·ч или тыс. куб. метров);",null,null,"  "]
[null,null,"  о) о расходе воды на собственные (в том числе хозяйственно-бытовые) нужды (процент объема отпуска воды потребителям);",null,null,"  "]
[null,null,"  п) о показателе использования производственных объектов (по объему перекачки) по отношению к пиковому дню отчетного года (процентов).",null,null,"  "]
[null,null,"  ",null,null,"  "]
[null,null," 19. Информация об основных потребительских характеристиках регулируемых товаров и услуг регулируемой организации и их соответствии установленным требованиям содержит сведения:",null,null," "]
[null,null,"  а) о количестве аварий на системах холодного водоснабжения (единиц на километр);",null,null,"  "]
[null,null,"  б) о количестве случаев ограничения подачи холодной воды по графику с указанием срока действия таких ограничений (менее 24 часов в сутки) и доле потребителей (процентов), затронутых ограничениями подачи холодной воды;",null,null,"  "]
[null,null,"  в) об общем количестве проведенных проб качества воды по следующим показателям:",null,null,"  "]
[null,null,"   - мутность;",null,null,"   "]
[null,null,"   - цветность;",null,null,"   "]
[null,null,"   - хлор остаточный общий, в том числе хлор остаточный связанный и хлор остаточный свободный;",null,null,"   "]
[null,null,"   - общие колиформные бактерии;",null,null,"   "]
[null,null,"   - термотолерантные колиформные бактерии;",null,null,"   "]
[null,null,"  г) о количестве проведенных проб, выявивших несоответствие холодной воды санитарным нормам (предельно допустимой концентрации), по следующим показателям:",null,null,"  "]
[null,null,"   - мутность;",null,null,"   "]
[null,null,"   - цветность;",null,null,"   "]
[null,null,"   - хлор остаточный общий, в том числе хлор остаточный связанный и хлор остаточный свободный;",null,null,"   "]
[null,null,"   - общие колиформные бактерии;",null,null,"   "]
[null,null,"   - термотолерантные колиформные бактерии;",null,null,"   "]
[null,null,"  д) о доле исполненных в срок договоров о подключении (процент общего количества заключенных договоров о подключении);",null,null,"  "]
[null,null,"  е) о средней продолжительности рассмотрения заявлений о подключении (дней).",null,null,"  "]
[null,null,"  ",null,null,"  "]
[null,null," 20. Информация об инвестиционных программах регулируемой организации содержит сведения:",null,null," "]
[null,null,"  а) о наименовании, дате утверждения и цели инвестиционной программы;",null,null,"  "]
[null,null,"  б) о наименовании органа исполнительной власти субъекта Российской Федерации, утвердившего инвестиционную программу, и о наименовании органа местного самоуправления, согласовавшего инвестиционную программу;",null,null,"  "]
[null,null,"  в) о сроках начала и окончания реализации инвестиционной программы;",null,null,"  "]
[null,null,"  г) о потребностях в финансовых средствах, необходимых для реализации инвестиционной программы, в том числе с разбивкой по годам, мероприятиям и источникам финансирования инвестиционной программы (тыс. рублей);",null,null,"  "]
[null,null,"  д) о плановых значениях целевых показателей инвестиционной программы (с разбивкой по мероприятиям);",null,null,"  "]
[null,null,"  е) о фактических значениях целевых показателей (тыс. рублей);",null,null,"  "]
[null,null,"  ж) об использовании инвестиционных средств за отчетный год с разбивкой по кварталам, мероприятиям и источникам финансирования инвестиционной программы (тыс. рублей);",null,null,"  "]
[null,null,"  з) о внесении изменений в инвестиционную программу.",null,null,"  "]
[null,null,"  ",null,null,"  "]
[null,null," 21. Информация о наличии (отсутствии) технической возможности подключения к централизованной системе холодного водоснабжения, а также о регистрации и ходе реализации заявок о подключении к централизованной системе холодного водоснабжения содержит сведения:",null,null," "]
[null,null,"  а) о количестве поданных заявок о подключении к централизованной системе холодного водоснабжения в течение квартала;",null,null,"  "]
[null,null,"  б) о количестве исполненных заявок о подключении к централизованной системе холодного водоснабжения в течение квартала;",null,null,"  "]
[null,null,"  в) о количестве заявок о подключении к централизованной системе холодного водоснабжения, по которым принято решение об отказе в подключении (с указанием причин), в течение квартала;",null,null,"  "]
[null,null,"  г) о резерве мощности централизованной системы холодного водоснабжения в течение квартала.",null,null,"  "]
[null,null,"  ",null,null,"  "]
[null,null," 22. При использовании регулируемой организацией нескольких централизованных систем холодного водоснабжения информация о резерве мощности таких систем публикуется в отношении каждой централизованной системы холодного водоснабжения.",null,null," "]
[null,null,"  ",null,null,"  "]
[null,null," 23. Информация об условиях, на которых осуществляется поставка регулируемых товаров и (или) оказание регулируемых услуг, должна содержать сведения об условиях публичных договоров поставок регулируемых товаров, оказания регулируемых услуг, в том числе договоров о подключении к централизованной системе холодного водоснабжения.",null,null," "]
[null,null,"  ",null,null,"  "]
[null,null," 24. Информация о порядке выполнения технологических, технических и других мероприятий, связанных с подключением к централизованной системе холодного водоснабжения, содержит:",null,null," "]
[null,null,"  а) форму заявки о подключении к централизованной системе холодного водоснабжения;",null,null,"  "]
[null,null,"  б) перечень документов, представляемых одновременно с заявкой о подключении к централизованной системе холодного водоснабжения;",null,null,"  "]
[null,null,"  в) реквизиты нормативного правового акта, регламентирующего порядок действий заявителя и регулируемой организации при подаче, приеме, обработке заявки о подключении к централизованной системе холодного водоснабжения, принятии решения и уведомлении о принятом решении;",null,null,"  "]
[null,null,"  г) телефоны и адреса службы, ответственной за прием и обработку заявок о подключении к централизованной системе холодного водоснабжения.",null,null,"  "]
[null,null,"  ",null,null,"  "]
[null,null," 25. Информация о способах приобретения, стоимости и об объемах товаров, необходимых для производства регулируемых товаров и (или) оказания регулируемых услуг регулируемой организацией, содержит сведения о правовых актах, регламентирующих правила закупки (положение о закупках) в регулируемой организации, о месте размещения положения о закупках регулируемой организации, а также сведения о планировании конкурсных процедур и результатах их проведения.",null,null," "]
[null,null,"  ",null,null,"  "]
[null,null," 26. Информация о предложении регулируемой организации об установлении тарифов в сфере холодного водоснабжения на очередной период регулирования содержит копию утвержденной в установленном порядке инвестиционной программы (проекта инвестиционной программы), а также сведения:",null,null," "]
[null,null,"  а) о предлагаемом методе регулирования;",null,null,"  "]
[null,null,"  б) о расчетной величине тарифов;",null,null,"  "]
[null,null,"  в) о периоде действия тарифов;",null,null,"  "]
[null,null,"  г) о долгосрочных параметрах регулирования (в случае если их установление предусмотрено выбранным методом регулирования);",null,null,"  "]
[null,null,"  д) о необходимой валовой выручке на соответствующий период, в том числе с разбивкой по годам;",null,null,"  "]
[null,null,"  е) о годовом объеме отпущенной потребителям воды;",null,null,"  "]
[null,null,"  ж) о размере недополученных доходов регулируемой организации (при их наличии), исчисленном в соответствии с основами ценообразования в сфере водоснабжения и водоотведения, утверждаемыми Правительством Российской Федерации;",null,null,"  "]
[null,null,"  з) о размере экономически обоснованных расходов, не учтенных при регулировании тарифов в предыдущий период регулирования (при их наличии), определенном в соответствии с основами ценообразования в сфере водоснабжения и водоотведения, утверждаемыми Правительством Российской Федерации.",null,null,"  "]
[null,null,"  ",null,null,"  "]
[null,null," 27. Информация, указанная в пунктах 15, 23 и 24 настоящего документа, раскрывается регулируемой организацией не позднее 30 календарных дней со дня принятия решения об установлении тарифа на очередной период регулирования.",null,null," "]
[null,null,"  ",null,null,"  "]
[null,null," 28. Информация, указанная в пунктах 18 - 20 настоящего документа, раскрывается регулируемой организацией не позднее 30 календарных дней со дня направления годового бухгалтерского баланса в налоговые органы, за исключением информации, указанной в подпункте \"з\" пункта 20 настоящего документа.",null,null," "]
[null,null,"  ",null,null,"  "]
[null,null," 29. Информация, указанная в пункте 18 настоящего документа, соответствует годовой бухгалтерской отчетности за отчетный год.",null,null," "]
[null,null,"  ",null,null,"  "]
[null,null," 30. Регулируемая организация, не осуществляющая сдачу годового бухгалтерского баланса в налоговые органы, информацию, указанную в пунктах 18 - 20, за исключением информации, указанной в подпункте \"з\" пункта 20 настоящего документа, раскрывает не позднее 30 календарных дней со дня истечения срока, установленного законодательством Российской Федерации для сдачи годового бухгалтерского баланса в налоговые органы.",null,null," "]
[null,null,"  ",null,null,"  "]
[null,null," 31. Информация, указанная в подпункте \"з\" пункта 20 настоящего документа, раскрывается регулируемой организацией в течение 10 календарных дней со дня принятия органом исполнительной власти субъекта Российской Федерации решения о внесении изменений в инвестиционную программу.",null,null," "]
[null,null,"  ",null,null,"  "]
[null,null," 32. Информация, указанная в пункте 21 настоящего документа, раскрывается регулируемой организацией ежеквартально, в течение 30 календарных дней по истечении квартала, за который раскрывается информация.",null,null," "]
[null,null,"  ",null,null,"  "]
[null,null," 33. Информация, указанная в пунктах 25 и 26 настоящего документа, раскрывается регулируемой организацией в течение 10 календарных дней со дня подачи ею заявления об установлении тарифов в сфере холодного водоснабжения в орган исполнительной власти субъекта Российской Федерации в области государственного регулирования тарифов (орган местного самоуправления).",null,null," "]
[null,null,"  ",null,null,"  "]
[null,null," 34. Информация, указанная в пункте 17 настоящего документа, подлежит раскрытию в течение месяца со дня вступления в силу настоящего документа.",null,null," "]

{"sheet":"Лог обновления","index":3,"n_rows":37,"n_cols":3,"rows_kept":37,"cut":false,"hidden":true,"merged":[]}
["Дата/Время","Сообщение","Статус"]
[]
["2014-01-13T11:00:51","Проверка доступных обновлений...","Информация"]
["2014-01-13T11:00:51","Доступно обновление до версии 6.1.1","Информация"]
["2014-01-13T11:00:51","Описание изменений: Версия 6.1.1 (для шаблонов версии 6.1)\n1. корректировка проверки при сохранении корректности отчетного периода на листе \"Титульный\".","Информация"]
["2014-01-13T11:00:51","Размер файла обновления: 281088 байт","Информация"]
["2014-01-13T11:00:53","Подготовка к обновлению...","Информация"]
["2014-01-13T11:00:55","Сохранение файла резервной копии: T:\\Упр. рег. в сфере КК\\Мониторинга и наблюдения в сфере КК отдел\\@Общая\\ЕИАС\\!!!! Шаблоны РЕГИОНАЛЬНЫЕ\\ГОТОВЫЕ ШАБЛОНЫ\\Раскрытие информации\\31.12.2013\\Квартал\\JKH.OPEN.INFO.QUARTER.HVS.BKP..xls","Информация"]
["2014-01-13T11:01:07","Резервная копия создана: T:\\Упр. рег. в сфере КК\\Мониторинга и наблюдения в сфере КК отдел\\@Общая\\ЕИАС\\!!!! Шаблоны РЕГИОНАЛЬНЫЕ\\ГОТОВЫЕ ШАБЛОНЫ\\Раскрытие информации\\31.12.2013\\Квартал\\JKH.OPEN.INFO.QUARTER.HVS.BKP..xls","Информация"]
["2014-01-13T11:01:07","Создание книги для установки обновлений...","Информация"]
["2014-01-13T11:01:07","Ошибка при инициализации обновления","Ошибка"]
["2014-01-13T11:01:29","Проверка доступных обновлений...","Информация"]
["2014-01-13T11:01:29","Доступно обновление до версии 6.1.1","Информация"]
["2014-01-13T11:01:29","Описание изменений: Версия 6.1.1 (для шаблонов версии 6.1)\n1. корректировка проверки при сохранении корректности отчетного периода на листе \"Титульный\".","Информация"]
["2014-01-13T11:01:29","Размер файла обновления: 281088 байт","Информация"]
["2014-01-13T11:01:30","Подготовка к обновлению...","Информация"]
["2014-01-13T11:01:33","Сохранение файла резервной копии: T:\\Упр. рег. в сфере КК\\Мониторинга и наблюдения в сфере КК отдел\\@Общая\\ЕИАС\\!!!! Шаблоны РЕГИОНАЛЬНЫЕ\\ГОТОВЫЕ ШАБЛОНЫ\\Раскрытие информации\\31.12.2013\\Квартал\\JKH.OPEN.INFO.QUARTER.HVS.BKP..xls","Информация"]
["2014-01-13T11:01:44","Резервная копия создана: T:\\Упр. рег. в сфере КК\\Мониторинга и наблюдения в сфере КК отдел\\@Общая\\ЕИАС\\!!!! Шаблоны РЕГИОНАЛЬНЫЕ\\ГОТОВЫЕ ШАБЛОНЫ\\Раскрытие информации\\31.12.2013\\Квартал\\JKH.OPEN.INFO.QUARTER.HVS.BKP..xls","Информация"]
["2014-01-13T11:01:45","Создание книги для установки обновлений...","Информация"]
["2014-01-13T11:01:58","Файл обновления загружен: T:\\Упр. рег. в сфере КК\\Мониторинга и наблюдения в сфере КК отдел\\@Общая\\ЕИАС\\!!!! Шаблоны РЕГИОНАЛЬНЫЕ\\ГОТОВЫЕ ШАБЛОНЫ\\Раскрытие информации\\31.12.2013\\Квартал\\UPDATE.JKH.OPEN.INFO.QUARTER.HVS.TO.6.1.1.26.xls","Информация"]
["2014-01-13T11:02:14","Обновление завершилось удачно! Шаблон JKH.OPEN.INFO.QUARTER.HVS.BKP..xls сохранен под именем 'JKH.OPEN.INFO.QUARTER.HVS.BKP.(v6.1.1).xls'","Информация"]
["2014-01-13T11:08:11","Проверка доступных обновлений...","Информация"]
["2014-01-13T11:08:11","Версия шаблона 6.1.1 актуальна, обновление не требуется","Информация"]
["2014-04-22T14:45:35","Проверка доступных обновлений...","Информация"]
["2014-04-22T14:45:36","Доступно обновление до версии 6.1.2","Информация"]
["2014-04-22T14:45:36","Описание изменений: Версия 6.1.1 (только(!!!) для шаблонов версии 6.1 и выше)\n1. корректировка проверки при сохранении корректности отчетного периода на листе \"Титульный\".\n2. добавление информации о соответствие форм приказа ФСТ России № 129 от 15 мая 2013 г. на соответствующих листах.\n\n\nЕсли версия Вашего шаблона ниже 6.1, обратитесь к администратору Вашего субъекта РФ.","Информация"]
["2014-04-22T14:45:36","Размер файла обновления: 283136 байт","Информация"]
["2014-04-22T14:45:39","Подготовка к обновлению...","Информация"]
["2014-04-22T14:45:48","Сохранение файла резервной копии: C:\\Users\\Sergey.Merkurev\\Desktop\\Шаблоны 22.04.2014\\ВС\\JKH.OPEN.INFO.QUARTER.HVS.BKP..xls","Информация"]
["2014-04-22T14:45:56","Резервная копия создана: C:\\Users\\Sergey.Merkurev\\Desktop\\Шаблоны 22.04.2014\\ВС\\JKH.OPEN.INFO.QUARTER.HVS.BKP..xls","Информация"]
["2014-04-22T14:45:56","Создание книги для установки обновлений...","Информация"]
["2014-04-22T14:46:03","Файл обновления загружен: C:\\Users\\Sergey.Merkurev\\Desktop\\Шаблоны 22.04.2014\\ВС\\UPDATE.JKH.OPEN.INFO.QUARTER.HVS.TO.6.1.2.69.xls","Информация"]
["2014-04-22T14:46:13","Обновление завершилось удачно! Шаблон JKH.OPEN.INFO.QUARTER.HVS.xls сохранен под именем 'JKH.OPEN.INFO.QUARTER.HVS(v6.1.2).xls'","Информация"]
["2017-05-04T15:40:37","Проверка доступных обновлений...","Информация"]
["2017-05-04T15:40:38","Версия шаблона 6.1.2 актуальна, обновление не требуется","Информация"]
["2017-10-26T13:52:49","Проверка доступных обновлений...","Информация"]
["2017-10-26T13:53:00","Нет доступных обновлений для шаблона с кодом JKH.OPEN.INFO.QUARTER.HVS!","Информация"]

{"sheet":"Титульный","index":4,"n_rows":47,"n_cols":6,"rows_kept":47,"cut":false,"hidden":false,"merged":[[4,4,4,5]]}
[null,null,null,null,null,26354589]
[]
[]
[null,null,null,null,null,{"$f":"version","v":"Версия 6.1.2"}]
[null,null,null,null,{"$f":"\"Информация о наличии (отсутствии) технической возможности подключения к централизованной системе \"&TSphere_full&\", а также о регистрации и ходе реализации заявок о подключении к централизованной системе \"&TSphere_full","v":"Информация о наличии (отсутствии) технической возможности подключения к централизованной системе холодного водоснабжения, а также о регистрации и ходе реализации заявок о подключении к централизованной системе холодного водоснабжения"}]
[]
[null,null,null,null,"Субъект РФ","Удмуртская республика"]
[]
[null,null,null,null,"Публикация","На сайте регулирующего органа"]
[]
[null,null,null,null,"По желанию организации информация раскрыта в дополнительных источниках публикации?","нет"]
[]
[null,null,null,null,{"$f":"\"Тариф установлен дифференцированно по системам \"&TSphere_full&\"?\"","v":"Тариф установлен дифференцированно по системам холодного водоснабжения?"},"нет"]
[]
[null,null,null,null,"Идентификатор тарифа"]
[null,null,null,null,"Описание тарифа"]
[]
[null,null,null,null,null,"Отчётный период"]
[null,null,null,null,"Квартал","III квартал"]
[null,null,null,null,"Год",2017]
[]
[null,null,null,null,"Является ли данное юридическое лицо подразделением (филиалом) другой организации","нет"]
[]
[null,null,null,null,"Наименование организации","МУП ЖКХ г. Можги"]
[null,null,null,null,"Наименование филиала"]
[null,null,null,null,"ИНН","1830003056"]
[null,null,null,null,"КПП","183001001"]
[]
[null,null,null,null,"Вид деятельности","Оказание услуг в сфере водоснабжения"]
[]
[null,null,null,null,null,"Адрес регулируемой организации"]
[null,null,null,null,"Юридический адрес","УР г.Можга ул.Вокзальная,11"]
[null,null,null,null,"Почтовый адрес","УР г.Можга ул.Вокзальная,11"]
[]
[null,null,null,null,null,"Руководитель"]
[null,null,null,null,"Фамилия, имя, отчество","Бузанов Александр Валентинович"]
[null,null,null,null,"(код) номер телефона","(34 139) 3-19-08"]
[]
[null,null,null,null,null,"Главный бухгалтер"]
[null,null,null,null,"Фамилия, имя, отчество","Веретенникова Галина Васильевна"]
[null,null,null,null,"(код) номер телефона","(34 139) 3-23-43"]
[]
[null,null,null,null,null,"Должностное лицо, ответственное за составление формы"]
[null,null,null,null,"Фамилия, имя, отчество","Кузнецова Снежана Владимировна"]
[null,null,null,null,"Должность","экономист"]
[null,null,null,null,"(код) номер телефона","(34 139) 3-20-48"]
[null,null,null,null,"e-mail","peo@gkh18.ru"]

{"sheet":"Список ЦСХВС (не дифф)","index":5,"n_rows":15,"n_cols":13,"rows_kept":15,"cut":false,"hidden":false,"merged":[[3,3,3,8],[4,3,4,8],[14,4,14,12],[9,3,11,3],[9,4,11,4],[9,6,10,6],[9,7,10,7],[9,8,10,8],[9,9,10,9],[10,11,10,12]]}
[]
[]
[null,null,null,null,null,null,null,null,"Приложение 2 к приказу ФСТ России от 15 мая 2013 г. N 129, Форма 2.10"]
[null,null,null,{"$f":"\"Информация о наличии (отсутствии) технической возможности подключения к централизованной системе \"&TSphere_full&\" (одной или несколько), в отношении которой(-ых) установлен единый тариф*\"","v":"Информация о наличии (отсутствии) технической возможности подключения к централизованной системе холодного водоснабжения (одной или несколько), в отношении которой(-ых) установлен единый тариф*"}]
[null,null,null,{"$f":"IF(org=0,\"Не определено\",org)","v":"МУП ЖКХ г. Можги"}]
[]
[null,null,null,"№ п/п","Муниципальный район",null,"№ п/п","Муниципальное образование","ОКТМО","Количество котельных и ЦТП по данному МО","№ п/п",{"$f":"\"Наименование централизованной системы \"&TSphere_full&\" *\"","v":"Наименование централизованной системы холодного водоснабжения *"},{"$f":"\"Резерв мощности централизованной системы \"&TSphere_full&\" в течение квартала, тыс.куб.м/сутки\"","v":"Резерв мощности централизованной системы холодного водоснабжения в течение квартала, тыс.куб.м/сутки"}]
[null,null,null,"1","2",null,"3","4","5","6","6","7","8"]
[]
[null,null,"О",1,"Город Можга",null,1,"Город Можга","94730000",null,"1","холодное водоснабжение по МО \"Город Можга\"",{"$f":"7.733-0.002275-0.01191","v":7.7188149999999993}]
[null,null,null,null,null,null,null,null,null,null,null,"Добавить централизованную систему"]
[null,null,null,null,null,null,null,"Добавить МО"]
[null,null,null,null,"Добавить МР"]
[]
[null,null,null,"*","Наименование может совпадать с описанием тарифа, указанным на листе 'Титульный'"]

{"sheet":"ЦСХВС доступ (не дифф)","index":6,"n_rows":18,"n_cols":6,"rows_kept":18,"cut":false,"hidden":false,"merged":[[13,4,13,5],[6,4,6,5],[17,4,17,5],[4,3,4,5],[5,3,5,5]]}
[]
[]
[]
[null,null,null,null,null,"Приложение 2 к приказу ФСТ России от 15 мая 2013 г. N 129, Форма 2.10"]
[null,null,null,{"$f":"\"Информация о регистрации и ходе реализации заявок о подключении к централизованной системе \"&TSphere_full&\"*\"","v":"Информация о регистрации и ходе реализации заявок о подключении к централизованной системе холодного водоснабжения*"}]
[null,null,null,{"$f":"IF(org=0,\"Не определено\",org)","v":"МУП ЖКХ г. Можги"}]
[]
[null,null,null,"№ п/п","Наименование показателя","Значение"]
[null,null,null,"А","1","2"]
[null,null,null,"1",{"$f":"\"Количество поданных заявок о подключении к централизованной системе \"&TSphere_full&\" в течение квартала, шт.\"","v":"Количество поданных заявок о подключении к централизованной системе холодного водоснабжения в течение квартала, шт."},51]
[null,null,null,"2",{"$f":"\"Количество исполненных заявок о подключении к централизованной системе \"&TSphere_full&\" в течение квартала, шт.\"","v":"Количество исполненных заявок о подключении к централизованной системе холодного водоснабжения в течение квартала, шт."},33]
[null,null,null,"3",{"$f":"\"Количество заявок о подключении к централизованной системе  \"&TSphere_full&\", по которым принято решение об отказе в подключении (с указанием причин) в течение квартала, шт.\"","v":"Количество заявок о подключении к централизованной системе  холодного водоснабжения, по которым принято решение об отказе в подключении (с указанием причин) в течение квартала, шт."},0]
[null,null,null,"4","Причины отказа в подключении"]
[null,null,null,"4.0"]
[null,null,null,null,"Добавить причину"]
[null,null,null,"5","Справочно: количество выданных техусловий на подключение, шт."]
[]
[null,null,null,"*","Информация раскрывается ежеквартально, в течение 30 календарных дней по истечении квартала, за который раскрывается информация."]

{"sheet":"Список ЦСХВС (дифф)","index":7,"n_rows":13,"n_cols":20,"rows_kept":13,"cut":false,"hidden":true,"merged":[[11,4,11,19],[3,3,3,12],[4,3,4,12],[12,4,12,12]]}
[]
[]
[null,null,null,null,null,null,null,null,null,null,null,null,"Приложение 2 к приказу ФСТ России от 15 мая 2013 г. N 129, Форма 2.10"]
[null,null,null,{"$f":"\"Информация о наличии (отсутствии) технической возможности подключения к централизованной системе \"&TSphere_full&\", а также о регистрации и ходе реализации заявок о подключении к централизованной системе \"&TSphere_full&\" (одной или несколько), в отношении которой (-ых), установлен единый тариф*\"","v":"Информация о наличии (отсутствии) технической возможности подключения к централизованной системе холодного водоснабжения, а также о регистрации и ходе реализации заявок о подключении к централизованной системе холодного водоснабжения (одной или несколько), в отношении которой (-ых), установлен единый тариф*"}]
[null,null,null,{"$f":"IF(org=0,\"Не определено\",org)","v":"МУП ЖКХ г. Можги"}]
[]
[null,null,null,"№ п/п","Муниципальный район",null,"№ п/п","Муниципальное образование","ОКТМО","Количество котельных и ЦТП по данному МО",null,"№ п/п",{"$f":"\"Наименование централизованной системы \"&TSphere_full & \" **\"","v":"Наименование централизованной системы холодного водоснабжения **"},"Количество поданных заявок, шт.","Количество исполненных заявок, шт.","Количество заявок с решением об отказе  в подключении, шт.",null,"№ п/п","Причины отказа в подключении",{"$f":"\"Резерв мощности централизованной системы \"&TSphere_full&\" в течение квартала, тыс.куб.м/сутки\"","v":"Резерв мощности централизованной системы холодного водоснабжения в течение квартала, тыс.куб.м/сутки"}]
[null,null,null,"1","2",null,"3","4","5","6",null,"6","7","8","9","10",null,"11","12","13"]
[]
[null,null,null,null,"Добавить МР"]
[]
[null,null,null,"*",{"$f":"\"В случае если регулируемыми организациями оказываются услуги по нескольким технологически не связанным между собой централизованным системам \"&TSphere_full&\", и если в отношении указанных систем устанавливаются различные тарифы в сфере \"&TSphere_full&\", то информация раскрывается отдельно по каждой централизованной системе \"&TSphere_full&\" (для каждого такого тарифа нужно заполнять новый шаблон).\"","v":"В случае если регулируемыми организациями оказываются услуги по нескольким технологически не связанным между собой централизованным системам холодного водоснабжения, и если в отношении указанных систем устанавливаются различные тарифы в сфере холодного водоснабжения, то информация раскрывается отдельно по каждой централизованной системе холодного водоснабжения (для каждого такого тарифа нужно заполнять новый шаблон)."}]
[null,null,null,"**","Наименование может совпадать с описанием тарифа, указанным на листе 'Титульный'"]

{"sheet":"Ссылки на публикации","index":8,"n_rows":13,"n_cols":8,"rows_kept":13,"cut":false,"hidden":true,"merged":[[5,3,5,6],[10,0,11,0],[4,3,4,6],[10,4,10,7]]}
[]
[]
[]
[]
[null,null,null,"Ссылки на публикации\n(указание на официальное печатное издание и (или) адрес сайта в сети Интернет, которые используются для размещения раскрываемой информации)"]
[null,null,null,{"$f":"IF(org=0,\"Не определено\",org)","v":"МУП ЖКХ г. Можги"}]
[]
[]
[null,null,null,"№ п/п","Содержание","Наименование источника\n(сайта или печатного издания)","Дата размещения информации","Адрес сайта в сети Интернет"]
[null,null,null,"1","2","3","4","5"]
["1",null,null,{"$f":"A11","v":"1"},{"$f":"\"Информация о наличии (отсутствии) технической возможности доступа к регулируемым товарам и услугам регулируемых организаций, а также о регистрации и ходе реализации заявок на подключение к централизованой системе \"&TSphere_full","v":"Информация о наличии (отсутствии) технической возможности доступа к регулируемым товарам и услугам регулируемых организаций, а также о регистрации и ходе реализации заявок на подключение к централизованой системе холодного водоснабжения"}]
[null,null,null,{"$f":"A11&\".1\"","v":"1.1"},"Сайт организации в сети Интернет"]
[null,null,null,null,"Добавить"]

{"sheet":"Комментарии","index":9,"n_rows":13,"n_cols":5,"rows_kept":13,"cut":false,"hidden":false,"merged":[[6,3,6,4],[7,3,7,4]]}
[]
[]
[]
[]
[]
[]
[null,null,null,"Комментарии"]
[null,null,null,{"$f":"IF(org=0,\"Не определено\",org)","v":"МУП ЖКХ г. Можги"}]
[]
[null,null,null,"№ п/п","Комментарий"]
[null,null,null,"1","2"]
[null,null,null,0]
[null,null,null,null,"Добавить"]

{"sheet":"Проверка","index":10,"n_rows":4,"n_cols":4,"rows_kept":4,"cut":false,"hidden":false,"merged":[[1,1,1,3]]}
[]
[null,"Результат проверки"]
[]
[null,"Ссылка","Причина","Статус"]

{"sheet":"AllSheetsInThisWorkbook","index":11,"n_rows":25,"n_cols":2,"rows_kept":25,"cut":false,"hidden":true,"merged":[]}
["Расчетные листы","Скрытые листы"]
["Инструкция","AllSheetsInThisWorkbook"]
["Справочная информация","TEHSHEET"]
["Лог обновления","et_union_hor"]
["Титульный","et_union_vert"]
["Список ЦСХВС (не дифф)","modInfo"]
["ЦСХВС доступ (не дифф)","modReestr"]
["Список ЦСХВС (дифф)","modfrmReestr"]
["Ссылки на публикации","modUpdTemplMain"]
["Комментарии","REESTR_ORG"]
["Проверка","modClassifierValidate"]
[null,"modProv"]
[null,"modHyp"]
[null,"modList00"]
[null,"modList01"]
[null,"modList02"]
[null,"modList03"]
[null,"modList04"]
[null,"modfrmDateChoose"]
[null,"modComm"]
[null,"modThisWorkbook"]
[null,"REESTR_MO"]
[null,"modfrmReestrMR"]
[null,"modfrmRegion"]
[null,"modfrmCheckUpdates"]

{"sheet":"TEHSHEET","index":12,"n_rows":85,"n_cols":13,"rows_kept":85,"cut":false,"hidden":true,"merged":[]}
["REGION",null,"year_list","logical","Месяц\n(MONTH)","Квартал\n(QUARTER)","Месяц\n(kind_of_publication)","НДС\n/kind_of_NDS/","Номер СЦХВ(СЦВО)\n/SKI_number/","Единица измерения объема оказываемых услуг ГВС\n/kind_of_unit_GVS/",null,"версия шаблона\n (DocProp_Version)","6.1"]
["Алтайский край",null,2013,"да","январь","I квартал","На официальном сайте организации","общий","1","тыс.куб.м/сутки",null,"код шаблона\n(DocProp_TemplateCode)","JKH.OPEN.INFO.QUARTER.HVS"]
["Амурская область",null,2014,"нет","февраль","II квартал","На сайте регулирующего органа","общий с учетом освобождения от уплаты НДС","2","Гкал/час",null,"сфера\n(TSphere)","ХВС"]
["Архангельская область",null,2015,null,"март","III квартал",null,"специальный (упрощенная система налогообложения, система налогообложения для сельскохозяйственных товаропроизводителей)","3","куб.м/час",null,"сфера(латиница)\n(TSphere_trans)","HVS"]
["Астраханская область",null,2016,null,"апрель","IV квартал",null,null,"4",null,null,"сфера расширено\n(TSphere_full)","холодного водоснабжения"]
["Белгородская область",null,2017,null,"май",null,null,null,"5"]
["Брянская область",null,null,null,"июнь",null,null,null,"6"]
["Владимирская область",null,null,null,"июль",null,null,null,"7"]
["Волгоградская область",null,null,null,"август",null,null,null,"8"]
["Вологодская область",null,null,null,"сентябрь",null,null,null,"9"]
["Воронежская область",null,null,null,"октябрь",null,null,null,"10"]
["г.Байконур",null,null,null,"ноябрь",null,null,null,"11"]
["г. Москва",null,null,null,"декабрь",null,null,null,"12"]
["г.Санкт-Петербург",null,null,null,null,null,null,null,"13"]
["Еврейская автономная область",null,null,null,null,null,null,null,"14"]
["Забайкальский край",null,null,null,null,null,null,null,"15"]
["Ивановская область",null,null,null,null,null,null,null,"16"]
["Иркутская область",null,null,null,null,null,null,null,"17"]
["Кабардино-Балкарская республика",null,null,null,null,null,null,null,"18"]
["Калининградская область",null,null,null,null,null,null,null,"19"]
["Калужская область",null,null,null,null,null,null,null,"20"]
["Камчатский край"]
["Карачаево-Черкесская республика"]
["Кемеровская область"]
["Кировская область"]
["Костромская область"]
["Краснодарский край"]
["Красноярский край"]
["Курганская область"]
["Курская область"]
["Ленинградская область"]
["Липецкая область"]
["Магаданская область"]
["Московская область"]
["Мурманская область"]
["Ненецкий автономный округ"]
["Нижегородская область"]
["Новгородская область"]
["Новосибирская область"]
["Омская область"]
["Оренбургская область"]
["Орловская область"]
["Пензенская область"]
["Пермский край"]
["Приморский край"]
["Псковская область"]
["Республика Адыгея"]
["Республика Алтай"]
["Республика Башкортостан"]
["Республика Бурятия"]
["Республика Дагестан"]
["Республика Ингушетия"]
["Республика Калмыкия"]
["Республика Карелия"]
["Республика Коми"]
["Республика Марий Эл"]
["Республика Мордовия"]
["Республика Саха (Якутия)"]
["Республика Северная Осетия-Алания"]
["Республика Татарстан"]
["Республика Тыва"]
["Республика Хакасия"]
["Ростовская область"]
["Рязанская область"]
["Самарская область"]
["Саратовская область"]
["Сахалинская область"]
["Свердловская область"]
["Смоленская область"]
["Ставропольский край"]
["Тамбовская область"]
["Тверская область"]
["Томская область"]
["Тульская область"]
["Тюменская область"]
["Удмуртская республика"]
["Ульяновская область"]
["Хабаровский край"]
["Ханты-Мансийский автономный округ"]
["Челябинская область"]
["Чеченская республика"]
["Чувашская республика"]
["Чукотский автономный округ"]
["Ямало-Ненецкий автономный округ"]
["Ярославская область"]

{"sheet":"et_union_hor","index":13,"n_rows":35,"n_cols":19,"rows_kept":35,"cut":false,"hidden":true,"merged":[[16,0,17,0],[3,4,5,4],[3,3,5,3],[23,4,23,5],[3,6,4,6],[3,7,4,7],[4,11,4,12],[31,3,34,3],[31,4,34,4],[31,6,33,6],[31,7,33,7],[31,8,33,8],[31,9,33,9],[31,11,32,11],[3,8,4,8],[3,9,4,9],[31,12,32,12],[31,19,32,19],[31,13,32,13],[31,14,32,14],[31,15,32,15],[16,4,16,7]]}
[]
["et_List01_1","et_List01_2","et_List01_3"]
[]
[null,null,null,1,null,null,1,null,null,null,"1"]
[null,null,null,null,null,null,null,null,null,null,null,"Добавить централизованную систему"]
[null,null,null,null,null,null,null,"Добавить МО"]
[]
[]
["et_Comm"]
[]
[]
[]
[]
["et_List03"]
[]
[]
[null,null,null,{"$f":"A17","v":0}]
[null,null,null,{"$f":"A17&\".1\"","v":".1"},"Сайт организации в сети Интернет"]
[]
[]
[]
["et_List02_1"]
[]
[]
[]
["et_List02_2"]
[]
[]
[]
["et_List04_1","et_List04_2","et_List04_3"]
[]
[null,null,null,1,null,null,1,null,null,null,null,"1",null,null,null,null,null,"1"]
[null,null,null,null,null,null,null,null,null,null,null,null,null,null,null,null,null,null,"Добавить причину"]
[null,null,null,null,null,null,null,null,null,null,null,null,"Добавить централизованную систему"]
[null,null,null,null,null,null,null,"Добавить МО"]

{"sheet":"et_union_vert","index":14,"n_rows":0,"n_cols":0,"rows_kept":0,"cut":false,"hidden":true,"merged":[]}

{"sheet":"modInfo","index":15,"n_rows":11,"n_cols":4,"rows_kept":11,"cut":false,"hidden":true,"merged":[]}
[null,"Титульный"]
[null,"Для выбора того или иного источника публикации выполните двойной щелчок по синей ячейке напротив соответствующего источника.\nВНИМАНИЕ! Если Вы снимаете галочку с пункта, то будут скрыты и очищены соответствующие строки на листе \"Ссылки на публикации\"!\n\nОпубликование перечисленных в шаблоне показателей на сайте организации в сети Интернет и в печатных изданиях не обязательно, если  данный шаблон предоставлен по системе ЕИАС (региональный сегмент)."]
[null,"Обязательное опубликование на официальном сайте органа исполнительной власти субъекта Российской Федерации в области государственного регулирования тарифов (на официальном сайте органа местного самоуправления поселения или городского округа в случае передачи законом субъекта Российской Федерации полномочий по утверждению тарифов в сфере водоснабжения и водоотведения органам местного самоуправления) предусмотрено пунктом 3 (а) постановления Правительства №6 от 17.01.2013"]
[null,"Задайте период регулирования, выбрав квартал и год из соответствующих списков"]
[null,"Шаблон заполняется раздельно по каждому виду тарифа"]
[null,{"$f":"\"Укажите произвольный номер идентификатора тарифа для централизованных систем \"&TSphere_full&\", которые включены в шаблон. В каждом последующем шаблоне за один отчетный период следует указывать различные идентификаторы тарифа\"","v":"Укажите произвольный номер идентификатора тарифа для централизованных систем холодного водоснабжения, которые включены в шаблон. В каждом последующем шаблоне за один отчетный период следует указывать различные идентификаторы тарифа"}]
[null,"Кратко охарактеризуйте тариф, в отношении которого заполняете шаблон",null,"=ЕСЛИ(region_name=\"Ханты-Мансийский автономный округ\";\"Принадлежность к соответствующей централизованной системе \"&TSphere_full;\"Кратко охарактеризуйте тариф, в отношении которого заполняете шаблон\")"]
[null,"Ссылки на публикации"]
[null,"Вводите адрес сайта, не нарушая цвет ячейки /если копируете гиперссылку из браузера, то выполните двойной щелчок по ячейке и только после этого можете вставить скопированный элемент/"]
[null,"Список ЦСХВС"]
[null,"Централизованная система холодного водоснабжения - комплекс технологически связанных между собой инженерных сооружений, предназначенных для водоподготовки, транспортировки и подачи питьевой и (или) технической воды абонентам (Федеральный закон от 07.12.2011 N 416-ФЗ \"О водоснабжении и водоотведении\", ст.2, п. 29)"]

{"sheet":"modReestr","index":16,"n_rows":0,"n_cols":0,"rows_kept":0,"cut":false,"hidden":true,"merged":[]}

{"sheet":"modfrmReestr","index":17,"n_rows":0,"n_cols":0,"rows_kept":0,"cut":false,"hidden":true,"merged":[]}

{"sheet":"modUpdTemplMain","index":18,"n_rows":0,"n_cols":0,"rows_kept":0,"cut":false,"hidden":true,"merged":[]}

{"sheet":"REESTR_ORG","index":19,"n_rows":517,"n_cols":12,"rows_kept":517,"cut":false,"hidden":true,"merged":[]}
["№","NSRF","MR_NAME","OKTMO_MR_NAME","MO_NAME","OKTMO_NAME","RST_ORG_ID","ORG_NAME","INN_NAME","KPP_NAME","VDET_NAME"]
[1,"Удмуртская республика","Алнашский муниципальный район","94602000","Алнашский муниципальный район","94602000","26490245","БПОУ УР \"Асановский аграрно-технический техникум\"","1801000501","180101001","Оказание услуг в сфере водоснабжения","VS"]
[2,"Удмуртская республика","Алнашский муниципальный район","94602000","Алнашский муниципальный район","94602000","26490245","БПОУ УР \"Асановский аграрно-технический техникум\"","1801000501","180101001","Транспортировка воды","VS"]
[3,"Удмуртская республика","Алнашский муниципальный район","94602000","Алнашский муниципальный район","94602000","28151200","ИП Конькин П.А.","183509843059","отсутствует","Оказание услуг в сфере водоснабжения","VS"]
[4,"Удмуртская республика","Алнашский муниципальный район","94602000","Алнашский муниципальный район","94602000","28151200","ИП Конькин П.А.","183509843059","отсутствует","Транспортировка воды","VS"]
[5,"Удмуртская республика","Алнашский муниципальный район","94602000","Алнашский муниципальный район","94602000","26628863","ИП Орлов П.И.","180100274680","отсутствует","Оказание услуг в сфере водоснабжения","VS"]
[6,"Удмуртская республика","Алнашский муниципальный район","94602000","Алнашский муниципальный район","94602000","26628863","ИП Орлов П.И.","180100274680","отсутствует","Транспортировка воды","VS"]
[7,"Удмуртская республика","Алнашский муниципальный район","94602000","Алнашский муниципальный район","94602000","27731749","ООО \"Варзи-Ятчи\"","1839000067","183901001","Оказание услуг в сфере водоснабжения","VS"]
[8,"Удмуртская республика","Алнашский муниципальный район","94602000","Алнашский муниципальный район","94602000","27731749","ООО \"Варзи-Ятчи\"","1839000067","183901001","Транспортировка воды","VS"]
[9,"Удмуртская республика","Алнашский муниципальный район","94602000","Алнашский муниципальный район","94602000","27395788","ООО \"Писеевское\"","1839002392","183901001","Оказание услуг в сфере водоснабжения","VS"]
[10,"Удмуртская республика","Алнашский муниципальный район","94602000","Алнашский муниципальный район","94602000","27395788","ООО \"Писеевское\"","1839002392","183901001","Транспортировка воды","VS"]
[11,"Удмуртская республика","Алнашский муниципальный район","94602000","Алнашский муниципальный район","94602000","28870347","ООО \"Решительный\"","1801008324","183901001","Оказание услуг в сфере водоснабжения","VS"]
[12,"Удмуртская республика","Алнашский муниципальный район","94602000","Алнашский муниципальный район","94602000","28870347","ООО \"Решительный\"","1801008324","183901001","Транспортировка воды","VS"]
[13,"Удмуртская республика","Алнашский муниципальный район","94602000","Алнашский муниципальный район","94602000","26354492","ООО \"Санаторий Варзи-Ятчи\"","1801000290","180101001","Оказание услуг в сфере водоснабжения","VS"]
[14,"Удмуртская республика","Алнашский муниципальный район","94602000","Алнашский муниципальный район","94602000","26354492","ООО \"Санаторий Варзи-Ятчи\"","1801000290","180101001","Транспортировка воды","VS"]
[15,"Удмуртская республика","Алнашский муниципальный район","94602000","Алнашский муниципальный район","94602000","26628637","ООО \"Тулкым\"","1839003477","183901001","Оказание услуг в сфере водоснабжения","VS"]
[16,"Удмуртская республика","Алнашский муниципальный район","94602000","Алнашский муниципальный район","94602000","26628637","ООО \"Тулкым\"","1839003477","183901001","Транспортировка воды","VS"]
[17,"Удмуртская республика","Алнашский муниципальный район","94602000","Алнашский муниципальный район","94602000","26496971","СХК \"Колхоз \"Молодая гвардия\"","1801005203","180101001","Оказание услуг в сфере водоснабжения","VS"]
[18,"Удмуртская республика","Алнашский муниципальный район","94602000","Алнашский муниципальный район","94602000","26496971","СХК \"Колхоз \"Молодая гвардия\"","1801005203","180101001","Транспортировка воды","VS"]
[19,"Удмуртская республика","Балезинский муниципальный район","94604000","Балезинский муниципальный район","94604000","26560525","АО \"ГУ ЖКХ\"","5116000922","511601001","Оказание услуг в сфере водоснабжения","VS"]
[20,"Удмуртская республика","Балезинский муниципальный район","94604000","Балезинский муниципальный район","94604000","30407160","АО \"ГУ ЖКХ\"","5116000922","183845001","Оказание услуг в сфере водоснабжения","VS"]
[21,"Удмуртская республика","Балезинский муниципальный район","94604000","Балезинский муниципальный район","94604000","26808802","Горьковская дирекция по тепловодоснабжению структурное подразделение Центральной дирекции по тепловодоснабжению - филиала ОАО \"РЖД\"","7708503727","525745041","Оказание услуг в сфере водоснабжения","VS"]
[22,"Удмуртская республика","Балезинский муниципальный район","94604000","Балезинский муниципальный район","94604000","26497002","ЗАО \"Развитие\"","1802004280","180201001","Оказание услуг в сфере водоснабжения","VS"]
[23,"Удмуртская республика","Балезинский муниципальный район","94604000","Балезинский муниципальный район","94604000","26497002","ЗАО \"Развитие\"","1802004280","180201001","Транспортировка воды","VS"]
[24,"Удмуртская республика","Балезинский муниципальный район","94604000","Балезинский муниципальный район","94604000","26354495","МУП \"Андрейшурское ЖКХ\" МО \"Балезинский район\"","1802003008","180201001","Оказание услуг в сфере водоснабжения","VS"]
[25,"Удмуртская республика","Балезинский муниципальный район","94604000","Балезинский муниципальный район","94604000","28445652","МУП \"Энергия\"","1837011306","183701001","Оказание услуг в сфере водоснабжения","VS"]
[26,"Удмуртская республика","Балезинский муниципальный район","94604000","Балезинский муниципальный район","94604000","28445652","МУП \"Энергия\"","1837011306","183701001","Транспортировка воды","VS"]
[27,"Удмуртская республика","Балезинский муниципальный район","94604000","Балезинский муниципальный район","94604000","26497012","ООО \"Восход\"","1802000494","180201001","Оказание услуг в сфере водоснабжения","VS"]
[28,"Удмуртская республика","Балезинский муниципальный район","94604000","Балезинский муниципальный район","94604000","26497012","ООО \"Восход\"","1802000494","180201001","Транспортировка воды","VS"]
[29,"Удмуртская республика","Балезинский муниципальный район","94604000","Балезинский муниципальный район","94604000","28002601","ООО \"КомусСтрой\"","1837004154","183701001","Оказание услуг в сфере водоснабжения","VS"]
[30,"Удмуртская республика","Балезинский муниципальный район","94604000","Балезинский муниципальный район","94604000","28002601","ООО \"КомусСтрой\"","1837004154","183701001","Транспортировка воды","VS"]
[31,"Удмуртская республика","Балезинский муниципальный район","94604000","Балезинский муниципальный район","94604000","26497006","ООО \"Прогресс\"","1802004435","180201001","Оказание услуг в сфере водоснабжения","VS"]
[32,"Удмуртская республика","Балезинский муниципальный район","94604000","Балезинский муниципальный район","94604000","26497006","ООО \"Прогресс\"","1802004435","180201001","Транспортировка воды","VS"]
[33,"Удмуртская республика","Балезинский муниципальный район","94604000","Балезинский муниципальный район","94604000","30352068","ООО \"Спиртзавод \"Балезинский\"","1837000590","183701001","Оказание услуг в сфере водоснабжения","VS"]
[34,"Удмуртская республика","Балезинский муниципальный район","94604000","Балезинский муниципальный район","94604000","30352068","ООО \"Спиртзавод \"Балезинский\"","1837000590","183701001","Транспортировка воды","VS"]
[35,"Удмуртская республика","Балезинский муниципальный район","94604000","Балезинский муниципальный район","94604000","26619127","ООО \"УК ЖКХ \"Территория\"","1837007042","183701001","Оказание услуг в сфере водоснабжения","VS"]
[36,"Удмуртская республика","Балезинский муниципальный район","94604000","Балезинский муниципальный район","94604000","26619127","ООО \"УК ЖКХ \"Территория\"","1837007042","183701001","Транспортировка воды","VS"]
[37,"Удмуртская республика","Балезинский муниципальный район","94604000","Балезинский муниципальный район","94604000","26496987","СПК \"Колхоз имени Чапаева\"","1802001843","180200184","Оказание услуг в сфере водоснабжения","VS"]
[38,"Удмуртская республика","Балезинский муниципальный район","94604000","Балезинский муниципальный район","94604000","26496987","СПК \"Колхоз имени Чапаева\"","1802001843","180200184","Транспортировка воды","VS"]
[39,"Удмуртская республика","Балезинский муниципальный район","94604000","Балезинский муниципальный район","94604000","26354494","СПК \"Сергинский\"","1802001219","180201001","Оказание услуг в сфере водоснабжения","VS"]
[40,"Удмуртская республика","Балезинский муниципальный район","94604000","Балезинский муниципальный район","94604000","26354494","СПК \"Сергинский\"","1802001219","180201001","Транспортировка воды","VS"]
[41,"Удмуртская республика","Балезинский муниципальный район","94604000","Балезинский муниципальный район","94604000","30903763","ФГБУ \"ЦЖКУ\" МИНОБОРОНЫ РОССИИ","7729314745","770101001","Транспортировка воды","VS"]
[42,"Удмуртская республика","Балезинский муниципальный район","94604000","Балезинский муниципальный район","94604000","27714089","Филиал \"Пермский\" ОАО \"Славянка\"","7702707386","183843002","Оказание услуг в сфере водоснабжения","VS"]
[43,"Удмуртская республика","Балезинский муниципальный район","94604000","Балезинское","94604475","30352068","ООО \"Спиртзавод \"Балезинский\"","1837000590","183701001","Оказание услуг в сфере водоснабжения","VS"]
[44,"Удмуртская республика","Балезинский муниципальный район","94604000","Воегуртское","94604420","30407160","АО \"ГУ ЖКХ\"","5116000922","183845001","Оказание услуг в сфере водоснабжения","VS"]
[45,"Удмуртская республика","Балезинский муниципальный район","94604000","Воегуртское","94604420","30903763","ФГБУ \"ЦЖКУ\" МИНОБОРОНЫ РОССИИ","7729314745","770101001","Оказание услуг в сфере водоснабжения","VS"]
[46,"Удмуртская республика","Балезинский муниципальный район","94604000","Воегуртское","94604420","30914574","ФГБУ \"ЦЖКУ\" МИНОБОРОНЫ РОССИИ (по ЦВО)","7729314745","667043001","Оказание услуг в сфере водоснабжения","VS"]
[47,"Удмуртская республика","Вавожский муниципальный район","94606000","Вавожский муниципальный район","94606000","26629787","Колхоз (СХПК) имени Мичурина","1803001067","180301001","Оказание услуг в сфере водоснабжения","VS"]
[48,"Удмуртская республика","Вавожский муниципальный район","94606000","Вавожский муниципальный район","94606000","26629787","Колхоз (СХПК) имени Мичурина","1803001067","180301001","Транспортировка воды","VS"]
[49,"Удмуртская республика","Вавожский муниципальный район","94606000","Вавожский муниципальный район","94606000","28277053","ООО \"Альянс-Строй\"","1821011371","182101001","Оказание услуг в сфере водоснабжения","VS"]
[50,"Удмуртская республика","Вавожский муниципальный район","94606000","Вавожский муниципальный район","94606000","28277053","ООО \"Альянс-Строй\"","1821011371","182101001","Транспортировка воды","VS"]
[51,"Удмуртская республика","Вавожский муниципальный район","94606000","Вавожский муниципальный район","94606000","26466279","ООО \"Вавожское ЖКХ\"","1803000384","180301001","Оказание услуг в сфере водоснабжения","VS"]
[52,"Удмуртская республика","Вавожский муниципальный район","94606000","Вавожский муниципальный район","94606000","26466279","ООО \"Вавожское ЖКХ\"","1803000384","180301001","Транспортировка воды","VS"]
[53,"Удмуртская республика","Вавожский муниципальный район","94606000","Вавожский муниципальный район","94606000","26628390","СХПК \"Горд Октябрь\"","1803000634","180301001","Оказание услуг в сфере водоснабжения","VS"]
[54,"Удмуртская республика","Вавожский муниципальный район","94606000","Вавожский муниципальный район","94606000","26628390","СХПК \"Горд Октябрь\"","1803000634","180301001","Транспортировка воды","VS"]
[55,"Удмуртская республика","Вавожский муниципальный район","94606000","Вавожский муниципальный район","94606000","26354497","СХПК \"Колос\"","1803002222","182101001","Оказание услуг в сфере водоснабжения","VS"]
[56,"Удмуртская республика","Вавожский муниципальный район","94606000","Вавожский муниципальный район","94606000","26354497","СХПК \"Колос\"","1803002222","182101001","Транспортировка воды","VS"]
[57,"Удмуртская республика","Вавожский муниципальный район","94606000","Вавожский муниципальный район","94606000","27356916","СХПК-колхоз \"Луч\"","1803001050","183001001","Оказание услуг в сфере водоснабжения","VS"]
[58,"Удмуртская республика","Вавожский муниципальный район","94606000","Вавожский муниципальный район","94606000","27356916","СХПК-колхоз \"Луч\"","1803001050","183001001","Транспортировка воды","VS"]
[59,"Удмуртская республика","Вавожский муниципальный район","94606000","Какможское","94606477","27869709","Индивидуальный предприниматель Божко Роман Сергеевич","182101606500","отсутствует","Оказание услуг в сфере водоснабжения","VS"]
[60,"Удмуртская республика","Воткинский муниципальный район","94608000","Болгуринское","94608405","26354571","АО \"Воткинский завод\"","1828020110","183650001","Оказание услуг в сфере водоснабжения","VS"]
[61,"Удмуртская республика","Воткинский муниципальный район","94608000","Большикиварское","94608410","26354571","АО \"Воткинский завод\"","1828020110","183650001","Оказание услуг в сфере водоснабжения","VS"]
[62,"Удмуртская республика","Воткинский муниципальный район","94608000","Большикиварское","94608410","26466267","ООО \"ЖКХ Энергия\"","1804009319","180401001","Оказание услуг в сфере водоснабжения","VS"]
[63,"Удмуртская республика","Воткинский муниципальный район","94608000","Большикиварское","94608410","26466267","ООО \"ЖКХ Энергия\"","1804009319","180401001","Транспортировка воды","VS"]
[64,"Удмуртская республика","Воткинский муниципальный район","94608000","Верхнеталицкое","94608413","26354571","АО \"Воткинский завод\"","1828020110","183650001","Оказание услуг в сфере водоснабжения","VS"]
[65,"Удмуртская республика","Воткинский муниципальный район","94608000","Воткинский муниципальный район","94608000","26354571","АО \"Воткинский завод\"","1828020110","183650001","Оказание услуг в сфере водоснабжения","VS"]
[66,"Удмуртская республика","Воткинский муниципальный район","94608000","Воткинский муниципальный район","94608000","26354501","АПОУ УР \"ЦПВ\"","1804004712","182801001","Оказание услуг в сфере водоснабжения","VS"]
[67,"Удмуртская республика","Воткинский муниципальный район","94608000","Воткинский муниципальный район","94608000","30854211","БПОУ УР \"Воткинский промышленный техникум\"","1804001341","182801001","Оказание услуг в сфере водоснабжения","VS"]
[68,"Удмуртская республика","Воткинский муниципальный район","94608000","Воткинский муниципальный район","94608000","28144558","ОАО \"Камский завод ЖБИ\"","1828023739","182801001","Оказание услуг в сфере водоснабжения","VS"]
[69,"Удмуртская республика","Воткинский муниципальный район","94608000","Воткинский муниципальный район","94608000","28144558","ОАО \"Камский завод ЖБИ\"","1828023739","182801001","Транспортировка воды","VS"]
[70,"Удмуртская республика","Воткинский муниципальный район","94608000","Воткинский муниципальный район","94608000","26466267","ООО \"ЖКХ Энергия\"","1804009319","180401001","Оказание услуг в сфере водоснабжения","VS"]
[71,"Удмуртская республика","Воткинский муниципальный район","94608000","Воткинский муниципальный район","94608000","26466267","ООО \"ЖКХ Энергия\"","1804009319","180401001","Транспортировка воды","VS"]
[72,"Удмуртская республика","Воткинский муниципальный район","94608000","Воткинский муниципальный район","94608000","26466233","ООО \"Коммунальные сети\"","1804009069","180401001","Оказание услуг в сфере водоснабжения","VS"]
[73,"Удмуртская республика","Воткинский муниципальный район","94608000","Воткинский муниципальный район","94608000","26466233","ООО \"Коммунальные сети\"","1804009069","180401001","Транспортировка воды","VS"]
[74,"Удмуртская республика","Воткинский муниципальный район","94608000","Воткинский муниципальный район","94608000","26466175","ООО \"Прометей\"","1804009380","180401001","Оказание услуг в сфере водоснабжения","VS"]
[75,"Удмуртская республика","Воткинский муниципальный район","94608000","Воткинский муниципальный район","94608000","26466175","ООО \"Прометей\"","1804009380","180401001","Транспортировка воды","VS"]
[76,"Удмуртская республика","Воткинский муниципальный район","94608000","Воткинский муниципальный район","94608000","26466189","ООО \"РС-Сервис\"","1804009118","180401001","Оказание услуг в сфере водоснабжения","VS"]
[77,"Удмуртская республика","Воткинский муниципальный район","94608000","Воткинский муниципальный район","94608000","26466189","ООО \"РС-Сервис\"","1804009118","180401001","Транспортировка воды","VS"]
[78,"Удмуртская республика","Воткинский муниципальный район","94608000","Воткинский муниципальный район","94608000","26466257","ООО \"Феникс\"","1804009372","180401001","Оказание услуг в сфере водоснабжения","VS"]
[79,"Удмуртская республика","Воткинский муниципальный район","94608000","Воткинский муниципальный район","94608000","26466257","ООО \"Феникс\"","1804009372","180401001","Транспортировка воды","VS"]
[80,"Удмуртская республика","Воткинский муниципальный район","94608000","Гавриловское","94608420","26354571","АО \"Воткинский завод\"","1828020110","183650001","Оказание услуг в сфере водоснабжения","VS"]
[81,"Удмуртская республика","Воткинский муниципальный район","94608000","Июльское","94608425","26354571","АО \"Воткинский завод\"","1828020110","183650001","Оказание услуг в сфере водоснабжения","VS"]
[82,"Удмуртская республика","Воткинский муниципальный район","94608000","Июльское","94608425","26466267","ООО \"ЖКХ Энергия\"","1804009319","180401001","Оказание услуг в сфере водоснабжения","VS"]
[83,"Удмуртская республика","Воткинский муниципальный район","94608000","Июльское","94608425","26466267","ООО \"ЖКХ Энергия\"","1804009319","180401001","Транспортировка воды","VS"]
[84,"Удмуртская республика","Воткинский муниципальный район","94608000","Камское","94608430","26354571","АО \"Воткинский завод\"","1828020110","183650001","Оказание услуг в сфере водоснабжения","VS"]
[85,"Удмуртская республика","Воткинский муниципальный район","94608000","Кварсинское","94608435","26354571","АО \"Воткинский завод\"","1828020110","183650001","Оказание услуг в сфере водоснабжения","VS"]
[86,"Удмуртская республика","Воткинский муниципальный район","94608000","Кварсинское","94608435","26466267","ООО \"ЖКХ Энергия\"","1804009319","180401001","Оказание услуг в сфере водоснабжения","VS"]
[87,"Удмуртская республика","Воткинский муниципальный район","94608000","Кварсинское","94608435","26466267","ООО \"ЖКХ Энергия\"","1804009319","180401001","Транспортировка воды","VS"]
[88,"Удмуртская республика","Воткинский муниципальный район","94608000","Кукуевское","94608437","26354571","АО \"Воткинский завод\"","1828020110","183650001","Оказание услуг в сфере водоснабжения","VS"]
[89,"Удмуртская республика","Воткинский муниципальный район","94608000","Кукуевское","94608437","26466267","ООО \"ЖКХ Энергия\"","1804009319","180401001","Оказание услуг в сфере водоснабжения","VS"]
[90,"Удмуртская республика","Воткинский муниципальный район","94608000","Кукуевское","94608437","26466267","ООО \"ЖКХ Энергия\"","1804009319","180401001","Транспортировка воды","VS"]
[91,"Удмуртская республика","Воткинский муниципальный район","94608000","Нововолковское","94608455","26354571","АО \"Воткинский завод\"","1828020110","183650001","Оказание услуг в сфере водоснабжения","VS"]
[92,"Удмуртская республика","Воткинский муниципальный район","94608000","Нововолковское","94608455","26466267","ООО \"ЖКХ Энергия\"","1804009319","180401001","Оказание услуг в сфере водоснабжения","VS"]
[93,"Удмуртская республика","Воткинский муниципальный район","94608000","Нововолковское","94608455","26466267","ООО \"ЖКХ Энергия\"","1804009319","180401001","Транспортировка воды","VS"]
[94,"Удмуртская республика","Воткинский муниципальный район","94608000","Первомайское","94608440","26354571","АО \"Воткинский завод\"","1828020110","183650001","Оказание услуг в сфере водоснабжения","VS"]
[95,"Удмуртская республика","Воткинский муниципальный район","94608000","Перевозинское","94608445","26354571","АО \"Воткинский завод\"","1828020110","183650001","Оказание услуг в сфере водоснабжения","VS"]
[96,"Удмуртская республика","Воткинский муниципальный район","94608000","Перевозинское","94608445","26466267","ООО \"ЖКХ Энергия\"","1804009319","180401001","Оказание услуг в сфере водоснабжения","VS"]
[97,"Удмуртская республика","Воткинский муниципальный район","94608000","Перевозинское","94608445","26466267","ООО \"ЖКХ Энергия\"","1804009319","180401001","Транспортировка воды","VS"]
[98,"Удмуртская республика","Воткинский муниципальный район","94608000","Светлянское","94608450","26354571","АО \"Воткинский завод\"","1828020110","183650001","Оказание услуг в сфере водоснабжения","VS"]
[99,"Удмуртская республика","Глазовский муниципальный район","94610000","Глазовский муниципальный район","94610000","30812946","МУП \"Водоканал г. Глазова\"","1829004129","183701001","Оказание услуг в сфере водоснабжения","VS"]
[100,"Удмуртская республика","Глазовский муниципальный район","94610000","Глазовский муниципальный район","94610000","30812946","МУП \"Водоканал г. Глазова\"","1829004129","183701001","Транспортировка воды","VS"]
[101,"Удмуртская республика","Глазовский муниципальный район","94610000","Глазовский муниципальный район","94610000","30871721","ООО \"Аквафонд\"","1837014642","183701001","Оказание услуг в сфере водоснабжения","VS"]
[102,"Удмуртская республика","Глазовский муниципальный район","94610000","Глазовский муниципальный район","94610000","30871721","ООО \"Аквафонд\"","1837014642","183701001","Транспортировка воды","VS"]
[103,"Удмуртская республика","Глазовский муниципальный район","94610000","Глазовский муниципальный район","94610000","29648823","ООО \"ВФ-Сервис\"","1837012081","183701001","Оказание услуг в сфере водоснабжения","VS"]
[104,"Удмуртская республика","Глазовский муниципальный район","94610000","Глазовский муниципальный район","94610000","28466654","ООО \"Вк-Сервис\"","1837012050","183701001","Транспортировка воды","VS"]
[105,"Удмуртская республика","Глазовский муниципальный район","94610000","Глазовский муниципальный район","94610000","28036958","ООО \"Водосток\"","1837009988","183701001","Оказание услуг в сфере водоснабжения","VS"]
[106,"Удмуртская республика","Глазовский муниципальный район","94610000","Глазовский муниципальный район","94610000","28134930","ООО \"Жилищно-коммунальное хозяйство Глазовский район\"","1837010662","183701001","Оказание услуг в сфере водоснабжения","VS"]
[107,"Удмуртская республика","Глазовский муниципальный район","94610000","Глазовский муниципальный район","94610000","28134930","ООО \"Жилищно-коммунальное хозяйство Глазовский район\"","1837010662","183701001","Транспортировка воды","VS"]
[108,"Удмуртская республика","Глазовский муниципальный район","94610000","Глазовский муниципальный район","94610000","26354507","ООО \"Жилкомсервис\"","1805001111","180501001","Оказание услуг в сфере водоснабжения","VS"]
[109,"Удмуртская республика","Глазовский муниципальный район","94610000","Глазовский муниципальный район","94610000","28134922","ООО \"Районные водопроводные сети\"","1837010711","183701001","Оказание услуг в сфере водоснабжения","VS"]
[110,"Удмуртская республика","Глазовский муниципальный район","94610000","Глазовский муниципальный район","94610000","26466219","ООО \"СТВ-Сервис\"","1805182274","180501001","Оказание услуг в сфере водоснабжения","VS"]
[111,"Удмуртская республика","Глазовский муниципальный район","94610000","Глазовский муниципальный район","94610000","26466219","ООО \"СТВ-Сервис\"","1805182274","180501001","Транспортировка воды","VS"]
[112,"Удмуртская республика","Глазовский муниципальный район","94610000","Глазовский муниципальный район","94610000","26493534","ООО \"Свет\"","1837004796","183701001","Оказание услуг в сфере водоснабжения","VS"]
[113,"Удмуртская республика","Глазовский муниципальный район","94610000","Глазовский муниципальный район","94610000","26493534","ООО \"Свет\"","1837004796","183701001","Транспортировка воды","VS"]
[114,"Удмуртская республика","Глазовский муниципальный район","94610000","Глазовский муниципальный район","94610000","26466283","ООО \"Тепловодоканал\" (г. Глазов)","1837004370","183701001","Оказание услуг в сфере водоснабжения","VS"]
[115,"Удмуртская республика","Глазовский муниципальный район","94610000","Глазовский муниципальный район","94610000","26493536","ООО \"Труд\"","1805089211","180501001","Оказание услуг в сфере водоснабжения","VS"]
[116,"Удмуртская республика","Глазовский муниципальный район","94610000","Глазовский муниципальный район","94610000","26493536","ООО \"Труд\"","1805089211","180501001","Транспортировка воды","VS"]
[117,"Удмуртская республика","Глазовский муниципальный район","94610000","Глазовский муниципальный район","94610000","26497133","СПК \"Коммунар\"","1805000069","180501001","Оказание услуг в сфере водоснабжения","VS"]
[118,"Удмуртская республика","Глазовский муниципальный район","94610000","Глазовский муниципальный район","94610000","26497133","СПК \"Коммунар\"","1805000069","180501001","Транспортировка воды","VS"]
[119,"Удмуртская республика","Глазовский муниципальный район","94610000","Глазовский муниципальный район","94610000","26497129","СПК \"Коротай\"","1805009368","180501001","Оказание услуг в сфере водоснабжения","VS"]
[120,"Удмуртская республика","Глазовский муниципальный район","94610000","Глазовский муниципальный район","94610000","26497129","СПК \"Коротай\"","1805009368","180501001","Транспортировка воды","VS"]
[121,"Удмуртская республика","Глазовский муниципальный район","94610000","Глазовский муниципальный район","94610000","28464250","СПК \"Луч\"","1805005067","180501001","Оказание услуг в сфере водоснабжения","VS"]
[122,"Удмуртская республика","Глазовский муниципальный район","94610000","Глазовский муниципальный район","94610000","28464250","СПК \"Луч\"","1805005067","180501001","Транспортировка воды","VS"]
[123,"Удмуртская республика","Глазовский муниципальный район","94610000","Глазовский муниципальный район","94610000","26466173","СПК \"Парзинский\"","1805005229","180501001","Оказание услуг в сфере водоснабжения","VS"]
[124,"Удмуртская республика","Глазовский муниципальный район","94610000","Глазовский муниципальный район","94610000","26466173","СПК \"Парзинский\"","1805005229","180501001","Транспортировка воды","VS"]
[125,"Удмуртская республика","Город Воткинск","94710000","Город Воткинск","94710000","26354571","АО \"Воткинский завод\"","1828020110","183650001","Оказание услуг в сфере водоснабжения","VS"]
[126,"Удмуртская республика","Город Воткинск","94710000","Город Воткинск","94710000","26354571","АО \"Воткинский завод\"","1828020110","183650001","Транспортировка воды","VS"]
[127,"Удмуртская республика","Город Воткинск","94710000","Город Воткинск","94710000","26560525","АО \"ГУ ЖКХ\"","5116000922","511601001","Оказание услуг в сфере водоснабжения","VS"]
[128,"Удмуртская республика","Город Воткинск","94710000","Город Воткинск","94710000","30407160","АО \"ГУ ЖКХ\"","5116000922","183845001","Транспортировка воды","VS"]
[129,"Удмуртская республика","Город Воткинск","94710000","Город Воткинск","94710000","26466201","МУП \"Водоканал\"","1828000481","182801001","Оказание услуг в сфере водоснабжения","VS"]
[130,"Удмуртская республика","Город Воткинск","94710000","Город Воткинск","94710000","26466201","МУП \"Водоканал\"","1828000481","182801001","Транспортировка воды","VS"]
[131,"Удмуртская республика","Город Воткинск","94710000","Город Воткинск","94710000","26618829","ОАО \"Удмуртнефть\"","1831034040","997150001","Оказание услуг в сфере водоснабжения","VS"]
[132,"Удмуртская республика","Город Воткинск","94710000","Город Воткинск","94710000","26466287","ООО \"Удмуртэнергонефть\"","1834028862","184001001","Оказание услуг в сфере водоснабжения","VS"]
[133,"Удмуртская республика","Город Воткинск","94710000","Город Воткинск","94710000","26466287","ООО \"Удмуртэнергонефть\"","1834028862","184001001","Транспортировка воды","VS"]
[134,"Удмуртская республика","Город Воткинск","94710000","Город Воткинск","94710000","27686640","ФГУП \"ГВСУ № 8\" (Филиал \"УМР № 832\")","1835038790","183502005","Оказание услуг в сфере водоснабжения","VS"]
[135,"Удмуртская республика","Город Воткинск","94710000","Город Воткинск","94710000","27714089","Филиал \"Пермский\" ОАО \"Славянка\"","7702707386","183843002","Оказание услуг в сфере водоснабжения","VS"]
[136,"Удмуртская республика","Город Глазов","94720000","Город Глазов","94720000","26560525","АО \"ГУ ЖКХ\"","5116000922","511601001","Оказание услуг в сфере водоснабжения","VS"]
[137,"Удмуртская республика","Город Глазов","94720000","Город Глазов","94720000","30407160","АО \"ГУ ЖКХ\"","5116000922","183845001","Транспортировка воды","VS"]
[138,"Удмуртская республика","Город Глазов","94720000","Город Глазов","94720000","30848754","АО \"ОТЭК\"","7706757331","183743001","Оказание услуг в сфере водоснабжения","VS"]
[139,"Удмуртская республика","Город Глазов","94720000","Город Глазов","94720000","30848754","АО \"ОТЭК\"","7706757331","183743001","Транспортировка воды","VS"]
[140,"Удмуртская республика","Город Глазов","94720000","Город Глазов","94720000","26466271","МУП \"Водоканал г. Глазова\"","1829004129","182901001","Оказание услуг в сфере водоснабжения","VS"]
[141,"Удмуртская республика","Город Глазов","94720000","Город Глазов","94720000","30812946","МУП \"Водоканал г. Глазова\"","1829004129","183701001","Оказание услуг в сфере водоснабжения","VS"]
[142,"Удмуртская республика","Город Глазов","94720000","Город Глазов","94720000","30812946","МУП \"Водоканал г. Глазова\"","1829004129","183701001","Транспортировка воды","VS"]
[143,"Удмуртская республика","Город Глазов","94720000","Город Глазов","94720000","26354507","ООО \"Жилкомсервис\"","1805001111","180501001","Оказание услуг в сфере водоснабжения","VS"]
[144,"Удмуртская республика","Город Глазов","94720000","Город Глазов","94720000","26829782","ООО \"Удмуртская птицефабрика\"","1837008416","183701001","Оказание услуг в сфере водоснабжения","VS"]
[145,"Удмуртская республика","Город Глазов","94720000","Город Глазов","94720000","27714089","Филиал \"Пермский\" ОАО \"Славянка\"","7702707386","183843002","Оказание услуг в сфере водоснабжения","VS"]
[146,"Удмуртская республика","Город Ижевск","94701000","Город Ижевск","94701000","26560525","АО \"ГУ ЖКХ\"","5116000922","511601001","Оказание услуг в сфере водоснабжения","VS"]
[147,"Удмуртская республика","Город Ижевск","94701000","Город Ижевск","94701000","30407160","АО \"ГУ ЖКХ\"","5116000922","183845001","Транспортировка воды","VS"]
[148,"Удмуртская республика","Город Ижевск","94701000","Город Ижевск","94701000","26449642","АО \"ДП \"Ижевское\"","1831125762","183101001","Оказание услуг в сфере водоснабжения","VS"]
[149,"Удмуртская республика","Город Ижевск","94701000","Город Ижевск","94701000","26493643","АО \"ИЭМЗ \"Купол\"","1831083343","997850001","Оказание услуг в сфере водоснабжения","VS"]
[150,"Удмуртская республика","Город Ижевск","94701000","Город Ижевск","94701000","26354616","АО \"Ижевский завод пластмасс\"","1834100029","184001001","Оказание услуг в сфере водоснабжения","VS"]
[151,"Удмуртская республика","Город Ижевск","94701000","Город Ижевск","94701000","27732477","АО \"Ижметмаш\"","1840005542","184001001","Оказание услуг в сфере водоснабжения","VS"]
[152,"Удмуртская республика","Город Ижевск","94701000","Город Ижевск","94701000","28462225","АО \"Концерн \"Калашников\"","1832090230","183650001","Транспортировка воды","VS"]
[153,"Удмуртская республика","Город Ижевск","94701000","Город Ижевск","94701000","26493659","АО \"Транснефть-Прикамье\" (филиал в Удмуртской Республике)","1645000340","183402001","Оказание услуг в сфере водоснабжения","VS"]
[154,"Удмуртская республика","Город Ижевск","94701000","Город Ижевск","94701000","26851240","АО \"Уральская нефть\"","1826000768","184101001","Оказание услуг в сфере водоснабжения","VS"]
[155,"Удмуртская республика","Город Ижевск","94701000","Город Ижевск","94701000","26354618","АО санаторий \"Металлург\"","1835012287","184101001","Оказание услуг в сфере водоснабжения","VS"]
[156,"Удмуртская республика","Город Ижевск","94701000","Город Ижевск","94701000","28940009","АСУСО УР \"Нагорный психоневрологический интернат\"","1831042435","183101001","Оказание услуг в сфере водоснабжения","VS"]
[157,"Удмуртская республика","Город Ижевск","94701000","Город Ижевск","94701000","28462211","ГУП УР \"Удмуртское автодорожное предприятие\"","1831015625","183201001","Транспортировка воды","VS"]
[158,"Удмуртская республика","Город Ижевск","94701000","Город Ижевск","94701000","26808802","Горьковская дирекция по тепловодоснабжению структурное подразделение Центральной дирекции по тепловодоснабжению - филиала ОАО \"РЖД\"","7708503727","525745041","Оказание услуг в сфере водоснабжения","VS"]
[159,"Удмуртская республика","Город Ижевск","94701000","Город Ижевск","94701000","26615651","ЗАО \"Ижевский опытно-механический завод\"","1832028112","183101001","Оказание услуг в сфере водоснабжения","VS"]
[160,"Удмуртская республика","Город Ижевск","94701000","Город Ижевск","94701000","26493632","ОАО \"Альтаир\"","1833000991","183301001","Оказание услуг в сфере водоснабжения","VS"]
[161,"Удмуртская республика","Город Ижевск","94701000","Город Ижевск","94701000","28037251","ОАО \"Ижсталь\"","1826000655","183201001","Оказание услуг в сфере водоснабжения","VS"]
[162,"Удмуртская республика","Город Ижевск","94701000","Город Ижевск","94701000","28037251","ОАО \"Ижсталь\"","1826000655","183201001","Транспортировка воды","VS"]
[163,"Удмуртская республика","Город Ижевск","94701000","Город Ижевск","94701000","26466169","ОАО \"Удмуртгеология\"","1835011614","184101001","Оказание услуг в сфере водоснабжения","VS"]
[164,"Удмуртская республика","Город Ижевск","94701000","Город Ижевск","94701000","26354600","ОАО \"Удмуртгеофизика\"","1832015554","183201001","Оказание услуг в сфере водоснабжения","VS"]
[165,"Удмуртская республика","Город Ижевск","94701000","Город Ижевск","94701000","26618829","ОАО \"Удмуртнефть\"","1831034040","997150001","Оказание услуг в сфере водоснабжения","VS"]
[166,"Удмуртская республика","Город Ижевск","94701000","Город Ижевск","94701000","28877187","ООО  \"Центральная База Производственного Обслуживания\"","1832039795","183201001","Транспортировка воды","VS"]
[167,"Удмуртская республика","Город Ижевск","94701000","Город Ижевск","94701000","27675692","ООО \" ЛАДА Ижевск\"","1834051678","183650001","Оказание услуг в сфере водоснабжения","VS"]
[168,"Удмуртская республика","Город Ижевск","94701000","Город Ижевск","94701000","28447170","ООО \"Альтаир\"","1840021110","184001001","Транспортировка воды","VS"]
[169,"Удмуртская республика","Город Ижевск","94701000","Город Ижевск","94701000","29648764","ООО \"Геосейс-Групп\"","1832090079","183201001","Оказание услуг в сфере водоснабжения","VS"]
[170,"Удмуртская республика","Город Ижевск","94701000","Город Ижевск","94701000","30832049","ООО \"ДомСтройУрал\"","1831165910","183101001","Транспортировка воды","VS"]
[171,"Удмуртская республика","Город Ижевск","94701000","Город Ижевск","94701000","26354606","ООО \"ИРЗ-Энерго\"","1833027591","184001001","Оказание услуг в сфере водоснабжения","VS"]
[172,"Удмуртская республика","Город Ижевск","94701000","Город Ижевск","94701000","27837682","ООО \"ИжевскЭнергоСервис\"","1832096338","183201001","Оказание услуг в сфере водоснабжения","VS"]
[173,"Удмуртская республика","Город Ижевск","94701000","Город Ижевск","94701000","28153108","ООО \"КомЭнерго\"","1840013624","184001001","Оказание услуг в сфере водоснабжения","VS"]
[174,"Удмуртская республика","Город Ижевск","94701000","Город Ижевск","94701000","28153108","ООО \"КомЭнерго\"","1840013624","184001001","Транспортировка воды","VS"]
[175,"Удмуртская республика","Город Ижевск","94701000","Город Ижевск","94701000","28858899","ООО \"МебельДом\"","1832053895","183201001","Транспортировка воды","VS"]
[176,"Удмуртская республика","Город Ижевск","94701000","Город Ижевск","94701000","26628861","ООО \"Рябовское\"","1821005829","183650001","Оказание услуг в сфере водоснабжения","VS"]
[177,"Удмуртская республика","Город Ижевск","94701000","Город Ижевск","94701000","28059425","ООО \"Система\"","1835084436","183501001","Транспортировка воды","VS"]
[178,"Удмуртская республика","Город Ижевск","94701000","Город Ижевск","94701000","26646174","ООО \"Системы водоснабжения и канализации\"","1831127343","183101001","Оказание услуг в сфере водоснабжения","VS"]
[179,"Удмуртская республика","Город Ижевск","94701000","Город Ижевск","94701000","26646174","ООО \"Системы водоснабжения и канализации\"","1831127343","183101001","Транспортировка воды","VS"]
[180,"Удмуртская республика","Город Ижевск","94701000","Город Ижевск","94701000","26354614","ООО \"Теплосфера\"","1834034810","183401001","Оказание услуг в сфере водоснабжения","VS"]
[181,"Удмуртская республика","Город Ижевск","94701000","Город Ижевск","94701000","27719692","ООО \"Тихие зори\"","1831122803","184101001","Оказание услуг в сфере водоснабжения","VS"]
[182,"Удмуртская республика","Город Ижевск","94701000","Город Ижевск","94701000","27719692","ООО \"Тихие зори\"","1831122803","184101001","Транспортировка воды","VS"]
[183,"Удмуртская республика","Город Ижевск","94701000","Город Ижевск","94701000","26466287","ООО \"Удмуртэнергонефть\"","1834028862","184001001","Оказание услуг в сфере водоснабжения","VS"]
[184,"Удмуртская республика","Город Ижевск","94701000","Город Ижевск","94701000","26466287","ООО \"Удмуртэнергонефть\"","1834028862","184001001","Транспортировка воды","VS"]
[185,"Удмуртская республика","Город Ижевск","94701000","Город Ижевск","94701000","26618959","ООО \"Уютный дом\"","1832042325","183201001","Оказание услуг в сфере водоснабжения","VS"]
[186,"Удмуртская республика","Город Ижевск","94701000","Город Ижевск","94701000","26354601","ООО \"Энергетическая Компания \"Строим Вместе\"","1832027239","183501001","Оказание услуг в сфере водоснабжения","VS"]
[187,"Удмуртская республика","Город Ижевск","94701000","Город Ижевск","94701000","30832054","ООО Обслуживающая организация \"Столичная\"","1835072208","184101001","Транспортировка воды","VS"]
[188,"Удмуртская республика","Город Ижевск","94701000","Город Ижевск","94701000","26497150","Обособленное подразделение ООО \"Ресурс\"","6325045301","631501001","Оказание услуг в сфере водоснабжения","VS"]
[189,"Удмуртская республика","Город Ижевск","94701000","Город Ижевск","94701000","26354619","ПАО \"Ижнефтемаш\"","1835012826","183650001","Оказание услуг в сфере водоснабжения","VS"]
[190,"Удмуртская республика","Город Ижевск","94701000","Город Ижевск","94701000","30903763","ФГБУ \"ЦЖКУ\" МИНОБОРОНЫ РОССИИ","7729314745","770101001","Транспортировка воды","VS"]
[191,"Удмуртская республика","Город Ижевск","94701000","Город Ижевск","94701000","30914574","ФГБУ \"ЦЖКУ\" МИНОБОРОНЫ РОССИИ (по ЦВО)","7729314745","667043001","Транспортировка воды","VS"]
[192,"Удмуртская республика","Город Ижевск","94701000","Город Ижевск","94701000","26354621","ФГУП \"ГВСУ № 8\" (Филиал \"ЖКУ № 826\")","1835038790","183502007","Оказание услуг в сфере водоснабжения","VS"]
[193,"Удмуртская республика","Город Ижевск","94701000","Город Ижевск","94701000","26354621","ФГУП \"ГВСУ № 8\" (Филиал \"ЖКУ № 826\")","1835038790","183502007","Транспортировка воды","VS"]
[194,"Удмуртская республика","Город Ижевск","94701000","Город Ижевск","94701000","27686640","ФГУП \"ГВСУ № 8\" (Филиал \"УМР № 832\")","1835038790","183502005","Оказание услуг в сфере водоснабжения","VS"]
[195,"Удмуртская республика","Город Ижевск","94701000","Город Ижевск","94701000","27714089","Филиал \"Пермский\" ОАО \"Славянка\"","7702707386","183843002","Оказание услуг в сфере водоснабжения","VS"]
[196,"Удмуртская республика","Город Ижевск","94701000","Город Ижевск","94701000","26493645","Филиал \"Управление промышленных предприятий № 821\" Федерального государственного унитарного предприятия \"Главное военно-строительное управление № 8\"","1835038790","183502009","Оказание услуг в сфере водоснабжения","VS"]
[197,"Удмуртская республика","Город Можга","94730000","Город Можга","94730000","26560525","АО \"ГУ ЖКХ\"","5116000922","511601001","Оказание услуг в сфере водоснабжения","VS"]
[198,"Удмуртская республика","Город Можга","94730000","Город Можга","94730000","30407160","АО \"ГУ ЖКХ\"","5116000922","183845001","Транспортировка воды","VS"]
[199,"Удмуртская республика","Город Можга","94730000","Город Можга","94730000","26354588","АО работников \"Можгинское деревообрабатывающее народное предприятие\" \"Красная звезда\"","1830000383","183001001","Оказание услуг в сфере водоснабжения","VS"]
[200,"Удмуртская республика","Город Можга","94730000","Город Можга","94730000","26354588","АО работников \"Можгинское деревообрабатывающее народное предприятие\" \"Красная звезда\"","1830000383","183001001","Транспортировка воды","VS"]
[201,"Удмуртская республика","Город Можга","94730000","Город Можга","94730000","26828939","ООО \"Восточный\"","1841017491","184101001","Оказание услуг в сфере водоснабжения","VS"]
[202,"Удмуртская республика","Город Можга","94730000","Город Можга","94730000","27714089","Филиал \"Пермский\" ОАО \"Славянка\"","7702707386","183843002","Оказание услуг в сфере водоснабжения","VS"]
[203,"Удмуртская республика","Город Сарапул","94740000","Город Сарапул","94740000","26560525","АО \"ГУ ЖКХ\"","5116000922","511601001","Оказание услуг в сфере водоснабжения","VS"]
[204,"Удмуртская республика","Город Сарапул","94740000","Город Сарапул","94740000","30407160","АО \"ГУ ЖКХ\"","5116000922","183845001","Транспортировка воды","VS"]
[205,"Удмуртская республика","Город Сарапул","94740000","Город Сарапул","94740000","26535409","АО \"Сарапульский электрогенераторный завод\"","1827001683","183650001","Транспортировка воды","VS"]
[206,"Удмуртская республика","Город Сарапул","94740000","Город Сарапул","94740000","26644435","МУП г. Сарапула \"Сарапульский Автодор\"","1827001651","182701001","Оказание услуг в сфере водоснабжения","VS"]
[207,"Удмуртская республика","Город Сарапул","94740000","Город Сарапул","94740000","26354563","МУП г. Сарапула \"Сарапульский водоканал\"","1827004081","183801001","Оказание услуг в сфере водоснабжения","VS"]
[208,"Удмуртская республика","Город Сарапул","94740000","Город Сарапул","94740000","26354563","МУП г. Сарапула \"Сарапульский водоканал\"","1827004081","183801001","Транспортировка воды","VS"]
[209,"Удмуртская республика","Город Сарапул","94740000","Город Сарапул","94740000","27695209","Муниципальное учреждение \"Управление благоустройства\"","1838010432","183801001","Оказание услуг в сфере водоснабжения","VS"]
[210,"Удмуртская республика","Город Сарапул","94740000","Город Сарапул","94740000","27695209","Муниципальное учреждение \"Управление благоустройства\"","1838010432","183801001","Транспортировка воды","VS"]
[211,"Удмуртская республика","Город Сарапул","94740000","Город Сарапул","94740000","26644444","Нижне-Камский район водных путей и судоходства","5902290191","182702001","Оказание услуг в сфере водоснабжения","VS"]
[212,"Удмуртская республика","Город Сарапул","94740000","Город Сарапул","94740000","26644444","Нижне-Камский район водных путей и судоходства","5902290191","182702001","Транспортировка воды","VS"]
[213,"Удмуртская республика","Город Сарапул","94740000","Город Сарапул","94740000","27714089","Филиал \"Пермский\" ОАО \"Славянка\"","7702707386","183843002","Оказание услуг в сфере водоснабжения","VS"]
[214,"Удмуртская республика","Граховский муниципальный район","94612000","Верхнеигринское","94612411","30917034","АО \"Белкамнефть\" имени А.А. Волкова","1835058718","184101001","Оказание услуг в сфере водоснабжения","VS"]
[215,"Удмуртская республика","Граховский муниципальный район","94612000","Граховский муниципальный район","94612000","26353684","АО \"Белкамнефть\" имени А.А. Волкова","0264015786","183650001","Оказание услуг в сфере водоснабжения","VS"]
[216,"Удмуртская республика","Граховский муниципальный район","94612000","Граховский муниципальный район","94612000","26466167","МУП \"Жилкоммунсервис\"","1806006296","180601001","Оказание услуг в сфере водоснабжения","VS"]
[217,"Удмуртская республика","Граховский муниципальный район","94612000","Граховский муниципальный район","94612000","26466167","МУП \"Жилкоммунсервис\"","1806006296","180601001","Транспортировка воды","VS"]
[218,"Удмуртская республика","Граховский муниципальный район","94612000","Граховский муниципальный район","94612000","26619033","ОАО \"Агрохим-Прибой\"","1806001555","180601001","Оказание услуг в сфере водоснабжения","VS"]
[219,"Удмуртская республика","Граховский муниципальный район","94612000","Граховский муниципальный район","94612000","26619033","ОАО \"Агрохим-Прибой\"","1806001555","180601001","Транспортировка воды","VS"]
[220,"Удмуртская республика","Граховский муниципальный район","94612000","Граховский муниципальный район","94612000","28040921","ООО \"Нива\"","1839001350","183901001","Оказание услуг в сфере водоснабжения","VS"]
[221,"Удмуртская республика","Граховский муниципальный район","94612000","Граховский муниципальный район","94612000","28040921","ООО \"Нива\"","1839001350","183901001","Транспортировка воды","VS"]
[222,"Удмуртская республика","Граховский муниципальный район","94612000","Граховский муниципальный район","94612000","26621326","СПК \"Родина\"","1806002012","180601001","Оказание услуг в сфере водоснабжения","VS"]
[223,"Удмуртская республика","Граховский муниципальный район","94612000","Граховский муниципальный район","94612000","26621326","СПК \"Родина\"","1806002012","180601001","Транспортировка воды","VS"]
[224,"Удмуртская республика","Дебесский муниципальный район","94614000","Дебесский муниципальный район","94614000","27568937","ИП Андреев А.В.","180700008707","отсутствует","Оказание услуг в сфере водоснабжения","VS"]
[225,"Удмуртская республика","Дебесский муниципальный район","94614000","Дебесский муниципальный район","94614000","28981833","Индивидуальный предприниматель Серебренников Алексей Валентинович","180700796470","180701001","Оказание услуг в сфере водоснабжения","VS"]
[226,"Удмуртская республика","Дебесский муниципальный район","94614000","Дебесский муниципальный район","94614000","26471827","ООО \"Атолл\"","1809006495","180901001","Оказание услуг в сфере водоснабжения","VS"]
[227,"Удмуртская республика","Дебесский муниципальный район","94614000","Дебесский муниципальный район","94614000","26471827","ООО \"Атолл\"","1809006495","180901001","Транспортировка воды","VS"]
[228,"Удмуртская республика","Дебесский муниципальный район","94614000","Дебесский муниципальный район","94614000","26762198","ООО \"Турнес\"","1809005734","180901001","Оказание услуг в сфере водоснабжения","VS"]
[229,"Удмуртская республика","Дебесский муниципальный район","94614000","Дебесский муниципальный район","94614000","27356712","СПК (колхоз) \"Восток\"","1807002618","180701001","Оказание услуг в сфере водоснабжения","VS"]
[230,"Удмуртская республика","Дебесский муниципальный район","94614000","Дебесский муниципальный район","94614000","27356712","СПК (колхоз) \"Восток\"","1807002618","180701001","Транспортировка воды","VS"]
[231,"Удмуртская республика","Дебесский муниципальный район","94614000","Дебесский муниципальный район","94614000","26629360","СПК (колхоз) \"Мир\"","1807000353","180701001","Оказание услуг в сфере водоснабжения","VS"]
[232,"Удмуртская республика","Дебесский муниципальный район","94614000","Дебесский муниципальный район","94614000","26629360","СПК (колхоз) \"Мир\"","1807000353","180701001","Транспортировка воды","VS"]
[233,"Удмуртская республика","Дебесский муниципальный район","94614000","Дебесский муниципальный район","94614000","27327484","СПК (колхоз) \"Труженик\"","1807000360","180701001","Оказание услуг в сфере водоснабжения","VS"]
[234,"Удмуртская республика","Дебесский муниципальный район","94614000","Дебесский муниципальный район","94614000","26646354","СПК (колхоз) имени Калинина","1807000378","180701001","Оказание услуг в сфере водоснабжения","VS"]
[235,"Удмуртская республика","Дебесский муниципальный район","94614000","Дебесский муниципальный район","94614000","26629362","СПК колхоз \"Дружба\"","1807000339","180701001","Оказание услуг в сфере водоснабжения","VS"]
[236,"Удмуртская республика","Дебесский муниципальный район","94614000","Дебесский муниципальный район","94614000","26629362","СПК колхоз \"Дружба\"","1807000339","180701001","Транспортировка воды","VS"]
[237,"Удмуртская республика","Дебесский муниципальный район","94614000","Дебесский муниципальный район","94614000","26629358","СПК колхоз \"Лесагурт\"","1807000949","180701001","Оказание услуг в сфере водоснабжения","VS"]
[238,"Удмуртская республика","Дебесский муниципальный район","94614000","Дебесский муниципальный район","94614000","26629358","СПК колхоз \"Лесагурт\"","1807000949","180701001","Транспортировка воды","VS"]
[239,"Удмуртская республика","Завьяловский муниципальный район","94616000","Вараксинское","94616407","28461991","БСУ СО УР \"Синтекский психоневрологический интернат\"","1808700358","184101001","Оказание услуг в сфере водоснабжения","VS"]
[240,"Удмуртская республика","Завьяловский муниципальный район","94616000","Завьяловский муниципальный район","94616000","28461991","БСУ СО УР \"Синтекский психоневрологический интернат\"","1808700358","184101001","Оказание услуг в сфере водоснабжения","VS"]
[241,"Удмуртская республика","Завьяловский муниципальный район","94616000","Завьяловский муниципальный район","94616000","26466181","МУП \"Завьяловское\"","1808208900","180801001","Оказание услуг в сфере водоснабжения","VS"]
[242,"Удмуртская республика","Завьяловский муниципальный район","94616000","Завьяловский муниципальный район","94616000","28445794","МУП \"Завьяловское\"","1841035973","184101001","Оказание услуг в сфере водоснабжения","VS"]
[243,"Удмуртская республика","Завьяловский муниципальный район","94616000","Завьяловский муниципальный район","94616000","28816819","МУП \"Хохряковское ЖКХ\"","1841042113","184101001","Оказание услуг в сфере водоснабжения","VS"]
[244,"Удмуртская республика","Завьяловский муниципальный район","94616000","Завьяловский муниципальный район","94616000","28816819","МУП \"Хохряковское ЖКХ\"","1841042113","184101001","Транспортировка воды","VS"]
[245,"Удмуртская республика","Завьяловский муниципальный район","94616000","Завьяловский муниципальный район","94616000","26617721","ОАО \"Тепличный комбинат \"Завьяловский\"","1808400330","180801001","Оказание услуг в сфере водоснабжения","VS"]
[246,"Удмуртская республика","Завьяловский муниципальный район","94616000","Завьяловский муниципальный район","94616000","26618829","ОАО \"Удмуртнефть\"","1831034040","997150001","Оказание услуг в сфере водоснабжения","VS"]
[247,"Удмуртская республика","Завьяловский муниципальный район","94616000","Завьяловский муниципальный район","94616000","28981822","ООО \"АК \"Бабинский\"","1841045114","184101001","Оказание услуг в сфере водоснабжения","VS"]
[248,"Удмуртская республика","Завьяловский муниципальный район","94616000","Завьяловский муниципальный район","94616000","30370907","ООО \"Актив-Финанс и К\"","1835077781","183201001","Оказание услуг в сфере водоснабжения","VS"]
[249,"Удмуртская республика","Завьяловский муниципальный район","94616000","Завьяловский муниципальный район","94616000","26828939","ООО \"Восточный\"","1841017491","184101001","Оказание услуг в сфере водоснабжения","VS"]
[250,"Удмуртская республика","Завьяловский муниципальный район","94616000","Завьяловский муниципальный район","94616000","28152502","ООО \"ЖКХ \"Постольское\"","1841031256","184101001","Оказание услуг в сфере водоснабжения","VS"]
[251,"Удмуртская республика","Завьяловский муниципальный район","94616000","Завьяловский муниципальный район","94616000","28152502","ООО \"ЖКХ \"Постольское\"","1841031256","184101001","Транспортировка воды","VS"]
[252,"Удмуртская республика","Завьяловский муниципальный район","94616000","Завьяловский муниципальный район","94616000","26617313","ООО \"Завьялово-Водоканал\"","1841010810","184101001","Оказание услуг в сфере водоснабжения","VS"]
[253,"Удмуртская республика","Завьяловский муниципальный район","94616000","Завьяловский муниципальный район","94616000","26617313","ООО \"Завьялово-Водоканал\"","1841010810","184101001","Транспортировка воды","VS"]
[254,"Удмуртская республика","Завьяловский муниципальный район","94616000","Завьяловский муниципальный район","94616000","30434914","ООО \"Зеленодолье\"","1832094972","183201001","Оказание услуг в сфере водоснабжения","VS"]
[255,"Удмуртская республика","Завьяловский муниципальный район","94616000","Завьяловский муниципальный район","94616000","28445723","ООО \"Инжиниринг Сервис\"","1841032267","184101001","Оказание услуг в сфере водоснабжения","VS"]
[256,"Удмуртская республика","Завьяловский муниципальный район","94616000","Завьяловский муниципальный район","94616000","26615814","ООО \"КЭП \"Ремиком\"","1808208410","180801001","Оказание услуг в сфере водоснабжения","VS"]
[257,"Удмуртская республика","Завьяловский муниципальный район","94616000","Завьяловский муниципальный район","94616000","27719524","ООО \"Октябрьское\"","1841019114","184101001","Оказание услуг в сфере водоснабжения","VS"]
[258,"Удмуртская республика","Завьяловский муниципальный район","94616000","Завьяловский муниципальный район","94616000","26826805","ООО \"Птицефабрика \"Вараксино\"","1841017484","184101001","Оказание услуг в сфере водоснабжения","VS"]
[259,"Удмуртская республика","Завьяловский муниципальный район","94616000","Завьяловский муниципальный район","94616000","26646084","ООО \"Ресурс\"","1841009998","184101001","Оказание услуг в сфере водоснабжения","VS"]
[260,"Удмуртская республика","Завьяловский муниципальный район","94616000","Завьяловский муниципальный район","94616000","27719692","ООО \"Тихие зори\"","1831122803","184101001","Оказание услуг в сфере водоснабжения","VS"]
[261,"Удмуртская республика","Завьяловский муниципальный район","94616000","Завьяловский муниципальный район","94616000","27719692","ООО \"Тихие зори\"","1831122803","184101001","Транспортировка воды","VS"]
[262,"Удмуртская республика","Завьяловский муниципальный район","94616000","Завьяловский муниципальный район","94616000","26466287","ООО \"Удмуртэнергонефть\"","1834028862","184001001","Оказание услуг в сфере водоснабжения","VS"]
[263,"Удмуртская республика","Завьяловский муниципальный район","94616000","Завьяловский муниципальный район","94616000","26466287","ООО \"Удмуртэнергонефть\"","1834028862","184001001","Транспортировка воды","VS"]
[264,"Удмуртская республика","Завьяловский муниципальный район","94616000","Завьяловский муниципальный район","94616000","26617684","ООО \"ЭРИК\"","1808203892","180801001","Оказание услуг в сфере водоснабжения","VS"]
[265,"Удмуртская республика","Завьяловский муниципальный район","94616000","Завьяловский муниципальный район","94616000","26617684","ООО \"ЭРИК\"","1808203892","180801001","Транспортировка воды","VS"]
[266,"Удмуртская республика","Завьяловский муниципальный район","94616000","Завьяловский муниципальный район","94616000","28981799","ООО СК «Развитие»","1808206156","183401001","Оказание услуг в сфере водоснабжения","VS"]
[267,"Удмуртская республика","Завьяловский муниципальный район","94616000","Завьяловское","94616415","28461991","БСУ СО УР \"Синтекский психоневрологический интернат\"","1808700358","184101001","Оказание услуг в сфере водоснабжения","VS"]
[268,"Удмуртская республика","Завьяловский муниципальный район","94616000","Завьяловское","94616415","30358527","ООО \"Недра\"","1841019450","184101001","Оказание услуг в сфере водоснабжения","VS"]
[269,"Удмуртская республика","Завьяловский муниципальный район","94616000","Италмасовское","94616417","28461991","БСУ СО УР \"Синтекский психоневрологический интернат\"","1808700358","184101001","Оказание услуг в сфере водоснабжения","VS"]
[270,"Удмуртская республика","Завьяловский муниципальный район","94616000","Италмасовское","94616417","30358570","ООО \"Водоканал-Сервис\"","1841057014","184101001","Оказание услуг в сфере водоснабжения","VS"]
[271,"Удмуртская республика","Завьяловский муниципальный район","94616000","Италмасовское","94616417","26828939","ООО \"Восточный\"","1841017491","184101001","Оказание услуг в сфере водоснабжения","VS"]
[272,"Удмуртская республика","Завьяловский муниципальный район","94616000","Италмасовское","94616417","26619369","ООО \"Управление капитального строительства\"","1841010792","184101001","Оказание услуг в сфере водоснабжения","VS"]
[273,"Удмуртская республика","Завьяловский муниципальный район","94616000","Италмасовское","94616417","27719688","ООО \"Управление коммунальными системами\"","1841023230","184101001","Оказание услуг в сфере водоснабжения","VS"]
[274,"Удмуртская республика","Завьяловский муниципальный район","94616000","Казмасское","94616420","30861507","АУ УР ЗОК \"Лесная сказка\"","1841032690","184101001","Оказание услуг в сфере водоснабжения","VS"]
[275,"Удмуртская республика","Завьяловский муниципальный район","94616000","Каменское","94616425","30434914","ООО \"Зеленодолье\"","1832094972","183201001","Оказание услуг в сфере водоснабжения","VS"]
[276,"Удмуртская республика","Завьяловский муниципальный район","94616000","Кияикское","94616428","28461991","БСУ СО УР \"Синтекский психоневрологический интернат\"","1808700358","184101001","Оказание услуг в сфере водоснабжения","VS"]
[277,"Удмуртская республика","Завьяловский муниципальный район","94616000","Октябрьское","94616432","28461991","БСУ СО УР \"Синтекский психоневрологический интернат\"","1808700358","184101001","Оказание услуг в сфере водоснабжения","VS"]
[278,"Удмуртская республика","Завьяловский муниципальный район","94616000","Пироговское","94616437","30370907","ООО \"Актив-Финанс и К\"","1835077781","183201001","Оказание услуг в сфере водоснабжения","VS"]
[279,"Удмуртская республика","Завьяловский муниципальный район","94616000","Среднепостольское","94616445","28461991","БСУ СО УР \"Синтекский психоневрологический интернат\"","1808700358","184101001","Оказание услуг в сфере водоснабжения","VS"]
[280,"Удмуртская республика","Завьяловский муниципальный район","94616000","Среднепостольское","94616445","26493775","ГКУЗ \"Третья республиканская психиатрическая больница МЗ УР\"","1808700301","184101001","Оказание услуг в сфере водоснабжения","VS"]
[281,"Удмуртская республика","Завьяловский муниципальный район","94616000","Среднепостольское","94616445","26493775","ГКУЗ \"Третья республиканская психиатрическая больница МЗ УР\"","1808700301","184101001","Транспортировка воды","VS"]
[282,"Удмуртская республика","Завьяловский муниципальный район","94616000","Хохряковское","94616447","28461991","БСУ СО УР \"Синтекский психоневрологический интернат\"","1808700358","184101001","Оказание услуг в сфере водоснабжения","VS"]
[283,"Удмуртская республика","Завьяловский муниципальный район","94616000","Ягульское","94616460","30894265","ИП Мордвин О. В.","183504246637","отсутствует","Оказание услуг в сфере водоснабжения","VS"]
[284,"Удмуртская республика","Завьяловский муниципальный район","94616000","Якшурское","94616465","28461991","БСУ СО УР \"Синтекский психоневрологический интернат\"","1808700358","184101001","Оказание услуг в сфере водоснабжения","VS"]
[285,"Удмуртская республика","Игринский муниципальный район","94618000","Беляевское","94618445","26618829","ОАО \"Удмуртнефть\"","1831034040","997150001","Оказание услуг в сфере водоснабжения","VS"]
[286,"Удмуртская республика","Игринский муниципальный район","94618000","Игринский муниципальный район","94618000","26560525","АО \"ГУ ЖКХ\"","5116000922","511601001","Оказание услуг в сфере водоснабжения","VS"]
[287,"Удмуртская республика","Игринский муниципальный район","94618000","Игринский муниципальный район","94618000","30407160","АО \"ГУ ЖКХ\"","5116000922","183845001","Оказание услуг в сфере водоснабжения","VS"]
[288,"Удмуртская республика","Игринский муниципальный район","94618000","Игринский муниципальный район","94618000","28466664","ОАО \"Игринский мясокомбинат\"","1809000278","183101001","Оказание услуг в сфере водоснабжения","VS"]
[289,"Удмуртская республика","Игринский муниципальный район","94618000","Игринский муниципальный район","94618000","26618829","ОАО \"Удмуртнефть\"","1831034040","997150001","Оказание услуг в сфере водоснабжения","VS"]
[290,"Удмуртская республика","Игринский муниципальный район","94618000","Игринский муниципальный район","94618000","28445607","ООО \"Водоканал\"","1831161344","183101001","Оказание услуг в сфере водоснабжения","VS"]
[291,"Удмуртская республика","Игринский муниципальный район","94618000","Игринский муниципальный район","94618000","26497030","СПК \"Заря\"","1809000623","180901001","Оказание услуг в сфере водоснабжения","VS"]
[292,"Удмуртская республика","Игринский муниципальный район","94618000","Игринский муниципальный район","94618000","27714089","Филиал \"Пермский\" ОАО \"Славянка\"","7702707386","183843002","Оказание услуг в сфере водоснабжения","VS"]
[293,"Удмуртская республика","Игринский муниципальный район","94618000","Игринское","94618415","30407160","АО \"ГУ ЖКХ\"","5116000922","183845001","Оказание услуг в сфере водоснабжения","VS"]
[294,"Удмуртская республика","Игринский муниципальный район","94618000","Игринское","94618415","26808802","Горьковская дирекция по тепловодоснабжению структурное подразделение Центральной дирекции по тепловодоснабжению - филиала ОАО \"РЖД\"","7708503727","525745041","Оказание услуг в сфере водоснабжения","VS"]
[295,"Удмуртская республика","Игринский муниципальный район","94618000","Игринское","94618415","26618829","ОАО \"Удмуртнефть\"","1831034040","997150001","Оказание услуг в сфере водоснабжения","VS"]
[296,"Удмуртская республика","Игринский муниципальный район","94618000","Кабачигуртское","94618420","26618829","ОАО \"Удмуртнефть\"","1831034040","997150001","Оказание услуг в сфере водоснабжения","VS"]
[297,"Удмуртская республика","Игринский муниципальный район","94618000","Лозо-Люкское","94618425","26618829","ОАО \"Удмуртнефть\"","1831034040","997150001","Оказание услуг в сфере водоснабжения","VS"]
[298,"Удмуртская республика","Игринский муниципальный район","94618000","Мужберское","94618435","26618829","ОАО \"Удмуртнефть\"","1831034040","997150001","Оказание услуг в сфере водоснабжения","VS"]
[299,"Удмуртская республика","Игринский муниципальный район","94618000","Факельское","94618453","26618829","ОАО \"Удмуртнефть\"","1831034040","997150001","Оказание услуг в сфере водоснабжения","VS"]
[300,"Удмуртская республика","Игринский муниципальный район","94618000","Чутырское","94618455","26618829","ОАО \"Удмуртнефть\"","1831034040","997150001","Оказание услуг в сфере водоснабжения","VS"]
[301,"Удмуртская республика","Камбарский муниципальный район","94620000","Армязьское","94620403","28512011","ИП Кузнецов Андрей Аркадьевич","182103194041","отсутствует","Оказание услуг в сфере водоснабжения","VS"]
[302,"Удмуртская республика","Камбарский муниципальный район","94620000","Армязьское","94620403","28512011","ИП Кузнецов Андрей Аркадьевич","182103194041","отсутствует","Транспортировка воды","VS"]
[303,"Удмуртская республика","Камбарский муниципальный район","94620000","Армязьское","94620403","28871955","ООО \"Водолей\"","1838015737","183801001","Оказание услуг в сфере водоснабжения","VS"]
[304,"Удмуртская республика","Камбарский муниципальный район","94620000","Армязьское","94620403","28871955","ООО \"Водолей\"","1838015737","183801001","Транспортировка воды","VS"]
[305,"Удмуртская республика","Камбарский муниципальный район","94620000","Борковское","94620408","28512011","ИП Кузнецов Андрей Аркадьевич","182103194041","отсутствует","Оказание услуг в сфере водоснабжения","VS"]
[306,"Удмуртская республика","Камбарский муниципальный район","94620000","Борковское","94620408","28512011","ИП Кузнецов Андрей Аркадьевич","182103194041","отсутствует","Транспортировка воды","VS"]
[307,"Удмуртская республика","Камбарский муниципальный район","94620000","Борковское","94620408","28871955","ООО \"Водолей\"","1838015737","183801001","Оказание услуг в сфере водоснабжения","VS"]
[308,"Удмуртская республика","Камбарский муниципальный район","94620000","Борковское","94620408","28871955","ООО \"Водолей\"","1838015737","183801001","Транспортировка воды","VS"]
[309,"Удмуртская республика","Камбарский муниципальный район","94620000","Ершовское","94620415","28512011","ИП Кузнецов Андрей Аркадьевич","182103194041","отсутствует","Оказание услуг в сфере водоснабжения","VS"]
[310,"Удмуртская республика","Камбарский муниципальный район","94620000","Ершовское","94620415","28512011","ИП Кузнецов Андрей Аркадьевич","182103194041","отсутствует","Транспортировка воды","VS"]
[311,"Удмуртская республика","Камбарский муниципальный район","94620000","Ершовское","94620415","28871955","ООО \"Водолей\"","1838015737","183801001","Оказание услуг в сфере водоснабжения","VS"]
[312,"Удмуртская республика","Камбарский муниципальный район","94620000","Ершовское","94620415","28871955","ООО \"Водолей\"","1838015737","183801001","Транспортировка воды","VS"]
[313,"Удмуртская республика","Камбарский муниципальный район","94620000","Камбарский муниципальный район","94620000","26560525","АО \"ГУ ЖКХ\"","5116000922","511601001","Оказание услуг в сфере водоснабжения","VS"]
[314,"Удмуртская республика","Камбарский муниципальный район","94620000","Камбарский муниципальный район","94620000","30407160","АО \"ГУ ЖКХ\"","5116000922","183845001","Оказание услуг в сфере водоснабжения","VS"]
[315,"Удмуртская республика","Камбарский муниципальный район","94620000","Камбарский муниципальный район","94620000","28512011","ИП Кузнецов Андрей Аркадьевич","182103194041","отсутствует","Оказание услуг в сфере водоснабжения","VS"]
[316,"Удмуртская республика","Камбарский муниципальный район","94620000","Камбарский муниципальный район","94620000","28512011","ИП Кузнецов Андрей Аркадьевич","182103194041","отсутствует","Транспортировка воды","VS"]
[317,"Удмуртская республика","Камбарский муниципальный район","94620000","Камбарский муниципальный район","94620000","30952090","МП \"Водоканал Камбарского района\"","1838020857","183801001","Оказание услуг в сфере водоснабжения","VS"]
[318,"Удмуртская республика","Камбарский муниципальный район","94620000","Камбарский муниципальный район","94620000","28868559","МУП \"ЖКХ \"Кама\"","1838015254","183801001","Оказание услуг в сфере водоснабжения","VS"]
[319,"Удмуртская республика","Камбарский муниципальный район","94620000","Камбарский муниципальный район","94620000","26486493","МУП ЖКХ Камбарского района","1810003386","181001001","Оказание услуг в сфере водоснабжения","VS"]
[320,"Удмуртская республика","Камбарский муниципальный район","94620000","Камбарский муниципальный район","94620000","26619159","Муниципальное предприятие Камбарского района \"Водоканал\"","1838008112","183801001","Оказание услуг в сфере водоснабжения","VS"]
[321,"Удмуртская республика","Камбарский муниципальный район","94620000","Камбарский муниципальный район","94620000","26768227","ОАО \"136 ЦБПР\"","1838006108","183801001","Оказание услуг в сфере водоснабжения","VS"]
[322,"Удмуртская республика","Камбарский муниципальный район","94620000","Камбарский муниципальный район","94620000","28871955","ООО \"Водолей\"","1838015737","183801001","Оказание услуг в сфере водоснабжения","VS"]
[323,"Удмуртская республика","Камбарский муниципальный район","94620000","Камбарский муниципальный район","94620000","28871955","ООО \"Водолей\"","1838015737","183801001","Транспортировка воды","VS"]
[324,"Удмуртская республика","Камбарский муниципальный район","94620000","Камбарский муниципальный район","94620000","29647988","ООО \"Камбарский машиностроительный завод\"","1838009571","183801001","Оказание услуг в сфере водоснабжения","VS"]
[325,"Удмуртская республика","Камбарский муниципальный район","94620000","Камбарский муниципальный район","94620000","29647988","ООО \"Камбарский машиностроительный завод\"","1838009571","183801001","Транспортировка воды","VS"]
[326,"Удмуртская республика","Камбарский муниципальный район","94620000","Камбарский муниципальный район","94620000","27718671","ООО \"Комфорт\"","1838010344","183801001","Оказание услуг в сфере водоснабжения","VS"]
[327,"Удмуртская республика","Камбарский муниципальный район","94620000","Камбарский муниципальный район","94620000","28006200","ООО \"Торговый Дом \"Камбарский машиностроительный завод\"","1838006475","183801001","Оказание услуг в сфере водоснабжения","VS"]
[328,"Удмуртская республика","Камбарский муниципальный район","94620000","Камбарский муниципальный район","94620000","30861487","ООО \"Энергия\"","1838018470","183801001","Оказание услуг в сфере водоснабжения","VS"]
[329,"Удмуртская республика","Камбарский муниципальный район","94620000","Камбарский муниципальный район","94620000","26354523","ФГКУ комбинат \"Горизонт\"","1810001452","181001001","Оказание услуг в сфере водоснабжения","VS"]
[330,"Удмуртская республика","Камбарский муниципальный район","94620000","Камбарский муниципальный район","94620000","27714089","Филиал \"Пермский\" ОАО \"Славянка\"","7702707386","183843002","Оказание услуг в сфере водоснабжения","VS"]
[331,"Удмуртская республика","Камбарский муниципальный район","94620000","Камбарское","94620101","30407160","АО \"ГУ ЖКХ\"","5116000922","183845001","Оказание услуг в сфере водоснабжения","VS"]
[332,"Удмуртская республика","Камбарский муниципальный район","94620000","Камбарское","94620101","26808802","Горьковская дирекция по тепловодоснабжению структурное подразделение Центральной дирекции по тепловодоснабжению - филиала ОАО \"РЖД\"","7708503727","525745041","Оказание услуг в сфере водоснабжения","VS"]
[333,"Удмуртская республика","Камбарский муниципальный район","94620000","Камбарское","94620101","28512011","ИП Кузнецов Андрей Аркадьевич","182103194041","отсутствует","Оказание услуг в сфере водоснабжения","VS"]
[334,"Удмуртская республика","Камбарский муниципальный район","94620000","Камбарское","94620101","28512011","ИП Кузнецов Андрей Аркадьевич","182103194041","отсутствует","Транспортировка воды","VS"]
[335,"Удмуртская республика","Камбарский муниципальный район","94620000","Камбарское","94620101","28871955","ООО \"Водолей\"","1838015737","183801001","Оказание услуг в сфере водоснабжения","VS"]
[336,"Удмуртская республика","Камбарский муниципальный район","94620000","Камбарское","94620101","28871955","ООО \"Водолей\"","1838015737","183801001","Транспортировка воды","VS"]
[337,"Удмуртская республика","Камбарский муниципальный район","94620000","Камбарское","94620101","29647988","ООО \"Камбарский машиностроительный завод\"","1838009571","183801001","Оказание услуг в сфере водоснабжения","VS"]
[338,"Удмуртская республика","Камбарский муниципальный район","94620000","Камбарское","94620101","29647988","ООО \"Камбарский машиностроительный завод\"","1838009571","183801001","Транспортировка воды","VS"]
[339,"Удмуртская республика","Камбарский муниципальный район","94620000","Камское","94620420","26808802","Горьковская дирекция по тепловодоснабжению структурное подразделение Центральной дирекции по тепловодоснабжению - филиала ОАО \"РЖД\"","7708503727","525745041","Оказание услуг в сфере водоснабжения","VS"]
[340,"Удмуртская республика","Камбарский муниципальный район","94620000","Камское","94620420","28512011","ИП Кузнецов Андрей Аркадьевич","182103194041","отсутствует","Оказание услуг в сфере водоснабжения","VS"]
[341,"Удмуртская республика","Камбарский муниципальный район","94620000","Камское","94620420","28512011","ИП Кузнецов Андрей Аркадьевич","182103194041","отсутствует","Транспортировка воды","VS"]
[342,"Удмуртская республика","Камбарский муниципальный район","94620000","Камское","94620420","28871955","ООО \"Водолей\"","1838015737","183801001","Оказание услуг в сфере водоснабжения","VS"]
[343,"Удмуртская республика","Камбарский муниципальный район","94620000","Камское","94620420","28871955","ООО \"Водолей\"","1838015737","183801001","Транспортировка воды","VS"]
[344,"Удмуртская республика","Камбарский муниципальный район","94620000","Михайловское","94620422","28512011","ИП Кузнецов Андрей Аркадьевич","182103194041","отсутствует","Оказание услуг в сфере водоснабжения","VS"]
[345,"Удмуртская республика","Камбарский муниципальный район","94620000","Михайловское","94620422","28512011","ИП Кузнецов Андрей Аркадьевич","182103194041","отсутствует","Транспортировка воды","VS"]
[346,"Удмуртская республика","Камбарский муниципальный район","94620000","Михайловское","94620422","28871955","ООО \"Водолей\"","1838015737","183801001","Оказание услуг в сфере водоснабжения","VS"]
[347,"Удмуртская республика","Камбарский муниципальный район","94620000","Михайловское","94620422","28871955","ООО \"Водолей\"","1838015737","183801001","Транспортировка воды","VS"]
[348,"Удмуртская республика","Камбарский муниципальный район","94620000","Нефтебазинское","94620430","28512011","ИП Кузнецов Андрей Аркадьевич","182103194041","отсутствует","Оказание услуг в сфере водоснабжения","VS"]
[349,"Удмуртская республика","Камбарский муниципальный район","94620000","Нефтебазинское","94620430","28512011","ИП Кузнецов Андрей Аркадьевич","182103194041","отсутствует","Транспортировка воды","VS"]
[350,"Удмуртская республика","Камбарский муниципальный район","94620000","Нефтебазинское","94620430","28871955","ООО \"Водолей\"","1838015737","183801001","Оказание услуг в сфере водоснабжения","VS"]
[351,"Удмуртская республика","Камбарский муниципальный район","94620000","Нефтебазинское","94620430","28871955","ООО \"Водолей\"","1838015737","183801001","Транспортировка воды","VS"]
[352,"Удмуртская республика","Камбарский муниципальный район","94620000","Шольинское","94620450","28512011","ИП Кузнецов Андрей Аркадьевич","182103194041","отсутствует","Оказание услуг в сфере водоснабжения","VS"]
[353,"Удмуртская республика","Камбарский муниципальный район","94620000","Шольинское","94620450","28512011","ИП Кузнецов Андрей Аркадьевич","182103194041","отсутствует","Транспортировка воды","VS"]
[354,"Удмуртская республика","Камбарский муниципальный район","94620000","Шольинское","94620450","28871955","ООО \"Водолей\"","1838015737","183801001","Оказание услуг в сфере водоснабжения","VS"]
[355,"Удмуртская республика","Камбарский муниципальный район","94620000","Шольинское","94620450","28871955","ООО \"Водолей\"","1838015737","183801001","Транспортировка воды","VS"]
[356,"Удмуртская республика","Каракулинский муниципальный район","94622000","Каракулинский муниципальный район","94622000","27901731","ООО  \"Теплосеть Угра\"","1838003731","183801001","Оказание услуг в сфере водоснабжения","VS"]
[357,"Удмуртская республика","Каракулинский муниципальный район","94622000","Каракулинский муниципальный район","94622000","27901731","ООО  \"Теплосеть Угра\"","1838003731","183801001","Транспортировка воды","VS"]
[358,"Удмуртская республика","Каракулинский муниципальный район","94622000","Каракулинский муниципальный район","94622000","26466165","ООО \"Водоканал\"","1838003756","183801001","Оказание услуг в сфере водоснабжения","VS"]
[359,"Удмуртская республика","Каракулинский муниципальный район","94622000","Каракулинский муниципальный район","94622000","26466165","ООО \"Водоканал\"","1838003756","183801001","Транспортировка воды","VS"]
[360,"Удмуртская республика","Каракулинский муниципальный район","94622000","Каракулинский муниципальный район","94622000","26647596","ООО \"Сервис Плюс\"","1838007944","183801001","Оказание услуг в сфере водоснабжения","VS"]
[361,"Удмуртская республика","Каракулинский муниципальный район","94622000","Каракулинский муниципальный район","94622000","26449636","ООО \"Теплосети ЮГ\"","1838002897","183801001","Оказание услуг в сфере водоснабжения","VS"]
[362,"Удмуртская республика","Кезский муниципальный район","94624000","Кезский муниципальный район","94624000","26813272","Акционерное общество \"Российские железные дороги\" Свердловская дирекция по тепловодоснабжению - структурное подразделение Центральной дирекции по тепловодоснабжению - филиала ОАО \"РЖД\", г.Екатеринбург","7708503727","665945027","Оказание услуг в сфере водоснабжения","VS"]
[363,"Удмуртская республика","Кезский муниципальный район","94624000","Кезский муниципальный район","94624000","28859128","ЗАО \"Темп\"","1812003455","181201001","Оказание услуг в сфере водоснабжения","VS"]
[364,"Удмуртская республика","Кезский муниципальный район","94624000","Кезский муниципальный район","94624000","26575442","ООО \"Кезское предприятие коммунального хозяйства\"","1809007883","180901001","Оказание услуг в сфере водоснабжения","VS"]
[365,"Удмуртская республика","Кезский муниципальный район","94624000","Кезский муниципальный район","94624000","28151212","ООО \"Труженик\"","1809006826","180901001","Оказание услуг в сфере водоснабжения","VS"]
[366,"Удмуртская республика","Кезский муниципальный район","94624000","Кезский муниципальный район","94624000","26618010","СПК (колхоз) \"Большевик\"","1812000045","181201001","Оказание услуг в сфере водоснабжения","VS"]
[367,"Удмуртская республика","Кезский муниципальный район","94624000","Кезский муниципальный район","94624000","26617965","СПК (колхоз) \"Гулейшур\"","1812003494","181201001","Оказание услуг в сфере водоснабжения","VS"]
[368,"Удмуртская республика","Кезский муниципальный район","94624000","Кезский муниципальный район","94624000","26618101","СПК (колхоз) \"Дружба\"","1812000408","181201001","Оказание услуг в сфере водоснабжения","VS"]
[369,"Удмуртская республика","Кезский муниципальный район","94624000","Кезский муниципальный район","94624000","26618101","СПК (колхоз) \"Дружба\"","1812000408","181201001","Транспортировка воды","VS"]
[370,"Удмуртская республика","Кезский муниципальный район","94624000","Кезский муниципальный район","94624000","26617987","СПК (колхоз) \"Искра\"","1812000172","181201001","Оказание услуг в сфере водоснабжения","VS"]
[371,"Удмуртская республика","Кезский муниципальный район","94624000","Кезский муниципальный район","94624000","26617987","СПК (колхоз) \"Искра\"","1812000172","181201001","Транспортировка воды","VS"]
[372,"Удмуртская республика","Кезский муниципальный район","94624000","Кезский муниципальный район","94624000","26618031","СПК (колхоз) \"Маяк\"","1812000623","181201001","Оказание услуг в сфере водоснабжения","VS"]
[373,"Удмуртская республика","Кезский муниципальный район","94624000","Кезский муниципальный район","94624000","26618031","СПК (колхоз) \"Маяк\"","1812000623","181201001","Транспортировка воды","VS"]
[374,"Удмуртская республика","Кезский муниципальный район","94624000","Кезский муниципальный район","94624000","26617976","СПК (колхоз) \"Степаненки\"","1812003575","181201001","Оказание услуг в сфере водоснабжения","VS"]
[375,"Удмуртская республика","Кезский муниципальный район","94624000","Кезский муниципальный район","94624000","26618106","СПК (колхоз) им. Кирова","1812000246","181201001","Оказание услуг в сфере водоснабжения","VS"]
[376,"Удмуртская республика","Кезский муниципальный район","94624000","Кезский муниципальный район","94624000","26798936","Свердловская железная дорога - филиал ОАО \"РЖД\"","7708503727","180645032","Оказание услуг в сфере водоснабжения","VS"]
[377,"Удмуртская республика","Кезский муниципальный район","94624000","Кезское","94624426","26813272","Акционерное общество \"Российские железные дороги\" Свердловская дирекция по тепловодоснабжению - структурное подразделение Центральной дирекции по тепловодоснабжению - филиала ОАО \"РЖД\", г.Екатеринбург","7708503727","665945027","Оказание услуг в сфере водоснабжения","VS"]
[378,"Удмуртская республика","Кизнерский муниципальный район","94626000","Кизнерский муниципальный район","94626000","26353684","АО \"Белкамнефть\" имени А.А. Волкова","0264015786","183650001","Оказание услуг в сфере водоснабжения","VS"]
[379,"Удмуртская республика","Кизнерский муниципальный район","94626000","Кизнерский муниципальный район","94626000","26560525","АО \"ГУ ЖКХ\"","5116000922","511601001","Оказание услуг в сфере водоснабжения","VS"]
[380,"Удмуртская республика","Кизнерский муниципальный район","94626000","Кизнерский муниципальный район","94626000","30407160","АО \"ГУ ЖКХ\"","5116000922","183845001","Оказание услуг в сфере водоснабжения","VS"]
[381,"Удмуртская республика","Кизнерский муниципальный район","94626000","Кизнерский муниципальный район","94626000","27713971","ООО \"Кизнерводоканал\"","1839002843","183901001","Оказание услуг в сфере водоснабжения","VS"]
[382,"Удмуртская республика","Кизнерский муниципальный район","94626000","Кизнерский муниципальный район","94626000","28156255","ООО «Решетниковская нефтяная компания»","1835069886","184101001","Оказание услуг в сфере водоснабжения","VS"]
[383,"Удмуртская республика","Кизнерский муниципальный район","94626000","Кизнерский муниципальный район","94626000","30903763","ФГБУ \"ЦЖКУ\" МИНОБОРОНЫ РОССИИ","7729314745","770101001","Транспортировка воды","VS"]
[384,"Удмуртская республика","Кизнерский муниципальный район","94626000","Кизнерский муниципальный район","94626000","27714089","Филиал \"Пермский\" ОАО \"Славянка\"","7702707386","183843002","Оказание услуг в сфере водоснабжения","VS"]
[385,"Удмуртская республика","Кизнерский муниципальный район","94626000","Кизнерский муниципальный район","94626000","26493543","Филиал ФБУ «Федеральное управление по  безопасному хранению и уничтожению химического оружия при Министерстве промышленности и  торговли РФ (войсковая часть 70855)» - 1208 объект по хранению и уничтожению химического оружия (войсковая часть 55498)","1813002084","181301001","Оказание услуг в сфере водоснабжения","VS"]
[386,"Удмуртская республика","Кизнерский муниципальный район","94626000","Кизнерское","94626435","30407160","АО \"ГУ ЖКХ\"","5116000922","183845001","Оказание услуг в сфере водоснабжения","VS"]
[387,"Удмуртская республика","Кизнерский муниципальный район","94626000","Кизнерское","94626435","30903763","ФГБУ \"ЦЖКУ\" МИНОБОРОНЫ РОССИИ","7729314745","770101001","Оказание услуг в сфере водоснабжения","VS"]
[388,"Удмуртская республика","Кизнерский муниципальный район","94626000","Кизнерское","94626435","30914574","ФГБУ \"ЦЖКУ\" МИНОБОРОНЫ РОССИИ (по ЦВО)","7729314745","667043001","Оказание услуг в сфере водоснабжения","VS"]
[389,"Удмуртская республика","Кизнерский муниципальный район","94626000","Старокармыжское","94626464","30917034","АО \"Белкамнефть\" имени А.А. Волкова","1835058718","184101001","Оказание услуг в сфере водоснабжения","VS"]
[390,"Удмуртская республика","Киясовский муниципальный район","94628000","Ермолаевское","94628411","26828939","ООО \"Восточный\"","1841017491","184101001","Оказание услуг в сфере водоснабжения","VS"]
[391,"Удмуртская республика","Киясовский муниципальный район","94628000","Киясовский муниципальный район","94628000","30949257","МУПП ЖКХ \"Подгорновский ЖКС\"","1838020977","183801001","Оказание услуг в сфере водоснабжения","VS"]
[392,"Удмуртская республика","Киясовский муниципальный район","94628000","Киясовский муниципальный район","94628000","30949257","МУПП ЖКХ \"Подгорновский ЖКС\"","1838020977","183801001","Транспортировка воды","VS"]
[393,"Удмуртская республика","Киясовский муниципальный район","94628000","Киясовский муниципальный район","94628000","28875594","ООО \"АК \"Киясовский\"","1838015889","183801001","Оказание услуг в сфере водоснабжения","VS"]
[394,"Удмуртская республика","Киясовский муниципальный район","94628000","Киясовский муниципальный район","94628000","26828939","ООО \"Восточный\"","1841017491","184101001","Оказание услуг в сфере водоснабжения","VS"]
[395,"Удмуртская республика","Киясовский муниципальный район","94628000","Киясовский муниципальный район","94628000","26466261","ООО \"Подгорновский ЖКС\"","1838004598","183801001","Оказание услуг в сфере водоснабжения","VS"]
[396,"Удмуртская республика","Киясовский муниципальный район","94628000","Киясовский муниципальный район","94628000","26354528","Первомайское МУПП \"Коммун-сервис\"","1814000040","181401001","Оказание услуг в сфере водоснабжения","VS"]
[397,"Удмуртская республика","Киясовский муниципальный район","94628000","Киясовское","94628444","26828939","ООО \"Восточный\"","1841017491","184101001","Оказание услуг в сфере водоснабжения","VS"]
[398,"Удмуртская республика","Киясовский муниципальный район","94628000","Подгорновское","94628488","30949257","МУПП ЖКХ \"Подгорновский ЖКС\"","1838020977","183801001","Оказание услуг в сфере водоснабжения","VS"]
[399,"Удмуртская республика","Киясовский муниципальный район","94628000","Подгорновское","94628488","26828939","ООО \"Восточный\"","1841017491","184101001","Оказание услуг в сфере водоснабжения","VS"]
[400,"Удмуртская республика","Красногорский муниципальный район","94630000","Красногорский муниципальный район","94630000","26560525","АО \"ГУ ЖКХ\"","5116000922","511601001","Оказание услуг в сфере водоснабжения","VS"]
[401,"Удмуртская республика","Красногорский муниципальный район","94630000","Красногорский муниципальный район","94630000","30407160","АО \"ГУ ЖКХ\"","5116000922","183845001","Транспортировка воды","VS"]
[402,"Удмуртская республика","Красногорский муниципальный район","94630000","Красногорский муниципальный район","94630000","26497070","ООО \"Качкашурское\"","1815906261","181501001","Оказание услуг в сфере водоснабжения","VS"]
[403,"Удмуртская республика","Красногорский муниципальный район","94630000","Красногорский муниципальный район","94630000","26493545","ООО \"Энергия\"","1809005808","180901001","Оказание услуг в сфере водоснабжения","VS"]
[404,"Удмуртская республика","Красногорский муниципальный район","94630000","Красногорский муниципальный район","94630000","27714089","Филиал \"Пермский\" ОАО \"Славянка\"","7702707386","183843002","Оказание услуг в сфере водоснабжения","VS"]
[405,"Удмуртская республика","Красногорский муниципальный район","94630000","Красногорское","94630466","30407160","АО \"ГУ ЖКХ\"","5116000922","183845001","Транспортировка воды","VS"]
[406,"Удмуртская республика","Малопургинский муниципальный район","94633000","Малопургинский муниципальный район","94633000","26560525","АО \"ГУ ЖКХ\"","5116000922","511601001","Оказание услуг в сфере водоснабжения","VS"]
[407,"Удмуртская республика","Малопургинский муниципальный район","94633000","Малопургинский муниципальный район","94633000","30407160","АО \"ГУ ЖКХ\"","5116000922","183845001","Оказание услуг в сфере водоснабжения","VS"]
[408,"Удмуртская республика","Малопургинский муниципальный район","94633000","Малопургинский муниципальный район","94633000","26808802","Горьковская дирекция по тепловодоснабжению структурное подразделение Центральной дирекции по тепловодоснабжению - филиала ОАО \"РЖД\"","7708503727","525745041","Оказание услуг в сфере водоснабжения","VS"]
[409,"Удмуртская республика","Малопургинский муниципальный район","94633000","Малопургинский муниципальный район","94633000","26354533","МУП \"Управляющая компания в \"ЖКХ\"","1816005661","181601001","Оказание услуг в сфере водоснабжения","VS"]
[410,"Удмуртская республика","Малопургинский муниципальный район","94633000","Малопургинский муниципальный район","94633000","27837612","ООО \"Бурановское ЖКХ\"","1816005686","181601001","Оказание услуг в сфере водоснабжения","VS"]
[411,"Удмуртская республика","Малопургинский муниципальный район","94633000","Малопургинский муниципальный район","94633000","27837591","ООО \"Малопургинское ЖКХ\"","1816005703","181601001","Оказание услуг в сфере водоснабжения","VS"]
[412,"Удмуртская республика","Малопургинский муниципальный район","94633000","Малопургинский муниципальный район","94633000","28858961","ООО \"Малопургинское\"","1821011519","182101001","Оказание услуг в сфере водоснабжения","VS"]
[413,"Удмуртская республика","Малопургинский муниципальный район","94633000","Малопургинский муниципальный район","94633000","26354532","ООО \"Первый Май\"","1821009855","182101001","Оказание услуг в сфере водоснабжения","VS"]
[414,"Удмуртская республика","Малопургинский муниципальный район","94633000","Малопургинский муниципальный район","94633000","27870342","Общество с ограниченной ответственностью \"Западное\"","1816005693","181601001","Оказание услуг в сфере водоснабжения","VS"]
[415,"Удмуртская республика","Малопургинский муниципальный район","94633000","Малопургинский муниципальный район","94633000","27870342","Общество с ограниченной ответственностью \"Западное\"","1816005693","181601001","Транспортировка воды","VS"]
[416,"Удмуртская республика","Малопургинский муниципальный район","94633000","Малопургинский муниципальный район","94633000","26650200","СПК \"Родина\"","1816001346","181601001","Оказание услуг в сфере водоснабжения","VS"]
[417,"Удмуртская республика","Малопургинский муниципальный район","94633000","Малопургинский муниципальный район","94633000","26650200","СПК \"Родина\"","1816001346","181601001","Транспортировка воды","VS"]
[418,"Удмуртская республика","Малопургинский муниципальный район","94633000","Малопургинский муниципальный район","94633000","26618129","СПК \"Югдон\"","1816000688","181601001","Оказание услуг в сфере водоснабжения","VS"]
[419,"Удмуртская республика","Малопургинский муниципальный район","94633000","Малопургинский муниципальный район","94633000","26618133","СПК (колхоз) \"Рассвет\"","1816001258","181601001","Оказание услуг в сфере водоснабжения","VS"]
[420,"Удмуртская республика","Малопургинский муниципальный район","94633000","Малопургинский муниципальный район","94633000","27714089","Филиал \"Пермский\" ОАО \"Славянка\"","7702707386","183843002","Оказание услуг в сфере водоснабжения","VS"]
[421,"Удмуртская республика","Малопургинский муниципальный район","94633000","Малопургинское","94633450","30407160","АО \"ГУ ЖКХ\"","5116000922","183845001","Оказание услуг в сфере водоснабжения","VS"]
[422,"Удмуртская республика","Малопургинский муниципальный район","94633000","Малопургинское","94633450","26354533","МУП \"Управляющая компания в \"ЖКХ\"","1816005661","181601001","Оказание услуг в сфере водоснабжения","VS"]
[423,"Удмуртская республика","Малопургинский муниципальный район","94633000","Малопургинское","94633450","27837591","ООО \"Малопургинское ЖКХ\"","1816005703","181601001","Оказание услуг в сфере водоснабжения","VS"]
[424,"Удмуртская республика","Малопургинский муниципальный район","94633000","Пугачевское","94633477","27837591","ООО \"Малопургинское ЖКХ\"","1816005703","181601001","Оказание услуг в сфере водоснабжения","VS"]
[425,"Удмуртская республика","Можгинский муниципальный район","94635000","Можгинский муниципальный район","94635000","26354534","ГКУЗ \"Первая республиканская психоневрологическая больница\" Министерства здравоохранения УР","1817000271","181701001","Оказание услуг в сфере водоснабжения","VS"]
[426,"Удмуртская республика","Можгинский муниципальный район","94635000","Можгинский муниципальный район","94635000","26354538","ООО \"ИСТОК\"","1817006280","181701001","Оказание услуг в сфере водоснабжения","VS"]
[427,"Удмуртская республика","Можгинский муниципальный район","94635000","Можгинский муниципальный район","94635000","26497086","ООО \"Какси\"","1817006940","181701001","Оказание услуг в сфере водоснабжения","VS"]
[428,"Удмуртская республика","Можгинский муниципальный район","94635000","Можгинский муниципальный район","94635000","26466161","ООО \"Родина\"","1817006273","181701001","Оказание услуг в сфере водоснабжения","VS"]
[429,"Удмуртская республика","Можгинский муниципальный район","94635000","Можгинский муниципальный район","94635000","28134912","ООО \"Строй Сервис\"","1839005097","183901001","Оказание услуг в сфере водоснабжения","VS"]
[430,"Удмуртская республика","Можгинский муниципальный район","94635000","Можгинский муниципальный район","94635000","26497090","СПК \"Держава\"","1817006192","181701001","Оказание услуг в сфере водоснабжения","VS"]
[431,"Удмуртская республика","Можгинский муниципальный район","94635000","Можгинский муниципальный район","94635000","26585004","СПК \"Югдон\"","1817002568","181701001","Оказание услуг в сфере водоснабжения","VS"]
[432,"Удмуртская республика","Можгинский муниципальный район","94635000","Можгинский муниципальный район","94635000","26466245","СПК колхоз \"Трактор\"","1817000722","181701001","Оказание услуг в сфере водоснабжения","VS"]
[433,"Удмуртская республика","Можгинский муниципальный район","94635000","Можгинский муниципальный район","94635000","26493763","СПК-колхоз \"Заря\"","1817000730","181701001","Оказание услуг в сфере водоснабжения","VS"]
[434,"Удмуртская республика","Можгинский муниципальный район","94635000","Можгинский муниципальный район","94635000","26496020","СПК-колхоз \"Красный Октябрь\"","1817000761","181701001","Оказание услуг в сфере водоснабжения","VS"]
[435,"Удмуртская республика","Можгинский муниципальный район","94635000","Можгинский муниципальный район","94635000","26354537","ФБУ ИК-6 УФСИН России","1817000257","181701001","Оказание услуг в сфере водоснабжения","VS"]
[436,"Удмуртская республика","Можгинский муниципальный район","94635000","Можгинский муниципальный район","94635000","28463900","ФКУ ИК-6 УФСИН России по УР","1817000257","183901001","Оказание услуг в сфере водоснабжения","VS"]
[437,"Удмуртская республика","Сарапульский муниципальный район","94637000","Кигбаевское","94637415","26471612","ООО \"Сервис\"","1818006413","181801001","Оказание услуг в сфере водоснабжения","VS"]
[438,"Удмуртская республика","Сарапульский муниципальный район","94637000","Сарапульский муниципальный район","94637000","26560525","АО \"ГУ ЖКХ\"","5116000922","511601001","Оказание услуг в сфере водоснабжения","VS"]
[439,"Удмуртская республика","Сарапульский муниципальный район","94637000","Сарапульский муниципальный район","94637000","30407160","АО \"ГУ ЖКХ\"","5116000922","183845001","Оказание услуг в сфере водоснабжения","VS"]
[440,"Удмуртская республика","Сарапульский муниципальный район","94637000","Сарапульский муниципальный район","94637000","26808802","Горьковская дирекция по тепловодоснабжению структурное подразделение Центральной дирекции по тепловодоснабжению - филиала ОАО \"РЖД\"","7708503727","525745041","Оказание услуг в сфере водоснабжения","VS"]
[441,"Удмуртская республика","Сарапульский муниципальный район","94637000","Сарапульский муниципальный район","94637000","28029546","ИП Богданов Андрей Васильевич","182707367554","отсутствует","Оказание услуг в сфере водоснабжения","VS"]
[442,"Удмуртская республика","Сарапульский муниципальный район","94637000","Сарапульский муниципальный район","94637000","26354563","МУП г. Сарапула \"Сарапульский водоканал\"","1827004081","183801001","Транспортировка воды","VS"]
[443,"Удмуртская республика","Сарапульский муниципальный район","94637000","Сарапульский муниципальный район","94637000","28821241","ООО  \"Фаворит\"","1838011771","183801001","Оказание услуг в сфере водоснабжения","VS"]
[444,"Удмуртская республика","Сарапульский муниципальный район","94637000","Сарапульский муниципальный район","94637000","26466231","ООО \"ЖКХ Сигаево- Север\"","1818006773","181801001","Оказание услуг в сфере водоснабжения","VS"]
[445,"Удмуртская республика","Сарапульский муниципальный район","94637000","Сарапульский муниципальный район","94637000","26471612","ООО \"Сервис\"","1818006413","181801001","Оказание услуг в сфере водоснабжения","VS"]
[446,"Удмуртская республика","Сарапульский муниципальный район","94637000","Сарапульский муниципальный район","94637000","26466213","ООО \"Тарасовское\"","1818006420","181801001","Оказание услуг в сфере водоснабжения","VS"]
[447,"Удмуртская республика","Сарапульский муниципальный район","94637000","Сарапульский муниципальный район","94637000","26471644","ООО \"Теплокомплекс\"","1818006646","181801001","Оказание услуг в сфере водоснабжения","VS"]
[448,"Удмуртская республика","Сарапульский муниципальный район","94637000","Сарапульский муниципальный район","94637000","26354631","ООО \"Теплоцентр\"","1838002255","183801001","Оказание услуг в сфере водоснабжения","VS"]
[449,"Удмуртская республика","Сарапульский муниципальный район","94637000","Сарапульский муниципальный район","94637000","26466209","ООО \"Уральское\"","1818006220","181801001","Оказание услуг в сфере водоснабжения","VS"]
[450,"Удмуртская республика","Сарапульский муниципальный район","94637000","Сарапульский муниципальный район","94637000","26466209","ООО \"Уральское\"","1818006220","181801001","Транспортировка воды","VS"]
[451,"Удмуртская республика","Сарапульский муниципальный район","94637000","Сарапульский муниципальный район","94637000","28506206","ООО \"Энергосфера\"","1840021583","184001001","Оказание услуг в сфере водоснабжения","VS"]
[452,"Удмуртская республика","Сарапульский муниципальный район","94637000","Сарапульский муниципальный район","94637000","27714089","Филиал \"Пермский\" ОАО \"Славянка\"","7702707386","183843002","Оказание услуг в сфере водоснабжения","VS"]
[453,"Удмуртская республика","Сарапульский муниципальный район","94637000","Шевыряловское","94637455","30407160","АО \"ГУ ЖКХ\"","5116000922","183845001","Оказание услуг в сфере водоснабжения","VS"]
[454,"Удмуртская республика","Селтинский муниципальный район","94639000","Валамазское","94639411","28799164","ООО \"Селтыводоканал\"","1821011766","182101001","Оказание услуг в сфере водоснабжения","VS"]
[455,"Удмуртская республика","Селтинский муниципальный район","94639000","Кильмезское","94639420","28799164","ООО \"Селтыводоканал\"","1821011766","182101001","Оказание услуг в сфере водоснабжения","VS"]
[456,"Удмуртская республика","Селтинский муниципальный район","94639000","Копкинское","94639433","28799164","ООО \"Селтыводоканал\"","1821011766","182101001","Оказание услуг в сфере водоснабжения","VS"]
[457,"Удмуртская республика","Селтинский муниципальный район","94639000","Новомоньинское","94639444","28799164","ООО \"Селтыводоканал\"","1821011766","182101001","Оказание услуг в сфере водоснабжения","VS"]
[458,"Удмуртская республика","Селтинский муниципальный район","94639000","Селтинский муниципальный район","94639000","30840177","МУП \"Тепловодосети\"","1819001601","182101001","Оказание услуг в сфере водоснабжения","VS"]
[459,"Удмуртская республика","Селтинский муниципальный район","94639000","Селтинский муниципальный район","94639000","26466237","ООО \"Батыр\"","1819002940","181901001","Оказание услуг в сфере водоснабжения","VS"]
[460,"Удмуртская республика","Селтинский муниципальный район","94639000","Селтинский муниципальный район","94639000","30370665","ООО \"Водсервис\"","1821013107","182101001","Оказание услуг в сфере водоснабжения","VS"]
[461,"Удмуртская республика","Селтинский муниципальный район","94639000","Селтинский муниципальный район","94639000","26466199","ООО \"Гопгурт\"","1835059285","183501001","Оказание услуг в сфере водоснабжения","VS"]
[462,"Удмуртская республика","Селтинский муниципальный район","94639000","Селтинский муниципальный район","94639000","28004904","ООО \"Селтинские коммунальные сети\"","1821010522","182101001","Оказание услуг в сфере водоснабжения","VS"]
[463,"Удмуртская республика","Селтинский муниципальный район","94639000","Селтинский муниципальный район","94639000","27713982","ООО \"Селтинское коммунальное хозяйство\"","1821009485","182101001","Оказание услуг в сфере водоснабжения","VS"]
[464,"Удмуртская республика","Селтинский муниципальный район","94639000","Селтинский муниципальный район","94639000","28799164","ООО \"Селтыводоканал\"","1821011766","182101001","Оказание услуг в сфере водоснабжения","VS"]
[465,"Удмуртская республика","Селтинский муниципальный район","94639000","Селтинский муниципальный район","94639000","26466177","СПК \"Звезда\"","1819000301","181901001","Оказание услуг в сфере водоснабжения","VS"]
[466,"Удмуртская республика","Селтинский муниципальный район","94639000","Селтинский муниципальный район","94639000","26466205","СПК \"Свобода\"","1819000157","181901001","Оказание услуг в сфере водоснабжения","VS"]
[467,"Удмуртская республика","Селтинский муниципальный район","94639000","Селтинское","94639455","28799164","ООО \"Селтыводоканал\"","1821011766","182101001","Оказание услуг в сфере водоснабжения","VS"]
[468,"Удмуртская республика","Селтинский муниципальный район","94639000","Узинское","94639466","28799164","ООО \"Селтыводоканал\"","1821011766","182101001","Оказание услуг в сфере водоснабжения","VS"]
[469,"Удмуртская республика","Селтинский муниципальный район","94639000","Халдинское","94639477","28799164","ООО \"Селтыводоканал\"","1821011766","182101001","Оказание услуг в сфере водоснабжения","VS"]
[470,"Удмуртская республика","Сюмсинский муниципальный район","94641000","Орловское","94641455","27326816","ООО \"Жилкомснаб\"","1821008280","182001001","Оказание услуг в сфере водоснабжения","VS"]
[471,"Удмуртская республика","Сюмсинский муниципальный район","94641000","Сюмсинский муниципальный район","94641000","26629356","Кооперативное хозяйство \"Труд\"","1820000289","182001001","Оказание услуг в сфере водоснабжения","VS"]
[472,"Удмуртская республика","Увинский муниципальный район","94644000","Увинский муниципальный район","94644000","26560525","АО \"ГУ ЖКХ\"","5116000922","511601001","Транспортировка воды","VS"]
[473,"Удмуртская республика","Увинский муниципальный район","94644000","Увинский муниципальный район","94644000","30407160","АО \"ГУ ЖКХ\"","5116000922","183845001","Транспортировка воды","VS"]
[474,"Удмуртская республика","Увинский муниципальный район","94644000","Увинский муниципальный район","94644000","26619334","ООО \"Дружба\"","1821005900","182101001","Оказание услуг в сфере водоснабжения","VS"]
[475,"Удмуртская республика","Увинский муниципальный район","94644000","Увинский муниципальный район","94644000","26354542","ООО \"Санаторий Ува\"","1821000122","182101001","Оказание услуг в сфере водоснабжения","VS"]
[476,"Удмуртская республика","Увинский муниципальный район","94644000","Увинский муниципальный район","94644000","26615829","ООО \"СтройКомИнвест\"","1832047010","182101001","Оказание услуг в сфере водоснабжения","VS"]
[477,"Удмуртская республика","Увинский муниципальный район","94644000","Увинский муниципальный район","94644000","26496024","ООО \"Увинская управляющая компания ЖКХ\"","1821008869","182101001","Оказание услуг в сфере водоснабжения","VS"]
[478,"Удмуртская республика","Увинский муниципальный район","94644000","Увинский муниципальный район","94644000","26466285","СПК \"Колхоз Заря\"","1821000563","182101001","Оказание услуг в сфере водоснабжения","VS"]
[479,"Удмуртская республика","Увинский муниципальный район","94644000","Увинский муниципальный район","94644000","26466153","СПК \"Колхоз Искра\"","1821000228","182101001","Оказание услуг в сфере водоснабжения","VS"]
[480,"Удмуртская республика","Увинский муниципальный район","94644000","Увинский муниципальный район","94644000","26466289","СПК \"Колхоз Луч\"","1821001359","182101001","Оказание услуг в сфере водоснабжения","VS"]
[481,"Удмуртская республика","Увинский муниципальный район","94644000","Увинский муниципальный район","94644000","26466247","СПК \"Колхоз имени Ленина\"","1821000588","182101001","Оказание услуг в сфере водоснабжения","VS"]
[482,"Удмуртская республика","Увинский муниципальный район","94644000","Увинский муниципальный район","94644000","26466227","СПК \"Колхоз имени Свердлова\"","1821000637","182101001","Оказание услуг в сфере водоснабжения","VS"]
[483,"Удмуртская республика","Увинский муниципальный район","94644000","Увинский муниципальный район","94644000","26354543","СПК \"Победа\"","1821000348","182101001","Оказание услуг в сфере водоснабжения","VS"]
[484,"Удмуртская республика","Увинский муниципальный район","94644000","Увинский муниципальный район","94644000","26466207","СПК \"Свобода\"","1821000443","182101001","Оказание услуг в сфере водоснабжения","VS"]
[485,"Удмуртская республика","Увинский муниципальный район","94644000","Увинский муниципальный район","94644000","26466171","СПК колхоз \"Авангард\"","1821000620","182101001","Оказание услуг в сфере водоснабжения","VS"]
[486,"Удмуртская республика","Увинский муниципальный район","94644000","Увинский муниципальный район","94644000","26359246","Увинское ЛПУМГ ООО \"Газпромтрансгаз Чайковский\"","5920000593","182102001","Оказание услуг в сфере водоснабжения","VS"]
[487,"Удмуртская республика","Увинский муниципальный район","94644000","Увинский муниципальный район","94644000","27714089","Филиал \"Пермский\" ОАО \"Славянка\"","7702707386","183843002","Оказание услуг в сфере водоснабжения","VS"]
[488,"Удмуртская республика","Увинский муниципальный район","94644000","Увинское","94644466","26560525","АО \"ГУ ЖКХ\"","5116000922","511601001","Транспортировка воды","VS"]
[489,"Удмуртская республика","Увинский муниципальный район","94644000","Увинское","94644466","30407160","АО \"ГУ ЖКХ\"","5116000922","183845001","Транспортировка воды","VS"]
[490,"Удмуртская республика","Шарканский муниципальный район","94646000","Шарканский муниципальный район","94646000","30847794","МУП \" Коммунсервис\"","1822004715","182801001","Оказание услуг в сфере водоснабжения","VS"]
[491,"Удмуртская республика","Шарканский муниципальный район","94646000","Шарканский муниципальный район","94646000","26466159","МУП \"Водоканал\" МО \"Шарканский район\"","1822004673","182201001","Оказание услуг в сфере водоснабжения","VS"]
[492,"Удмуртская республика","Шарканский муниципальный район","94646000","Шарканский муниципальный район","94646000","26466159","МУП \"Водоканал\" МО \"Шарканский район\"","1822004673","182201001","Транспортировка воды","VS"]
[493,"Удмуртская республика","Шарканский муниципальный район","94646000","Шарканский муниципальный район","94646000","26466169","ОАО \"Удмуртгеология\"","1835011614","184101001","Оказание услуг в сфере водоснабжения","VS"]
[494,"Удмуртская республика","Шарканский муниципальный район","94646000","Шарканский муниципальный район","94646000","28874910","ООО \"Исток\"","1822004835","182801001","Оказание услуг в сфере водоснабжения","VS"]
[495,"Удмуртская республика","Шарканский муниципальный район","94646000","Шарканский муниципальный район","94646000","27366481","ООО \"Шарканский льнозавод\"","1822004680","182201001","Оказание услуг в сфере водоснабжения","VS"]
[496,"Удмуртская республика","Шарканский муниципальный район","94646000","Шарканский муниципальный район","94646000","27366513","СХК \"Луч\"","1822000069","182201001","Оказание услуг в сфере водоснабжения","VS"]
[497,"Удмуртская республика","Шарканский муниципальный район","94646000","Шарканское","94646460","30847794","МУП \" Коммунсервис\"","1822004715","182801001","Оказание услуг в сфере водоснабжения","VS"]
[498,"Удмуртская республика","Юкаменский муниципальный район","94648000","Юкаменский муниципальный район","94648000","26466235","ООО \"ЖИЛКОМ\"","1837004531","183701001","Оказание услуг в сфере водоснабжения","VS"]
[499,"Удмуртская республика","Юкаменский муниципальный район","94648000","Юкаменский муниципальный район","94648000","27687196","ООО \"Маяк\"","1837007356","183701001","Оказание услуг в сфере водоснабжения","VS"]
[500,"Удмуртская республика","Якшур-Бодьинский муниципальный район","94650000","Якшур-Бодьинский муниципальный район","94650000","26493643","АО \"ИЭМЗ \"Купол\"","1831083343","997850001","Оказание услуг в сфере водоснабжения","VS"]
[501,"Удмуртская республика","Якшур-Бодьинский муниципальный район","94650000","Якшур-Бодьинский муниципальный район","94650000","26466155","АСУ СО УР \"Канифольный детский дом  - интернат для умственно отсталых детей\"","1824002054","183101001","Оказание услуг в сфере водоснабжения","VS"]
[502,"Удмуртская республика","Якшур-Бодьинский муниципальный район","94650000","Якшур-Бодьинский муниципальный район","94650000","28940009","АСУСО УР \"Нагорный психоневрологический интернат\"","1831042435","183101001","Оказание услуг в сфере водоснабжения","VS"]
[503,"Удмуртская республика","Якшур-Бодьинский муниципальный район","94650000","Якшур-Бодьинский муниципальный район","94650000","26495983","БСУ СО УР \"Селычинский психоневрологический интернат\"","1824001371","182401001","Оказание услуг в сфере водоснабжения","VS"]
[504,"Удмуртская республика","Якшур-Бодьинский муниципальный район","94650000","Якшур-Бодьинский муниципальный район","94650000","26497148","БСУ СО УР \"Якшур-Бодьинский психоневрологический интернат\"","1824002079","182401001","Оказание услуг в сфере водоснабжения","VS"]
[505,"Удмуртская республика","Якшур-Бодьинский муниципальный район","94650000","Якшур-Бодьинский муниципальный район","94650000","26354549","БУЗ РДС \"Селычка\" Министерства здравоохранения УР","1824001269","182401001","Оказание услуг в сфере водоснабжения","VS"]
[506,"Удмуртская республика","Якшур-Бодьинский муниципальный район","94650000","Якшур-Бодьинский муниципальный район","94650000","26619050","БУЗ УР «Якшур-Бодьинская РБ МЗ УР»","1824002030","182401001","Оказание услуг в сфере водоснабжения","VS"]
[507,"Удмуртская республика","Якшур-Бодьинский муниципальный район","94650000","Якшур-Бодьинский муниципальный район","94650000","26354547","ЗАО \"Чуровской завод силикатных стеновых материалов\"","1824000385","182401001","Оказание услуг в сфере водоснабжения","VS"]
[508,"Удмуртская республика","Якшур-Бодьинский муниципальный район","94650000","Якшур-Бодьинский муниципальный район","94650000","30840229","ООО \"Техноресурс\"","1840006948","184001001","Оказание услуг в сфере водоснабжения","VS"]
[509,"Удмуртская республика","Якшур-Бодьинский муниципальный район","94650000","Якшур-Бодьинский муниципальный район","94650000","27235635","ООО УК \"Соцкомсервис\"","1809008654","183101001","Оказание услуг в сфере водоснабжения","VS"]
[510,"Удмуртская республика","Якшур-Бодьинский муниципальный район","94650000","Якшур-Бодьинское","94650450","26354606","ООО \"ИРЗ-Энерго\"","1833027591","184001001","Оказание услуг в сфере водоснабжения","VS"]
[511,"Удмуртская республика","Ярский муниципальный район","94652000","Ярский муниципальный район","94652000","26808802","Горьковская дирекция по тепловодоснабжению структурное подразделение Центральной дирекции по тепловодоснабжению - филиала ОАО \"РЖД\"","7708503727","525745041","Оказание услуг в сфере водоснабжения","VS"]
[512,"Удмуртская республика","Ярский муниципальный район","94652000","Ярский муниципальный район","94652000","28152474","ООО \"Штурман\"","1837001114","183701001","Оказание услуг в сфере водоснабжения","VS"]
[513,"Удмуртская республика","Ярский муниципальный район","94652000","Ярский муниципальный район","94652000","26354583","ООО \"Энергия\"","1829015459","183701001","Оказание услуг в сфере водоснабжения","VS"]
[514,"Удмуртская республика","Ярский муниципальный район","94652000","Ярский муниципальный район","94652000","30371919","ООО \"Ярский водоканал\"","1837013416","183701001","Оказание услуг в сфере водоснабжения","VS"]
[515,"Удмуртская республика","Ярский муниципальный район","94652000","Ярский муниципальный район","94652000","26354554","Ярское МУП \"Тепловодоснабжение\" МО \"Ярский район\"","1825003406","182501001","Оказание услуг в сфере водоснабжения","VS"]
[516,"Удмуртская республика","Ярский муниципальный район","94652000","Ярское","94652480","26808802","Горьковская дирекция по тепловодоснабжению структурное подразделение Центральной дирекции по тепловодоснабжению - филиала ОАО \"РЖД\"","7708503727","525745041","Оказание услуг в сфере водоснабжения","VS"]

{"sheet":"modClassifierValidate","index":20,"n_rows":0,"n_cols":0,"rows_kept":0,"cut":false,"hidden":true,"merged":[]}

{"sheet":"modHyp","index":21,"n_rows":0,"n_cols":0,"rows_kept":0,"cut":false,"hidden":true,"merged":[]}

{"sheet":"modList00","index":22,"n_rows":0,"n_cols":0,"rows_kept":0,"cut":false,"hidden":true,"merged":[]}

{"sheet":"modList01","index":23,"n_rows":0,"n_cols":0,"rows_kept":0,"cut":false,"hidden":true,"merged":[]}

{"sheet":"modList02","index":24,"n_rows":0,"n_cols":0,"rows_kept":0,"cut":false,"hidden":true,"merged":[]}

{"sheet":"modList03","index":25,"n_rows":0,"n_cols":0,"rows_kept":0,"cut":false,"hidden":true,"merged":[]}

{"sheet":"modList04","index":26,"n_rows":0,"n_cols":0,"rows_kept":0,"cut":false,"hidden":true,"merged":[]}

{"sheet":"modfrmDateChoose","index":27,"n_rows":0,"n_cols":0,"rows_kept":0,"cut":false,"hidden":true,"merged":[]}

{"sheet":"modComm","index":28,"n_rows":0,"n_cols":0,"rows_kept":0,"cut":false,"hidden":true,"merged":[]}

{"sheet":"modThisWorkbook","index":29,"n_rows":0,"n_cols":0,"rows_kept":0,"cut":false,"hidden":true,"merged":[]}

{"sheet":"REESTR_MO","index":30,"n_rows":342,"n_cols":4,"rows_kept":342,"cut":false,"hidden":true,"merged":[]}
["№","МР","МО","МО_ОКТМО"]
[1,"Алнашский муниципальный район","Азаматовское","94602410"]
[2,"Алнашский муниципальный район","Алнашский муниципальный район","94602000"]
[3,"Алнашский муниципальный район","Алнашское","94602420"]
[4,"Алнашский муниципальный район","Асановское","94602430"]
[5,"Алнашский муниципальный район","Байтеряковское","94602440"]
[6,"Алнашский муниципальный район","Варзи-Ятчинское","94602450"]
[7,"Алнашский муниципальный район","Кузебаевское","94602460"]
[8,"Алнашский муниципальный район","Муважинское","94602465"]
[9,"Алнашский муниципальный район","Писеевское","94602470"]
[10,"Алнашский муниципальный район","Ромашкинское","94602474"]
[11,"Алнашский муниципальный район","Староутчанское","94602480"]
[12,"Алнашский муниципальный район","Техникумовское","94602485"]
[13,"Алнашский муниципальный район","Удмурт-Тоймобашское","94602490"]
[14,"Балезинский муниципальный район","Андрейшурское","94604405"]
[15,"Балезинский муниципальный район","Балезинский муниципальный район","94604000"]
[16,"Балезинский муниципальный район","Балезинское","94604475"]
[17,"Балезинский муниципальный район","Большеварыжское","94604410"]
[18,"Балезинский муниципальный район","Верх-Люкинское","94604415"]
[19,"Балезинский муниципальный район","Воегуртское","94604420"]
[20,"Балезинский муниципальный район","Исаковское","94604422"]
[21,"Балезинский муниципальный район","Каменно-Задельское","94604423"]
[22,"Балезинский муниципальный район","Карсовайское","94604425"]
[23,"Балезинский муниципальный район","Кестымское","94604430"]
[24,"Балезинский муниципальный район","Киршонское","94604432"]
[25,"Балезинский муниципальный район","Кожильское","94604435"]
[26,"Балезинский муниципальный район","Люкское","94604445"]
[27,"Балезинский муниципальный район","Пыбьинское","94604447"]
[28,"Балезинский муниципальный район","Сергинское","94604455"]
[29,"Балезинский муниципальный район","Турецкое","94604460"]
[30,"Балезинский муниципальный район","Эркешевское","94604450"]
[31,"Балезинский муниципальный район","Юндинское","94604470"]
[32,"Вавожский муниципальный район","Большеволковское","94606411"]
[33,"Вавожский муниципальный район","Брызгаловское","94606422"]
[34,"Вавожский муниципальный район","Вавожский муниципальный район","94606000"]
[35,"Вавожский муниципальный район","Вавожское","94606433"]
[36,"Вавожский муниципальный район","Водзимоньинское","94606444"]
[37,"Вавожский муниципальный район","Волипельгинское","94606455"]
[38,"Вавожский муниципальный район","Гурезь-Пудгинское","94606466"]
[39,"Вавожский муниципальный район","Зямбайгуртское","94606470"]
[40,"Вавожский муниципальный район","Какможское","94606477"]
[41,"Вавожский муниципальный район","Нюрдор-Котьинское","94606480"]
[42,"Вавожский муниципальный район","Тыловыл-Пельгинское","94606488"]
[43,"Воткинский муниципальный район","Болгуринское","94608405"]
[44,"Воткинский муниципальный район","Большикиварское","94608410"]
[45,"Воткинский муниципальный район","Верхнеталицкое","94608413"]
[46,"Воткинский муниципальный район","Воткинский муниципальный район","94608000"]
[47,"Воткинский муниципальный район","Гавриловское","94608420"]
[48,"Воткинский муниципальный район","Июльское","94608425"]
[49,"Воткинский муниципальный район","Камское","94608430"]
[50,"Воткинский муниципальный район","Кварсинское","94608435"]
[51,"Воткинский муниципальный район","Кукуевское","94608437"]
[52,"Воткинский муниципальный район","Нововолковское","94608455"]
[53,"Воткинский муниципальный район","Первомайское","94608440"]
[54,"Воткинский муниципальный район","Перевозинское","94608445"]
[55,"Воткинский муниципальный район","Светлянское","94608450"]
[56,"Глазовский муниципальный район","Адамское","94610405"]
[57,"Глазовский муниципальный район","Верхнебогатырское","94610410"]
[58,"Глазовский муниципальный район","Глазовский муниципальный район","94610000"]
[59,"Глазовский муниципальный район","Гулековское","94610415"]
[60,"Глазовский муниципальный район","Качкашурское","94610430"]
[61,"Глазовский муниципальный район","Кожильское","94610435"]
[62,"Глазовский муниципальный район","Куреговское","94610442"]
[63,"Глазовский муниципальный район","Октябрьское","94610448"]
[64,"Глазовский муниципальный район","Парзинское","94610450"]
[65,"Глазовский муниципальный район","Понинское","94610455"]
[66,"Глазовский муниципальный район","Ураковское","94610465"]
[67,"Глазовский муниципальный район","Штанигуртское","94610460"]
[68,"Город Воткинск","Город Воткинск","94710000"]
[69,"Город Глазов","Город Глазов","94720000"]
[70,"Город Ижевск","Город Ижевск","94701000"]
[71,"Город Можга","Город Можга","94730000"]
[72,"Город Сарапул","Город Сарапул","94740000"]
[73,"Граховский муниципальный район","Верхнеигринское","94612411"]
[74,"Граховский муниципальный район","Граховский муниципальный район","94612000"]
[75,"Граховский муниципальный район","Граховское","94612422"]
[76,"Граховский муниципальный район","Каменское","94612430"]
[77,"Граховский муниципальный район","Котловское","94612431"]
[78,"Граховский муниципальный район","Лолошур-Возжинское","94612433"]
[79,"Граховский муниципальный район","Новогорское","94612444"]
[80,"Граховский муниципальный район","Парымозареченское","94612447"]
[81,"Граховский муниципальный район","Староятчинское","94612455"]
[82,"Дебесский муниципальный район","Большезетымское","94614405"]
[83,"Дебесский муниципальный район","Дебесский муниципальный район","94614000"]
[84,"Дебесский муниципальный район","Дебесское","94614415"]
[85,"Дебесский муниципальный район","Заречномедлинское","94614420"]
[86,"Дебесский муниципальный район","Котегуртское","94614425"]
[87,"Дебесский муниципальный район","Нижнепыхтинское","94614430"]
[88,"Дебесский муниципальный район","Старокычское","94614434"]
[89,"Дебесский муниципальный район","Сюрногуртское","94614435"]
[90,"Дебесский муниципальный район","Тольенское","94614440"]
[91,"Дебесский муниципальный район","Тыловайское","94614445"]
[92,"Дебесский муниципальный район","Уйвайское","94614450"]
[93,"Завьяловский муниципальный район","Бабинское","94616405"]
[94,"Завьяловский муниципальный район","Вараксинское","94616407"]
[95,"Завьяловский муниципальный район","Гольянское","94616410"]
[96,"Завьяловский муниципальный район","Завьяловский муниципальный район","94616000"]
[97,"Завьяловский муниципальный район","Завьяловское","94616415"]
[98,"Завьяловский муниципальный район","Италмасовское","94616417"]
[99,"Завьяловский муниципальный район","Казмасское","94616420"]
[100,"Завьяловский муниципальный район","Каменское","94616425"]
[101,"Завьяловский муниципальный район","Кияикское","94616428"]
[102,"Завьяловский муниципальный район","Люкское","94616430"]
[103,"Завьяловский муниципальный район","Октябрьское","94616432"]
[104,"Завьяловский муниципальный район","Первомайское","94616435"]
[105,"Завьяловский муниципальный район","Пироговское","94616437"]
[106,"Завьяловский муниципальный район","Подшиваловское","94616440"]
[107,"Завьяловский муниципальный район","Совхозное","94616455"]
[108,"Завьяловский муниципальный район","Среднепостольское","94616445"]
[109,"Завьяловский муниципальный район","Хохряковское","94616447"]
[110,"Завьяловский муниципальный район","Шабердинское","94616450"]
[111,"Завьяловский муниципальный район","Ягульское","94616460"]
[112,"Завьяловский муниципальный район","Якшурское","94616465"]
[113,"Игринский муниципальный район","Беляевское","94618445"]
[114,"Игринский муниципальный район","Зуринское","94618410"]
[115,"Игринский муниципальный район","Игринский муниципальный район","94618000"]
[116,"Игринский муниципальный район","Игринское","94618415"]
[117,"Игринский муниципальный район","Кабачигуртское","94618420"]
[118,"Игринский муниципальный район","Комсомольское","94618426"]
[119,"Игринский муниципальный район","Кушьинское","94618427"]
[120,"Игринский муниципальный район","Лозинское","94618430"]
[121,"Игринский муниципальный район","Лозо-Люкское","94618425"]
[122,"Игринский муниципальный район","Лонки-Ворцинское","94618465"]
[123,"Игринский муниципальный район","Мужберское","94618435"]
[124,"Игринский муниципальный район","Новозятцинское","94618440"]
[125,"Игринский муниципальный район","Сепское","94618450"]
[126,"Игринский муниципальный район","Сундурское","94618451"]
[127,"Игринский муниципальный район","Факельское","94618453"]
[128,"Игринский муниципальный район","Чутырское","94618455"]
[129,"Камбарский муниципальный район","Армязьское","94620403"]
[130,"Камбарский муниципальный район","Борковское","94620408"]
[131,"Камбарский муниципальный район","Ершовское","94620415"]
[132,"Камбарский муниципальный район","Камбарский муниципальный район","94620000"]
[133,"Камбарский муниципальный район","Камбарское","94620101"]
[134,"Камбарский муниципальный район","Камское","94620420"]
[135,"Камбарский муниципальный район","Михайловское","94620422"]
[136,"Камбарский муниципальный район","Нефтебазинское","94620430"]
[137,"Камбарский муниципальный район","Шольинское","94620450"]
[138,"Каракулинский муниципальный район","Арзамасцевское","94622411"]
[139,"Каракулинский муниципальный район","Боярское","94622427"]
[140,"Каракулинский муниципальный район","Быргындинское","94622430"]
[141,"Каракулинский муниципальный район","Вятское","94622433"]
[142,"Каракулинский муниципальный район","Галановское","94622444"]
[143,"Каракулинский муниципальный район","Каракулинский муниципальный район","94622000"]
[144,"Каракулинский муниципальный район","Каракулинское","94622455"]
[145,"Каракулинский муниципальный район","Колесниковское","94622456"]
[146,"Каракулинский муниципальный район","Кулюшевское","94622458"]
[147,"Каракулинский муниципальный район","Малокалмашинское","94622422"]
[148,"Каракулинский муниципальный район","Ныргындинское","94622466"]
[149,"Каракулинский муниципальный район","Пинязьское","94622470"]
[150,"Каракулинский муниципальный район","Чегандинское","94622477"]
[151,"Кезский муниципальный район","Большеолыпское","94624415"]
[152,"Кезский муниципальный район","Гыинское","94624420"]
[153,"Кезский муниципальный район","Кабалудское","94624425"]
[154,"Кезский муниципальный район","Кезский муниципальный район","94624000"]
[155,"Кезский муниципальный район","Кезское","94624426"]
[156,"Кезский муниципальный район","Ключевское","94624428"]
[157,"Кезский муниципальный район","Кузьминское","94624430"]
[158,"Кезский муниципальный район","Кулигинское","94624435"]
[159,"Кезский муниципальный район","Мысовское","94624440"]
[160,"Кезский муниципальный район","Новоунтемское","94624445"]
[161,"Кезский муниципальный район","Поломское","94624455"]
[162,"Кезский муниципальный район","Сосновоборское","94624462"]
[163,"Кезский муниципальный район","Степаненское","94624465"]
[164,"Кезский муниципальный район","Сюрзинское","94624468"]
[165,"Кезский муниципальный район","Чепецкое","94624480"]
[166,"Кезский муниципальный район","Юскинское","94624485"]
[167,"Кизнерский муниципальный район","Балдеевское","94626405"]
[168,"Кизнерский муниципальный район","Безменшурское","94626410"]
[169,"Кизнерский муниципальный район","Бемыжское","94626415"]
[170,"Кизнерский муниципальный район","Верхнебемыжское","94626422"]
[171,"Кизнерский муниципальный район","Кизнерский муниципальный район","94626000"]
[172,"Кизнерский муниципальный район","Кизнерское","94626435"]
[173,"Кизнерский муниципальный район","Короленковское","94626440"]
[174,"Кизнерский муниципальный район","Крымско-Слудское","94626445"]
[175,"Кизнерский муниципальный район","Липовское","94626451"]
[176,"Кизнерский муниципальный район","Муркозь-Омгинское","94626455"]
[177,"Кизнерский муниципальный район","Саркузское","94626460"]
[178,"Кизнерский муниципальный район","Старободьинское","94626463"]
[179,"Кизнерский муниципальный район","Старокармыжское","94626464"]
[180,"Кизнерский муниципальный район","Старокопкинское","94626465"]
[181,"Кизнерский муниципальный район","Ягульское","94626470"]
[182,"Киясовский муниципальный район","Ермолаевское","94628411"]
[183,"Киясовский муниципальный район","Ильдибаевское","94628422"]
[184,"Киясовский муниципальный район","Карамас-Пельгинское","94628433"]
[185,"Киясовский муниципальный район","Киясовский муниципальный район","94628000"]
[186,"Киясовский муниципальный район","Киясовское","94628444"]
[187,"Киясовский муниципальный район","Лутохинское","94628455"]
[188,"Киясовский муниципальный район","Мушаковское","94628466"]
[189,"Киясовский муниципальный район","Первомайское","94628477"]
[190,"Киясовский муниципальный район","Подгорновское","94628488"]
[191,"Красногорский муниципальный район","Агрикольское","94630405"]
[192,"Красногорский муниципальный район","Архангельское","94630411"]
[193,"Красногорский муниципальный район","Валамаз","94630430"]
[194,"Красногорский муниципальный район","Васильевское","94630433"]
[195,"Красногорский муниципальный район","Дебинское","94630444"]
[196,"Красногорский муниципальный район","Кокман","94630455"]
[197,"Красногорский муниципальный район","Красногорский муниципальный район","94630000"]
[198,"Красногорский муниципальный район","Красногорское","94630466"]
[199,"Красногорский муниципальный район","Курьинское","94630477"]
[200,"Красногорский муниципальный район","Прохоровское","94630488"]
[201,"Красногорский муниципальный район","Селеговское","94630422"]
[202,"Малопургинский муниципальный район","Аксакшурское","94633403"]
[203,"Малопургинский муниципальный район","Баграш-Бигринское","94633408"]
[204,"Малопургинский муниципальный район","Бобья-Учинское","94633410"]
[205,"Малопургинский муниципальный район","Бурановское","94633420"]
[206,"Малопургинский муниципальный район","Иваново-Самарское","94633425"]
[207,"Малопургинский муниципальный район","Ильинское","94633430"]
[208,"Малопургинский муниципальный район","Кечевское","94633440"]
[209,"Малопургинский муниципальный район","Малопургинский муниципальный район","94633000"]
[210,"Малопургинский муниципальный район","Малопургинское","94633450"]
[211,"Малопургинский муниципальный район","Нижнеюринское","94633460"]
[212,"Малопургинский муниципальный район","Норьинское","94633470"]
[213,"Малопургинский муниципальный район","Постольское","94633475"]
[214,"Малопургинский муниципальный район","Пугачевское","94633477"]
[215,"Малопургинский муниципальный район","Старомоньинское","94633480"]
[216,"Малопургинский муниципальный район","Уромское","94633490"]
[217,"Малопургинский муниципальный район","Яганское","94633495"]
[218,"Можгинский муниципальный район","Александровское","94635403"]
[219,"Можгинский муниципальный район","Большекибьинское","94635405"]
[220,"Можгинский муниципальный район","Большепудгинское","94635410"]
[221,"Можгинский муниципальный район","Большесибинское","94635412"]
[222,"Можгинский муниципальный район","Большеучинское","94635415"]
[223,"Можгинский муниципальный район","Верхнеюринское","94635417"]
[224,"Можгинский муниципальный район","Горнякское","94635418"]
[225,"Можгинский муниципальный район","Кватчинское","94635420"]
[226,"Можгинский муниципальный район","Люгинское","94635422"]
[227,"Можгинский муниципальный район","Маловоложикьинское","94635425"]
[228,"Можгинский муниципальный район","Мельниковское","94635430"]
[229,"Можгинский муниципальный район","Можгинский муниципальный район","94635000"]
[230,"Можгинский муниципальный район","Можгинское","94635435"]
[231,"Можгинский муниципальный район","Нынекское","94635445"]
[232,"Можгинский муниципальный район","Нышинское","94635447"]
[233,"Можгинский муниципальный район","Пазяльское","94635449"]
[234,"Можгинский муниципальный район","Пычасское","94635451"]
[235,"Можгинский муниципальный район","Старокаксинское","94635455"]
[236,"Можгинский муниципальный район","Сюгаильское","94635460"]
[237,"Можгинский муниципальный район","Черемушкинское","94635465"]
[238,"Сарапульский муниципальный район","Девятовское","94637403"]
[239,"Сарапульский муниципальный район","Дулесовское","94637405"]
[240,"Сарапульский муниципальный район","Кигбаевское","94637415"]
[241,"Сарапульский муниципальный район","Мазунинское","94637420"]
[242,"Сарапульский муниципальный район","Мостовинское","94637425"]
[243,"Сарапульский муниципальный район","Нечкинское","94637430"]
[244,"Сарапульский муниципальный район","Октябрьское","94637465"]
[245,"Сарапульский муниципальный район","Оленье Болото","94637431"]
[246,"Сарапульский муниципальный район","Сарапульский муниципальный район","94637000"]
[247,"Сарапульский муниципальный район","Северное","94637433"]
[248,"Сарапульский муниципальный район","Сигаевское","94637435"]
[249,"Сарапульский муниципальный район","Соколовское","94637437"]
[250,"Сарапульский муниципальный район","Тарасовское","94637440"]
[251,"Сарапульский муниципальный район","Уральское","94637445"]
[252,"Сарапульский муниципальный район","Усть-Сарапульское","94637447"]
[253,"Сарапульский муниципальный район","Шадринское","94637450"]
[254,"Сарапульский муниципальный район","Шевыряловское","94637455"]
[255,"Сарапульский муниципальный район","Юринское","94637460"]
[256,"Селтинский муниципальный район","Валамазское","94639411"]
[257,"Селтинский муниципальный район","Кильмезское","94639420"]
[258,"Селтинский муниципальный район","Колесурское","94639422"]
[259,"Селтинский муниципальный район","Копкинское","94639433"]
[260,"Селтинский муниципальный район","Новомоньинское","94639444"]
[261,"Селтинский муниципальный район","Селтинский муниципальный район","94639000"]
[262,"Селтинский муниципальный район","Селтинское","94639455"]
[263,"Селтинский муниципальный район","Сюромошурское","94639458"]
[264,"Селтинский муниципальный район","Узинское","94639466"]
[265,"Селтинский муниципальный район","Халдинское","94639477"]
[266,"Сюмсинский муниципальный район","Васькинское","94641411"]
[267,"Сюмсинский муниципальный район","Гуринское","94641422"]
[268,"Сюмсинский муниципальный район","Гуртлудское","94641433"]
[269,"Сюмсинский муниципальный район","Дмитрошурское","94641444"]
[270,"Сюмсинский муниципальный район","Кильмезское","94641460"]
[271,"Сюмсинский муниципальный район","Муки-Каксинское","94641466"]
[272,"Сюмсинский муниципальный район","Орловское","94641455"]
[273,"Сюмсинский муниципальный район","Сюмсинский муниципальный район","94641000"]
[274,"Сюмсинский муниципальный район","Сюмсинское","94641488"]
[275,"Увинский муниципальный район","Булайское","94644455"]
[276,"Увинский муниципальный район","Жужгесское","94644403"]
[277,"Увинский муниципальный район","Каркалайское","94644405"]
[278,"Увинский муниципальный район","Красносельское","94644415"]
[279,"Увинский муниципальный район","Кулябинское","94644420"]
[280,"Увинский муниципальный район","Кыйлудское","94644425"]
[281,"Увинский муниципальный район","Мушковайское","94644435"]
[282,"Увинский муниципальный район","Новомултанское","94644428"]
[283,"Увинский муниципальный район","Нылгинское","94644430"]
[284,"Увинский муниципальный район","Петропавловское","94644445"]
[285,"Увинский муниципальный район","Поршур-Туклинское","94644450"]
[286,"Увинский муниципальный район","Сям-Можгинское","94644460"]
[287,"Увинский муниципальный район","Ува-Туклинское","94644465"]
[288,"Увинский муниципальный район","Увинский муниципальный район","94644000"]
[289,"Увинский муниципальный район","Увинское","94644466"]
[290,"Увинский муниципальный район","Удгучинское","94644470"]
[291,"Увинский муниципальный район","Чеканское","94644480"]
[292,"Увинский муниципальный район","Чистостемское","94644482"]
[293,"Шарканский муниципальный район","Бородулинское","94646405"]
[294,"Шарканский муниципальный район","Быгинское","94646407"]
[295,"Шарканский муниципальный район","Вортчинское","94646408"]
[296,"Шарканский муниципальный район","Заречно-Вишурское","94646440"]
[297,"Шарканский муниципальный район","Зюзинское","94646410"]
[298,"Шарканский муниципальный район","Карсашурское","94646418"]
[299,"Шарканский муниципальный район","Кыквинское","94646425"]
[300,"Шарканский муниципальный район","Ляльшурское","94646427"]
[301,"Шарканский муниципальный район","Мишкинское","94646430"]
[302,"Шарканский муниципальный район","Мувырское","94646450"]
[303,"Шарканский муниципальный район","Нижнекиварское","94646435"]
[304,"Шарканский муниципальный район","Порозовское","94646442"]
[305,"Шарканский муниципальный район","Сосновское","94646445"]
[306,"Шарканский муниципальный район","Сюрсовайское","94646455"]
[307,"Шарканский муниципальный район","Шарканский муниципальный район","94646000"]
[308,"Шарканский муниципальный район","Шарканское","94646460"]
[309,"Юкаменский муниципальный район","Верх-Унинское","94648407"]
[310,"Юкаменский муниципальный район","Ежевское","94648411"]
[311,"Юкаменский муниципальный район","Ертемское","94648413"]
[312,"Юкаменский муниципальный район","Засековское","94648422"]
[313,"Юкаменский муниципальный район","Палагайское","94648433"]
[314,"Юкаменский муниципальный район","Пышкетское","94648444"]
[315,"Юкаменский муниципальный район","Шамардановское","94648455"]
[316,"Юкаменский муниципальный район","Юкаменский муниципальный район","94648000"]
[317,"Юкаменский муниципальный район","Юкаменское","94648477"]
[318,"Якшур-Бодьинский муниципальный район","Большеошворцинское","94650405"]
[319,"Якшур-Бодьинский муниципальный район","Варавайское","94650410"]
[320,"Якшур-Бодьинский муниципальный район","Кекоранское","94650420"]
[321,"Якшур-Бодьинский муниципальный район","Лынгинское","94650425"]
[322,"Якшур-Бодьинский муниципальный район","Мукшинское","94650430"]
[323,"Якшур-Бодьинский муниципальный район","Пушкаревское","94650435"]
[324,"Якшур-Бодьинский муниципальный район","Селычинское","94650438"]
[325,"Якшур-Бодьинский муниципальный район","Старозятцинское","94650440"]
[326,"Якшур-Бодьинский муниципальный район","Чернушинское","94650445"]
[327,"Якшур-Бодьинский муниципальный район","Чуровское","94650447"]
[328,"Якшур-Бодьинский муниципальный район","Якшур-Бодьинский муниципальный район","94650000"]
[329,"Якшур-Бодьинский муниципальный район","Якшур-Бодьинское","94650450"]
[330,"Якшур-Бодьинский муниципальный район","Якшурское","94650448"]
[331,"Ярский муниципальный район","Бармашурское","94652406"]
[332,"Ярский муниципальный район","Бачумовское","94652410"]
[333,"Ярский муниципальный район","Ворцинское","94652420"]
[334,"Ярский муниципальный район","Дизьминское","94652430"]
[335,"Ярский муниципальный район","Еловское","94652440"]
[336,"Ярский муниципальный район","Зюинское","94652445"]
[337,"Ярский муниципальный район","Казаковское","94652450"]
[338,"Ярский муниципальный район","Пудемское","94652461"]
[339,"Ярский муниципальный район","Уканское","94652470"]
[340,"Ярский муниципальный район","Ярский муниципальный район","94652000"]
[341,"Ярский муниципальный район","Ярское","94652480"]

{"sheet":"modfrmReestrMR","index":31,"n_rows":0,"n_cols":0,"rows_kept":0,"cut":false,"hidden":true,"merged":[]}

{"sheet":"modfrmRegion","index":32,"n_rows":0,"n_cols":0,"rows_kept":0,"cut":false,"hidden":true,"merged":[]}

{"sheet":"modfrmCheckUpdates","index":33,"n_rows":0,"n_cols":0,"rows_kept":0,"cut":false,"hidden":true,"merged":[]}